Workbook

Sheet 黄ラベル認証値
A1: Chiritorol 2000L 黄ﾗﾍﾞﾙ（製造番号：008510 有効期限：2017．09）認証値 2015年12月
A2: 項目 | B2: 認証値 | C2: 単位 | D2: 許容範囲 | H2: 許容幅
A3: Na | B3: 145 | C3: mmol/l | D3: =$B$3-2 -> 143 | E3: ～ | F3: ～ | G3: =$B$3+2 -> 147 | H3: ±２ｍｍｏｌ／ｌ
A4: K | B4: 5.4 | C4: mmol/l | D4: =$B$4-0.2 -> 5.2 | E4: ～ | F4: ～ | G4: =$B$4+0.2 -> 5.6 | H4: ±０．２ｍｍｏｌ／ｌ
A5: CL | B5: 109 | C5: mmol/l | D5: =$B$5-3 -> 106 | E5: ～ | F5: ～ | G5: =$B$5+3 -> 112 | H5: ±３ｍｍｏｌ／ｌ
A6: CL（日立電極） | B6: 106 | C6: mmol/l | D6: =$B$6-3 -> 103 | E6: ～ | F6: ～ | G6: =$B$6+3 -> 109 | H6: ±３ｍｍｏｌ／ｌ
A7: Ca | B7: 11.3 | C7: mg/dl | D7: =$B$7-0.5 -> 10.8 | E7: ～ | F7: ～ | G7: =$B$7+0.5 -> 11.8 | H7: ±０．５ｍｇ／ｄｌ
A8: GLU | B8: 183 | C8: mg/dl | D8: =$B$8-5 -> 178 | E8: ～ | F8: ～ | G8: =$B$8+5 -> 188 | H8: ±５ｍｇ／ｄｌ
A9: TCH | B9: 141 | C9: mg/dl | D9: =ROUNDDOWN($B$9*0.95,0) -> 133 | E9: ～ | F9: ～ | G9: =ROUNDUP($B$9*1.05,0) -> 149 | H9: ±８ｍｇ／ｄｌ（±５％）
A10: TG | B10: 50 | C10: mg/dl | D10: =ROUNDDOWN($B$10*0.95,0) -> 47 | E10: ～ | F10: ～ | G10: =ROUNDUP($B$10*1.05,0) -> 53 | H10: ±３ｍｇ／ｄｌ（±５％）
A11: HDL協和メタボリード | B11: 43 | C11: mg/dl | D11: =$B$11-3 -> 40 | E11: ～ | F11: ～ | G11: =$B$11+3 -> 46 | H11: ±３ｍｇ／ｄｌ
A12: HDL積水コレステスト | B12: 50 | C12: mg/dl | D12: =$B$12-3 -> 47 | E12: ～ | F12: ～ | G12: =$B$12+3 -> 53 | H12: ±３ｍｇ／ｄｌ
A13: TP | B13: 6.6 | C13: g/dl | D13: =$B$13-0.2 -> 6.4 | E13: ～ | F13: ～ | G13: =$B$13+0.2 -> 6.8 | H13: ±０．２ｇ／ｄｌ
A14: ALB（BCG） | B14: 4.23 | C14: g/dl | D14: =$B$14-0.2 -> 4.03 | E14: ～ | F14: ～ | G14: =$B$14+0.2 -> 4.43 | H14: ±０．２ｇ／ｄｌ
A15: ALB（New BCP） | B15: 4.1 | C15: g/dl | D15: =$B$15-0.2 -> 3.9 | E15: ～ | F15: ～ | G15: =$B$15+0.2 -> 4.3 | H15: ±０．２ｇ／ｄｌ
A16: T-BIL | B16: 2 | C16: mg/dl | D16: =$B$16-0.2 -> 1.8 | E16: ～ | F16: ～ | G16: =$B$16+0.2 -> 2.2 | H16: ±０．２ｍｇ／ｄｌ（±１０％）
A17: CRP | B17: 2.28 | C17: mg/dl | D17: =$B$17-0.2 -> 2.08 | E17: ～ | F17: ～ | G17: =$B$17+0.2 -> 2.48 | H17: ±０．２０ｍｇ／ｄｌ
A18: UA | B18: 6.6 | C18: mg/dl | D18: =$B$18-0.3 -> 6.3 | E18: ～ | F18: ～ | G18: =$B$18+0.3 -> 6.9 | H18: ±０．３ｍｇ／ｄｌ
A19: BUN | B19: 33 | C19: mg/dl | D19: =$B$19-2 -> 31 | E19: ～ | F19: ～ | G19: =$B$19+2 -> 35 | H19: ±２ｍｇ／ｄｌ
A20: CRE | B20: 2.94 | C20: mg/dl | D20: =$B$20-0.2 -> 2.74 | E20: ～ | F20: ～ | G20: =$B$20+0.2 -> 3.14 | H20: ±０．２０ｍｇ／ｄｌ
A21: AST | B21: 94 | C21: U/l | D21: =ROUNDDOWN($B$21*0.95,0) -> 89 | E21: ～ | F21: ～ | G21: =ROUNDUP($B$21*1.05,0) -> 99 | H21: ±５Ｕ／ｌ（±５％）
A22: ALT | B22: 78 | C22: U/l | D22: =ROUNDDOWN($B$22*0.95,0) -> 74 | E22: ～ | F22: ～ | G22: =ROUNDUP($B$22*1.05,0) -> 82 | H22: ±４Ｕ／ｌ（±５％）
A23: γ-GT | B23: 71 | C23: U/l | D23: =ROUNDDOWN($B$23*0.95,0) -> 67 | E23: ～ | F23: ～ | G23: =ROUNDUP($B$23*1.05,0) -> 75 | H23: ±４Ｕ／ｌ（±５％）
A24: ALP | B24: 287 | C24: U/l | D24: =ROUNDDOWN($B$24*0.95,0) -> 272 | E24: ～ | F24: ～ | G24: =ROUNDUP($B$24*1.05,0) -> 302 | H24: ±１５Ｕ／ｌ（±５％）
A25: LD | B25: 280 | C25: U/l | D25: =ROUNDDOWN($B$25*0.95,0) -> 266 | E25: ～ | F25: ～ | G25: =ROUNDUP($B$25*1.05,0) -> 294 | H25: ±１４Ｕ／ｌ（±５％）
A26: CK | B26: 295 | C26: U/l | D26: =ROUNDDOWN($B$26*0.95,0) -> 280 | E26: ～ | F26: ～ | G26: =ROUNDUP($B$26*1.05,0) -> 310 | H26: ±１５Ｕ／ｌ（±５％）
A27: AMY | B27: 236 | C27: U/l | D27: =ROUNDDOWN($B$27*0.95,0) -> 224 | E27: ～ | F27: ～ | G27: =ROUNDUP($B$27*1.05,0) -> 248 | H27: ±１２Ｕ／ｌ（±５％）
A28: ChE | B28: 309 | C28: U/l | D28: =ROUNDDOWN($B$28*0.95,0) -> 293 | E28: ～ | F28: ～ | G28: =ROUNDUP($B$28*1.05,0) -> 325 | H28: ±１６Ｕ／ｌ（±５％）
A29: Fe | B29: 151 | C29: μg/dl | D29: =ROUNDDOWN($B$29*0.95,0) -> 143 | E29: ～ | F29: ～ | G29: =ROUNDUP($B$29*1.05,0) -> 159 | H29: ±８μｇ／ｄｌ（±５％）
A30: Mg | B30: 2.7 | C30: mg/dl | D30: =$B$30-0.2 -> 2.5 | E30: ～ | F30: ～ | G30: =$B$30+0.2 -> 2.9 | H30: ±０．２ｍｇ／ｄｌ
A31: IP | B31: 6.1 | C31: mg/dl | D31: =$B$31-0.2 -> 5.9 | E31: ～ | F31: ～ | G31: =$B$31+0.2 -> 6.3 | H31: ±０．２ｍｇ／ｄｌ
A32: IgG | B32: 985 | C32: mg/dl | D32: =ROUNDDOWN($B$32*0.95,0) -> 935 | E32: ～ | F32: ～ | G32: =ROUNDUP($B$32*1.05,0) -> 1035 | H32: ±５０ｍｇ／ｄｌ（±５％）
A33: IgA | B33: 196 | C33: mg/dl | D33: =ROUNDDOWN($B$33*0.9,0) -> 176 | E33: ～ | F33: ～ | G33: =ROUNDUP($B$33*1.1,0) -> 216 | H33: ±２０ｍｇ／ｄｌ（±１０％）
A34: IgM | B34: 91 | C34: mg/dl | D34: =ROUNDDOWN($B$34*0.9,0) -> 81 | E34: ～ | F34: ～ | G34: =ROUNDUP($B$34*1.1,0) -> 101 | H34: ±１０ｍｇ／ｄｌ（±１０％）
A35: 参考値として扱う項目
A36: LDL協和メタボリード | B36: 80 | C36: mg/dl | D36: =$B$36-5 -> 75 | E36: ～ | F36: ～ | G36: =$B$36+5 -> 85 | H36: ±５ｍｇ／ｄｌ
A37: LDL積水コレステスト | B37: 61 | C37: mg/dl | D37: =$B$37-5 -> 56 | E37: ～ | F37: ～ | G37: =$B$37+5 -> 66 | H37: ±５ｍｇ／ｄｌ
A39: （留意事項）
A40: １．LDL値には機種間差が認められたため、参考値扱いとさせて頂きます。（デタミナー試薬は発売中止に伴い削除しました）
A41: ２．AMYについては今回のロットに、天然型尿由来ではなく、P型リコンビナントを添加し濃度調整をおこなったため、
A42: Ｇ2やＧ3基質で3～5％低値を示すことが確認されています。（基幹病院ではJCHO船橋と東歯大市川が該当します）
A43: ３．T-BILは本ロットより、メーカー間差無しと認め参考値扱いを解除しました。
A44: ４．チリトロール2000Lを検量用物質（キャリブレータ）として用いることに対して、データの保証はいたしません。

Sheet AST
F1: AST
A2: 月 | B2: 千葉大 | C2: がんｾﾝﾀｰ | D2: 船橋中央 | E2: 県立佐原 | F2: 千葉ﾘﾊﾋﾞﾘ | G2: 順大浦安 | H2: 千葉青葉 | I2: 東歯大市川 | J2: 千葉MC | K2: こども病院 | L2: 認証値 | M2: 10病院平均 | N2: R | O2: 下限 | P2: 上限 | Q2: 2015.02月値を100％に対する変化率
A3: 2 | D3: 93.45 | E3: 95.16 | G3: 95.48648649 | I3: 92.889 | L3: 94 | M3: =AVERAGE(B3:K3) -> 94.24637162 | N3: =MAX(B3:K3)-MIN(B3:K3) -> 2.597486486 | O3: 89 | P3: 99 | Q3: =M3/M3*100 -> 100
A4: 3 | B4: 94.92592593 | C4: 92.50318182 | D4: 93.64 | E4: 95.47 | F4: 93.41428571 | G4: 95.23809524 | H4: 94.7 | I4: 93.614 | J4: 95.54 | K4: 94.25 | L4: 94 | M4: 94.32954887 | N4: =MAX(B4:K4)-MIN(B4:K4) -> 3.036818182 | O4: 89 | P4: 99 | Q4: =M4/M4*100 -> 100
A5: 4 | B5: 94.85185185 | C5: 92.188 | D5: 93.45 | E5: 96.23 | F5: 93.60491803 | G5: 94.73717949 | H5: 94.3 | I5: 93.038 | J5: 95.54 | K5: 92.95454545 | L5: 94 | M5: 94.08944948 | N5: =MAX(B5:K5)-MIN(B5:K5) -> 4.042 | O5: 89 | P5: 99 | Q5: =M5/M$3*100 -> 99.83349795
A6: 5 | B6: 94.85185185 | C6: 91.97277778 | D6: 93.63 | E6: 96.17 | F6: 93.62931034 | G6: 94.66954023 | H6: 94 | I6: 93.035 | J6: 95.54 | K6: 93.1 | L6: 94 | M6: 94.05984802 | N6: =MAX(B6:K6)-MIN(B6:K6) -> 4.197222222 | O6: 89 | P6: 99 | Q6: 99.80208936
A7: 6 | B7: 94.85185185 | C7: 92.52181818 | D7: 92.59 | E7: 95.17 | F7: 93.98571429 | G7: 95.00462963 | H7: 94.2 | I7: 93.477 | J7: 95.13 | K7: 93.77777778 | L7: 94 | M7: 94.07087917 | N7: =MAX(B5:K5)-MIN(B5:K5) -> 4.042 | O7: 89 | P7: 99 | Q7: 99.81379395
A8: 7 | B8: 94.78125 | C8: 92.358 | D8: 91.53 | E8: 94.08 | F8: 93.69016393 | G8: 94.36842105 | H8: 94.6 | I8: 93.709 | J8: 95.2 | K8: 94.88235294 | L8: 94 | M8: 93.91991879 | N8: =MAX(B8:K8)-MIN(B8:K8) -> 3.67 | O8: 89 | P8: 99 | Q8: 99.65361762
A9: 8 | B9: 94.71875 | C9: 92.35818182 | D9: 92.25 | E9: 94.42 | F9: 94.41428571 | G9: 94.0877193 | H9: 93.4 | I9: 93.238 | J9: 94.57 | K9: 94.36363636 | L9: 94 | M9: 93.78205732 | N9: 2.46875 | O9: 89 | P9: 99 | Q9: 99.50733986
A10: 9 | B10: 94.25 | C10: 92.49894737 | D10: 92.25 | E10: 94.86 | F10: 93.55 | G10: 93.73106061 | H10: 93.4 | I10: 93.583 | J10: 92.85 | K10: 94.40909091 | L10: 94 | M10: 93.53820989 | N10: 2.61 | O10: 89 | P10: 99 | Q10: 99.24860584
A11: 10 | B11: 94.375 | C11: 93.1995 | D11: 92.45 | E11: 94.68 | F11: 93.5122807 | G11: 93.17857143 | H11: 93.3 | I11: 92.75 | J11: 92.66 | K11: 94.61904762 | L11: 94 | M11: 93.47243997 | N11: 2.23 | O11: 89 | P11: 99 | Q11: 99.17882075
A12: 11 | B12: 94.34375 | C12: 93.782 | D12: 93.28 | E12: 94.72 | F12: 93.35254237 | G12: 92.55072464 | H12: 93.8 | I12: 92.773 | J12: 92.72 | K12: 95.55 | L12: 94 | M12: 93.6872017 | N12: 2.999275362 | O12: 89 | P12: 99 | Q12: 99.40669342
A13: 12 | B13: 94.5 | C13: 93.7272381 | D13: 93.42 | E13: 94.71 | F13: 93.54385965 | G13: 93.03968254 | H13: 93.3 | I13: 92.543 | J13: 92.58 | K13: 95.9375 | L13: 94 | M13: 93.73012803 | N13: 3.3945 | O13: 89 | P13: 99 | Q13: 99.45224035
A14: 1 | B14: 94.75 | C14: 93.7996 | D14: 93.29 | E14: 94 | F14: 93.23965517 | G14: 93.26190476 | H14: 92.7 | I14: 92.272 | J14: 92.68 | K14: 95.23529412 | L14: 94 | M14: 93.52284541 | N14: 2.963294118 | O14: 89 | P14: 99 | Q14: 99.23230337
A15: 2 | B15: 94.625 | C15: 93.98335 | D15: 93.4 | E15: 94.31 | F15: 93.63859649 | G15: 94.36538462 | H15: 92.6 | I15: 92.052 | J15: 93.02 | K15: 94.47368421 | L15: 94 | M15: 93.64680153 | N15: 2.573 | O15: 89 | P15: 99 | Q15: 99.36382687
A16: 3 | B16: 94.375 | C16: 93.69618182 | D16: 93.39 | E16: 94.23 | F16: 93.74615385 | G16: 94.13461538 | H16: 92.2 | I16: 91.337 | J16: 93.4 | K16: 95.05555556 | L16: 94 | M16: 93.55645066 | N16: 3.718555556 | O16: 89 | P16: 99 | Q16: 99.26796019
A17: 4 | B17: 94.15625 | C17: 93.7925 | E17: 94.06 | F17: 93.82931034 | G17: 94.08695652 | H17: 91.6 | I17: 91.772 | J17: 94.32 | L17: 94 | M17: 93.45212711 | N17: 2.72 | O17: 89 | P17: 99 | Q17: 99.15726781
A18: 5 | B18: 94.59375 | C18: 93.76335 | E18: 94.24 | F18: 93.64528302 | G18: 92.625 | H18: 92.1 | I18: 91.866 | J18: 94.34 | L18: 94 | M18: 93.39667288 | N18: 2.72775 | O18: 89 | P18: 99 | Q18: 99.09842816
A19: 6 | L19: 94 | N19: 0 | O19: 89 | P19: 99 | Q19: 0
A20: 7 | L20: 94 | N20: 0 | O20: 89 | P20: 99 | Q20: 0

Sheet ALT
F1: ALT
A2: 月 | B2: 千葉大 | C2: がんｾﾝﾀｰ | D2: 船橋中央 | E2: 県立佐原 | F2: 千葉ﾘﾊﾋﾞﾘ | G2: 順大浦安 | H2: 千葉青葉 | I2: 東歯大市川 | J2: 千葉MC | K2: こども病院 | L2: 認証値 | M2: 10病院平均 | N2: R | O2: 下限 | P2: 上限 | Q2: 2015.02月値を100％に対する変化率
A3: 2 | D3: 77.35 | E3: 79.32 | G3: 76.2 | I3: 79.167 | L3: 78 | M3: =AVERAGE(B3:K3) -> 78.00925 | N3: =MAX(B3:K3)-MIN(B3:K3) -> 3.12 | O3: 74 | P3: 82 | Q3: =M3/M3*100 -> 100
A4: 3 | B4: 77.81481481 | C4: 78.34863636 | D4: 77.18 | E4: 79.24 | F4: 78.25555556 | G4: 76.72727273 | H4: 75.5 | I4: 79.41 | J4: 77.5 | K4: 78.46875 | L4: 78 | M4: 77.84450295 | N4: 3.91 | O4: 74 | P4: 82 | Q4: =M4/M4*100 -> 100
A5: 4 | B5: 77.77777778 | C5: 78.344 | D5: 76.88 | E5: 79.03 | F5: 78.48032787 | G5: 76.67628205 | H5: 75.7 | I5: 77.875 | J5: 77.49 | K5: 75.77272727 | L5: 78 | M5: 77.4026115 | N5: 3.33 | O5: 74 | P5: 82 | Q5: =M5/M$3*100 -> 99.22235055
A6: 5 | B6: 77.62962963 | C6: 78.20833333 | D6: 77.13 | E6: 78.9 | F6: 78.30508475 | G6: 77.1640625 | H6: 75.6 | I6: 78 | J6: 77.5 | K6: 76.1 | L6: 78 | M6: 77.45371102 | N6: 3.3 | O6: 74 | P6: 82 | Q6: 99.28785499
A7: 6 | B7: 77.92592593 | C7: 79.02681818 | D7: 77.52 | E7: 77.32 | F7: 78.35909091 | G7: 77.48584906 | H7: 77.3 | I7: 78.795 | J7: 77.3 | K7: 76.52941176 | L7: 78 | M7: 77.75620958 | N7: 2.497406417 | O7: 74 | P7: 82 | Q7: 99.67562768
A8: 7 | B8: 77.96875 | C8: 79.2925 | D8: 77.03 | E8: 78.03 | F8: 78.41803279 | G8: 77.13963964 | H8: 78.2 | I8: 79.047 | J8: 77.19 | K8: 77.9375 | L8: 78 | M8: 78.02534224 | N8: 2.2625 | O8: 74 | P8: 82 | Q8: 100.0206286
A9: 8 | B9: 77.25 | C9: 79.06727273 | D9: 77.32 | E9: 78.16 | F9: 78.6015873 | G9: 76.96052632 | H9: 76.1 | I9: 78.31 | J9: 76.87 | K9: 77.59090909 | L9: 78 | M9: 77.62302954 | N9: 2.967272727 | O9: 74 | P9: 82 | Q9: 99.50490428
A10: 9 | B10: 77.25 | C10: 79.25105263 | D10: 77.15 | E10: 78.07 | F10: 78.07118644 | G10: 76.80681818 | H10: 76.2 | I10: 79.131 | J10: 77.49 | K10: 77.5 | L10: 78 | M10: 77.69200573 | N10: 3.051052632 | O10: 74 | P10: 82 | Q10: 99.5933248
A11: 10 | B11: 77.90625 | C11: 78.972 | D11: 77.1 | E11: 77.72 | F11: 77.715 | G11: 76.35416667 | H11: 76 | I11: 77.833 | J11: 77.8 | K11: 77.33333333 | L11: 78 | M11: 77.473375 | N11: 2.972 | O11: 74 | P11: 82 | Q11: 99.31306223
A12: 11 | B12: 77.90625 | C12: 79.1935 | D12: 77.17 | E12: 78.1 | F12: 77.96909091 | G12: 76.17028986 | H12: 76.3 | I12: 77.974 | J12: 77.98 | K12: 78.15 | L12: 78 | M12: 77.69131308 | N12: 3.023210145 | O12: 74 | P12: 82 | Q12: 99.59243689
A13: 12 | B13: 77.5 | C13: 79.22985714 | D13: 77.16 | E13: 78.07 | F13: 77.96226415 | G13: 76.33712121 | H13: 75.8 | I13: 77.481 | J13: 77.73 | K13: 78.375 | L13: 78 | M13: 77.56452425 | N13: 3.429857143 | O13: 74 | P13: 82 | Q13: 99.42990639
A14: 1 | B14: 77.5 | C14: 79.26 | D14: 77.45 | E14: 77.91 | F14: 77.3 | G14: 76.35714286 | H14: 75.3 | I14: 77.726 | J14: 77.91 | K14: 78.11764706 | L14: 78 | M14: 77.48307899 | N14: 3.96 | O14: 74 | P14: 82 | Q14: 99.32550177
A15: 2 | B15: 77.6875 | C15: 78.8008 | D15: 77.5 | E15: 77.75 | F15: 77.86481481 | G15: 76.5 | H15: 75.9 | I15: 77.831 | J15: 77.51 | K15: 78.21052632 | L15: 78 | M15: 77.55546411 | N15: 2.9008 | O15: 74 | P15: 82 | Q15: 99.41829221
A16: 3 | B16: 77.9375 | C16: 78.61586364 | D16: 77.59 | E16: 78.25 | F16: 77.61960784 | G16: 76.38095238 | H16: 76.3 | I16: 77.388 | J16: 77.44 | K16: 78.5 | L16: 78 | M16: 77.60219239 | N16: 2.315863636 | O16: 74 | P16: 82 | Q16: 99.47819315
A17: 4 | B17: 78.03125 | C17: 78.49915 | E17: 78.47 | F17: 78.1 | G17: 76.75 | H17: 75.7 | I17: 76.882 | J17: 77.12 | L17: 78 | M17: 77.44405 | N17: 2.79915 | O17: 74 | P17: 82 | Q17: 99.27547054
A18: 5 | B18: 77.9375 | C18: 78.7 | E18: 78.38 | F18: 78.09655172 | G18: 76.97619048 | H18: 76.3 | I18: 77.518 | J18: 77.12 | L18: 78 | M18: 77.62853028 | N18: =MAX(B18:K18)-MIN(B18:K18) -> 2.4 | O18: 74 | P18: 82 | Q18: =M18/M$3*100 -> 99.51195567
A19: 6 | L19: 78 | N19: =MAX(B19:K19)-MIN(B19:K19) -> 0 | O19: 74 | P19: 82 | Q19: =M19/M$3*100 -> 0
A20: 7 | L20: 78 | N20: =MAX(B20:K20)-MIN(B20:K20) -> 0 | O20: 74 | P20: 82 | Q20: =M20/M$3*100 -> 0

Sheet ALP
F1: ALP
A2: 月 | B2: 千葉大 | C2: がんｾﾝﾀｰ | D2: 船橋中央 | E2: 県立佐原 | F2: 千葉ﾘﾊﾋﾞﾘ | G2: 順大浦安 | H2: 千葉青葉 | I2: 東歯大市川 | J2: 千葉MC | K2: こども病院 | L2: 認証値 | M2: 10病院平均 | N2: R | O2: 下限 | P2: 上限 | Q2: 2015.02月値を100％に対する変化率
A3: 2 | D3: 284.63 | E3: 293.1 | G3: 288.5 | I3: 288.417 | L3: 287 | M3: =AVERAGE(B3:K3) -> 288.66175 | N3: =MAX(B3:K3)-MIN(B3:K3) -> 8.47 | O3: 272 | P3: 302 | Q3: =M3/M3*100 -> 100
A4: 3 | B4: 288.4814815 | C4: 283.3018182 | D4: 288.32 | E4: 292.05 | F4: 286.0896552 | G4: 287.1730769 | H4: 288.7 | I4: 290.398 | J4: 291.33 | K4: 287.4166667 | L4: 287 | M4: 288.3260698 | N4: 8.748181818 | O4: 272 | P4: 302 | Q4: =M4/M$3*100 -> 99.88371159
A5: 4 | B5: 287.5555556 | C5: 283.193 | D5: 288.1 | E5: 292.16 | F5: 287.140625 | G5: 284.5647436 | H5: 288.2 | I5: 285.188 | J5: 290.72 | K5: 284.4736842 | L5: 287 | M5: 287.1295608 | N5: 8.967 | O5: 272 | P5: 302 | Q5: =M5/M$3*100 -> 99.46920949
A6: 5 | B6: 287.4074074 | C6: 282.1894444 | D6: 287.5 | E6: 292 | F6: 287.6135593 | G6: 283.8463542 | H6: 288.7 | I6: 284.341 | J6: 291.95 | K6: 282.4 | L6: 287 | M6: 286.7947765 | N6: 9.810555556 | O6: 272 | P6: 302 | Q6: 99.35323143
A7: 6 | B7: 286.6296296 | C7: 283.1022727 | D7: 284.05 | E7: 288.97 | F7: 285.5553846 | G7: 284.4327273 | H7: 289.4 | I7: 289.17 | J7: 292.67 | K7: 287.4375 | L7: 287 | M7: 287.1417514 | N7: 9.567727273 | O7: 272 | P7: 302 | Q7: 99.47343263
A8: 7 | B8: 286.03125 | C8: 283.203 | D8: 279.45 | E8: 287.8 | F8: 285.1344262 | G8: 284.9107843 | H8: 288.9 | I8: 290.326 | J8: 291.33 | K8: 290.2727273 | L8: 287 | M8: 286.7358188 | N8: 11.88 | O8: 272 | P8: 302 | Q8: 99.33280692
A9: 8 | B9: 286.1875 | C9: 280.645 | D9: 281.27 | E9: 287.1 | F9: 284.4953846 | G9: 289.6666667 | H9: 290.5 | I9: 289.369 | J9: 288.72 | K9: 289.2105263 | L9: 287 | M9: 286.7164078 | N9: 9.855 | O9: 272 | P9: 302 | Q9: 99.32608243
A10: 9 | B10: 286.59375 | C10: 281.2626316 | D10: 282.57 | E10: 286.32 | F10: 284.3923077 | G10: 286.9375 | H10: 288.6 | I10: 289.321 | J10: 286.5 | K10: 288.0909091 | L10: 287 | M10: 286.0588098 | N10: 8.058368421 | O10: 272 | P10: 302 | Q10: 99.09827327
A11: 10 | B11: 285.09375 | C11: 283.512 | D11: 284.66 | E11: 286.85 | F11: 283.8466667 | G11: 289.5482456 | H11: 290.5 | I11: 286.25 | J11: 291 | K11: 289.6111111 | L11: 287 | M11: 287.0871773 | N11: 7.488 | O11: 272 | P11: 302 | Q11: 99.45452674
A12: 11 | B12: 283.8125 | C12: 284.779 | D12: 286.05 | E12: 287.83 | F12: 283.7516667 | G12: 290.557971 | H12: 289.3 | I12: 285.48 | J12: 289.62 | K12: 287.3333333 | L12: 287 | M12: 286.8514471 | N12: 6.806304348 | O12: 272 | P12: 302 | Q12: 99.3728636
A13: 12 | B13: 284.1875 | C13: 284.3928095 | D13: 288.68 | E13: 290.91 | F13: 284.7350877 | G13: 290.9924242 | H13: 288.1 | I13: 283.841 | J13: 292.48 | K13: 289.7857143 | L13: 287 | M13: 287.8104536 | N13: 8.639 | O13: 272 | P13: 302 | Q13: 99.70508859
A14: 1 | B14: 286.0625 | C14: 283.09665 | D14: 288.58 | E14: 288.04 | F14: 285.3103448 | G14: 285.952381 | H14: 287.5 | I14: 283.512 | J14: 289.65 | K14: 284.6666667 | L14: 287 | M14: 286.2370542 | N14: 6.55335 | O14: 272 | P14: 302 | Q14: 99.16002181
A15: 2 | B15: 286.96875 | C15: 282.2275 | D15: 289.02 | E15: 287.98 | F15: 285.1633333 | G15: 284.4953333 | H15: 286.9 | I15: 285.692 | J15: 291.01 | K15: 289.8947368 | L15: 287 | M15: 286.9351654 | N15: 8.7825 | O15: 272 | P15: 302 | Q15: 99.4018658
A16: 3 | B16: 288.625 | C16: 286.9083636 | D16: 288.48 | E16: 288.15 | F16: 284.7469697 | G16: 290.3125 | H16: 287.1 | I16: 285.071 | J16: 289.96 | K16: 289 | L16: 287 | M16: 287.8353833 | N16: 5.565530303 | O16: 272 | P16: 302 | Q16: 99.71372492
A17: 4 | B17: 284 | C17: 289.11 | E17: 289.06 | F17: 286.2385965 | G17: 291.1083333 | H17: 282.1 | I17: 285.291 | J17: 289.44 | L17: 287 | M17: 287.0434912 | N17: 9.008333333 | O17: 272 | P17: 302 | Q17: 99.43939272
A18: 5 | B18: 284.5625 | C18: 289.35 | E18: 288.1 | F18: 285.3779661 | G18: 287.5714286 | H18: 283.5 | I18: 285.036 | J18: 284.72 | L18: 287 | M18: 286.0272368 | N18: =MAX(B18:K18)-MIN(B18:K18) -> 5.85 | O18: 272 | P18: 302 | Q18: 99.08733555
A19: 6 | L19: 287 | N19: =MAX(B19:K19)-MIN(B19:K19) -> 0 | O19: 272 | P19: 302 | Q19: 0
A20: 7 | L20: 287 | N20: =MAX(B20:K20)-MIN(B20:K20) -> 0 | O20: 272 | P20: 302 | Q20: 0

Sheet LD
F1: LD
A2: 月 | B2: 千葉大 | C2: がんｾﾝﾀｰ | D2: 船橋中央 | E2: 県立佐原 | F2: 千葉ﾘﾊﾋﾞﾘ | G2: 順大浦安 | H2: 千葉青葉 | I2: 東歯大市川 | J2: 千葉MC | K2: こども病院 | L2: 認証値 | M2: 10病院平均 | N2: R | O2: 下限 | P2: 上限 | Q2: 2015.02月値を100％に対する変化率
A3: 2 | D3: 279.57 | E3: 274.37 | G3: 278.3 | I3: 277.389 | L3: 280 | M3: =AVERAGE(B3:K3) -> 277.40725 | N3: =MAX(B3:K3)-MIN(B3:K3) -> 5.2 | O3: 266 | P3: 294 | Q3: =M3/M3*100 -> 100
A4: 3 | B4: 278.5925926 | C4: 271.8827273 | D4: 282.36 | E4: 274.33 | F4: 277.1931034 | G4: 277.3076923 | H4: 279.3 | I4: 277.53 | J4: 278.71 | K4: 277.1851852 | L4: 280 | M4: 277.4391301 | N4: 10.47727273 | O4: 266 | P4: 294 | Q4: =M4/M$3*100 -> 100.0114922
A5: 4 | B5: 278.6296296 | C5: 273.1975 | D5: 283.6 | E5: 276.46 | F5: 279.6171875 | G5: 280.775641 | H5: 278.2 | I5: 279.113 | J5: 278.33 | K5: 274.05 | L5: 280 | M5: 278.1972958 | N5: 10.4025 | O5: 266 | P5: 294 | Q5: =M5/M$3*100 -> 100.2847964
A6: 5 | B6: 279 | C6: 271.8916667 | D6: 282.39 | E6: 276.9 | F6: 278.820339 | G6: 280.9375 | H6: 277.8 | I6: 280.859 | J6: 279.27 | K6: 275.2 | L6: 280 | M6: 278.3068506 | N6: 10.49833333 | O6: 266 | P6: 294 | Q6: 100.3242888
A7: 6 | B7: 278.1111111 | C7: 272.1672727 | D7: 282.45 | E7: 271.97 | F7: 279.4909091 | G7: 279.827044 | H7: 275.4 | I7: 281.795 | J7: 278.85 | K7: 275.8095238 | L7: 280 | M7: 277.5870861 | N7: 10.48 | O7: 266 | P7: 294 | Q7: 100.0648275
A8: 7 | B8: 276.4375 | C8: 271.8715 | D8: 278.02 | E8: 270.98 | F8: 278.6540984 | G8: 276.499187 | H8: 275.4 | I8: 280.802 | J8: 277.09 | K8: 277.0666667 | L8: 280 | M8: 276.2820952 | N8: 9.822 | O8: 266 | P8: 294 | Q8: 99.59440325
A9: 8 | B9: 277 | C9: 271.7140909 | D9: 279.89 | E9: 270.36 | F9: 282.1569231 | G9: 276.4649123 | H9: 274.9 | I9: 279.869 | J9: 276.62 | K9: 277.2727273 | L9: 280 | M9: 276.6247654 | N9: 11.79692308 | O9: 266 | P9: 294 | Q9: 99.71792927
A10: 9 | B10: 277.15625 | C10: 273.7247368 | D10: 279.95 | E10: 271.83 | F10: 282.2492308 | G10: 274.944697 | H10: 275 | I10: 280.143 | J10: 277.2 | K10: 276.25 | L10: 280 | M10: 276.8447915 | N10: 10.41923077 | O10: 266 | P10: 294 | Q10: 99.79724447
A11: 10 | B11: 276.375 | C11: 275.6915 | D11: 280.27 | E11: 273.77 | F11: 280.5416667 | G11: 275.8174603 | H11: 275.3 | I11: 277.951 | J11: 277.37 | K11: 274.5625 | L11: 280 | M11: 276.7649127 | N11: 6.771666667 | O11: 266 | P11: 294 | Q11: 99.76844971
A12: 11 | B12: 278 | C12: 275.819 | D12: 282.07 | E12: 274.64 | F12: 279.8566667 | G12: 277.0869565 | H12: 276 | I12: 278.067 | J12: 278.33 | K12: 277.6315789 | L12: 280 | M12: 277.7501202 | N12: 7.43 | O12: 266 | P12: 294 | Q12: 100.1235981
A13: 12 | B13: 279.5625 | C13: 275.6260952 | D13: 281.64 | E13: 273.46 | F13: 279.8245614 | G13: 276.2272727 | H13: 274.7 | I13: 276.341 | J13: 278.04 | K13: 275.3125 | L13: 280 | M13: 277.0733929 | N13: 8.18 | O13: 266 | P13: 294 | Q13: 99.87965092
A14: 1 | B14: 279.625 | C14: 277.65995 | D14: 282.13 | E14: 271.22 | F14: 282.3894737 | G14: 276.5222222 | H14: 273.9 | I14: 275.975 | J14: 278.42 | K14: 280.2941176 | L14: 280 | M14: 277.8135764 | N14: 11.16947368 | O14: 266 | P14: 294 | Q14: 100.1464729
A15: 2 | B15: 278.96875 | C15: 276.55415 | D15: 282.79 | E15: 270.74 | F15: 280.37 | G15: 278.5714286 | H15: 274.7 | I15: 275.449 | J15: 277.85 | K15: 275.4117647 | L15: 280 | M15: 277.1405093 | N15: 12.05 | O15: 266 | P15: 294 | Q15: 99.9038451
A16: 3 | B16: 281.25 | C16: 275.6681818 | D16: 281.86 | E16: 274.03 | F16: 280.980303 | G16: 277.7678571 | H16: 274.7 | I16: 274.952 | J16: 275.21 | K16: 282.8333333 | L16: 280 | M16: 277.9251675 | N16: 8.803333333 | O16: 266 | P16: 294 | Q16: 100.1866993
A17: 4 | B17: 277.625 | C17: 276.8542 | E17: 277.39 | F17: 281.1614035 | G17: 276.5984848 | H17: 273.8 | I17: 274.951 | J17: 273.8 | L17: 280 | M17: 276.522511 | N17: 7.361403509 | O17: 266 | P17: 294 | Q17: 99.68106855
A18: 5 | B18: 278.09375 | C18: 278.07 | E18: 277.29 | F18: 279.7881356 | G18: 277 | H18: 274.6 | I18: 275.482 | J18: 274.64 | L18: 280 | M18: 276.8704857 | N18: =MAX(B18:K18)-MIN(B18:K18) -> 5.188135593 | O18: 266 | P18: 294 | Q18: 99.80650675
A19: 6 | L19: 280 | N19: =MAX(B19:K19)-MIN(B19:K19) -> 0 | O19: 266 | P19: 294 | Q19: 0
A20: 7 | L20: 280 | N20: =MAX(B20:K20)-MIN(B20:K20) -> 0 | O20: 266 | P20: 294 | Q20: 0

Sheet CPK
F1: CPK
A2: 月 | B2: 千葉大 | C2: がんｾﾝﾀｰ | D2: 船橋中央 | E2: 県立佐原 | F2: 千葉ﾘﾊﾋﾞﾘ | G2: 順大浦安 | H2: 千葉青葉 | I2: 東歯大市川 | J2: 千葉MC | K2: こども病院 | L2: 認証値 | M2: 10病院平均 | N2: R | O2: 下限 | P2: 上限 | Q2: 2015.02月値を100％に対する変化率
A3: 2 | D3: 298.75 | E3: 291.77 | G3: 296.2777778 | I3: 301.917 | L3: 295 | M3: =AVERAGE(B3:K3) -> 297.1786944 | N3: =MAX(B3:K3)-MIN(B3:K3) -> 10.147 | O3: 280 | P3: 310 | Q3: =M3/M3*100 -> 100
A4: 3 | B4: 299 | C4: 289.325 | D4: 300.02 | E4: 292.87 | F4: 295.6206897 | G4: 295.8461538 | H4: 291.8 | I4: 297.482 | J4: 297.38 | K4: 299.8076923 | L4: 295 | M4: 295.9151536 | N4: 10.695 | O4: 280 | P4: 310 | Q4: =M4/M$3*100 -> 99.57482118
A5: 4 | B5: 298.1481481 | C5: 290.0105 | D5: 297 | E5: 292.86 | F5: 295.69375 | G5: 296.5705128 | H5: 291.6 | I5: 293.65 | J5: 298.52 | K5: 297.3 | L5: 295 | M5: 295.1352911 | N5: 8.5095 | O5: 280 | P5: 310 | Q5: =M5/M$3*100 -> 99.31239911
A6: 5 | B6: 303.3333333 | C6: 291.2972222 | D6: 295.66 | E6: 292.99 | F6: 294.0186441 | G6: 295.5479798 | H6: 293 | I6: 294.412 | J6: 300.12 | K6: 297.9 | L6: 295 | M6: 295.8279179 | N6: 12.03611111 | O6: 280 | P6: 310 | Q6: 99.54546657
A7: 6 | B7: 299.9259259 | C7: 292.5872727 | D7: 295.61 | E7: 299.72 | F7: 293.9136364 | G7: 295.4848485 | H7: 294.2 | I7: 297.932 | J7: 299.06 | K7: 297.9047619 | L7: 295 | M7: 296.6338445 | N7: 7.338653199 | O7: 280 | P7: 310 | Q7: 99.81665916
A8: 7 | B8: 296.8125 | C8: 291.1205 | D8: 292.48 | E8: 297.86 | F8: 299.5114754 | G8: 296.8541667 | H8: 295.1 | I8: 297.709 | J8: 298.19 | K8: 298.0588235 | L8: 295 | M8: 296.3696466 | N8: 8.3909754 | O8: 280 | P8: 310 | Q8: 99.7277571
A9: 8 | B9: 298.09375 | C9: 291.0368182 | D9: 292.25 | E9: 300.9 | F9: 299.7569231 | G9: 296.2017544 | H9: 295.8 | I9: 297.917 | J9: 296.56 | K9: 295.3636364 | L9: 295 | M9: 296.3879882 | N9: 9.863181818 | O9: 280 | P9: 310 | Q9: 99.73392903
A10: 9 | B10: 295.78125 | C10: 294.1831579 | D10: 295.18 | E10: 302.35 | F10: 296.7476923 | G10: 296.0530303 | H10: 296.4 | I10: 297.952 | J10: 302.33 | K10: 296.5909091 | L10: 295 | M10: 297.356804 | N10: 8.166842105 | O10: 280 | P10: 310 | Q10: 100.0599335
A11: 10 | B11: 295.875 | C11: 292.574 | D11: 296.66 | E11: 296.66 | F11: 295.5233333 | G11: 298.5 | H11: 297.6 | I11: 293.667 | J11: 296.79 | K11: 299.8333333 | L11: 295 | M11: 296.3682667 | N11: 7.259333333 | O11: 280 | P11: 310 | Q11: 99.72729277
A12: 11 | B12: 296 | C12: 293.421 | D12: 298.75 | E12: 295.19 | F12: 295.1433333 | G12: 301.1884058 | H12: 296.8 | I12: 291.316 | J12: 300.31 | K12: 296.35 | L12: 295 | M12: 296.4468739 | N12: 9.872405797 | O12: 280 | P12: 310 | Q12: 99.75374394
A13: 12 | B13: 301.6875 | C13: 293.6220952 | D13: 298.98 | E13: 297.24 | F13: 300.5491228 | G13: 300.6590909 | H13: 295.4 | I13: 291.224 | J13: 299.83 | K13: 299.0666667 | L13: 295 | M13: 297.8258476 | N13: 10.4635 | O13: 280 | P13: 310 | Q13: 100.2177657
A14: 1 | B14: 300.8125 | C14: 293.2308 | D14: 298.66 | E14: 295.33 | F14: 300.3017241 | G14: 302.9777778 | H14: 295.8 | I14: 290.902 | J14: 299.11 | K14: 295.5294118 | L14: 295 | M14: 297.2654214 | N14: 12.07577778 | O14: 280 | P14: 310 | Q14: 100.0291834
A15: 2 | B15: 298.8125 | C15: 291.555 | D15: 300.15 | E15: 293.96 | F15: 304.1827586 | G15: 301.8809524 | H15: 292.2 | I15: 292.321 | J15: 296.65 | K15: 294.8947368 | L15: 295 | M15: 296.6606948 | N15: 12.62775862 | O15: 280 | P15: 310 | Q15: 99.82569421
A16: 3 | B16: 298.59375 | C16: 293.2068182 | D16: 298.86 | E16: 294.56 | F16: 302.7666667 | G16: 301.6130952 | H16: 292.4 | I16: 289.648 | J16: 298.94 | K16: 303.9 | L16: 295 | M16: 297.448833 | N16: 14.252 | O16: 280 | P16: 310 | Q16: 100.0909011
A17: 4 | B17: 296.65625 | C17: 293.42165 | E17: 295.41 | F17: 302.2333333 | G17: 299.8913043 | H17: 292.3 | I17: 289.855 | J17: 303.21 | L17: 295 | M17: 296.6221922 | N17: 13.355 | O17: 280 | P17: 310 | Q17: 99.81273818
A18: 5 | B18: 296.65625 | C18: 292.5675 | E18: 295.51 | F18: 294.51 | G18: 298.1428571 | H18: 294.3 | I18: 294.817 | J18: 303.56 | L18: 295 | M18: 296.2579509 | N18: =MAX(B18:K18)-MIN(B18:K18) -> 10.9925 | O18: 280 | P18: 310 | Q18: =M18/M$3*100 -> 99.69017175
A19: 6 | L19: 295 | N19: =MAX(B19:K19)-MIN(B19:K19) -> 0 | O19: 280 | P19: 310 | Q19: =M19/M$3*100 -> 0
A20: 7 | L20: 295 | N20: =MAX(B20:K20)-MIN(B20:K20) -> 0 | O20: 280 | P20: 310 | Q20: =M20/M$3*100 -> 0

Sheet rGT
F1: r-GT
A2: 月 | B2: 千葉大 | C2: がんｾﾝﾀｰ | D2: 船橋中央 | E2: 県立佐原 | F2: 千葉ﾘﾊﾋﾞﾘ | G2: 順大浦安 | H2: 千葉青葉 | I2: 東歯大市川 | J2: 千葉MC | K2: こども病院 | L2: 認証値 | M2: 10病院平均 | N2: R | O2: 下限 | P2: 上限 | Q2: 2015.02月値を100％に対する変化率
A3: 2 | D3: 71.35 | E3: 71.03 | G3: 70 | I3: 70.639 | L3: 71 | M3: =AVERAGE(B3:K3) -> 70.75475 | N3: =MAX(B3:K3)-MIN(B3:K3) -> 1.35 | O3: 67 | P3: 75 | Q3: =M3/M3*100 -> 100
A4: 3 | B4: 70.88888889 | C4: 69.64909091 | D4: 71.8 | E4: 71.08 | F4: 71.73703704 | G4: 70.33333333 | H4: 71.3 | I4: 70.494 | J4: 72.17 | K4: 70 | L4: 71 | M4: 70.94523502 | N4: 2.520909091 | O4: 67 | P4: 75 | Q4: =M4/M$3*100 -> 100.2692187
A5: 4 | B5: 70.40740741 | C5: 69.848 | D5: 71.6 | E5: 71.41 | F5: 71.74032258 | G5: 72.3525641 | H5: 71.8 | I5: 70.275 | J5: 72.53 | K5: 70.59090909 | L5: 71 | M5: 71.25542032 | N5: 2.682 | O5: 67 | P5: 75 | Q5: =M5/M$3*100 -> 100.7076137
A6: 5 | B6: 70.44444444 | C6: 69.85944444 | D6: 71.79 | E6: 71.41 | F6: 71.89137931 | G6: 72.32323232 | H6: 71.3 | I6: 70.459 | J6: 72.53 | K6: 69.95 | L6: 71 | M6: 71.19575005 | N6: 2.670555556 | O6: 67 | P6: 75 | Q6: 100.6232798
A7: 6 | B7: 70.66666667 | C7: 70.02318182 | D7: 70.8 | E7: 72.02 | F7: 71.28548387 | G7: 72.62 | H7: 70 | I7: 70.58 | J7: 73 | K7: 69.9 | L7: 71 | M7: 71.08953324 | N7: 3.1 | O7: 67 | P7: 75 | Q7: 100.4731601
A8: 7 | B8: 71.4375 | C8: 70.6315 | D8: 69.67 | E8: 71.46 | F8: 71.775 | G8: 69.69333333 | H8: 69.8 | I8: 71.081 | J8: 72.98 | K8: 69 | L8: 71 | M8: 70.75283333 | N8: 3.98 | O8: 67 | P8: 75 | Q8: 99.99729111
A9: 8 | B9: 70.78125 | C9: 70.26045455 | D9: 69.89 | E9: 71.37 | F9: 70.59666667 | G9: 68.71052632 | H9: 70.7 | I9: 70.321 | J9: 72.37 | K9: 70.72727273 | L9: 71 | M9: 70.57271703 | N9: 3.659473684 | O9: 67 | P9: 75 | Q9: 99.74272685
A10: 9 | B10: 71.09375 | C10: 70.14947368 | D10: 69.95 | E10: 71.26 | F10: 70.60952381 | G10: 68.76136364 | H10: 70.8 | I10: 70.286 | J10: 70.91 | K10: 69.59090909 | L10: 71 | M10: 70.34110202 | N10: 2.498636364 | O10: 67 | P10: 75 | Q10: 99.4153778
A11: 10 | B11: 70.40625 | C11: 70.4015 | D11: 70.56 | E11: 71.19 | F11: 70.9862069 | G11: 69.22222222 | H11: 70.6 | I11: 71.067 | J11: 71.21 | K11: 69.41176471 | L11: 71 | M11: 70.50549438 | N11: 1.987777778 | O11: 67 | P11: 75 | Q11: 99.64771889
A12: 11 | B12: 70.65625 | C12: 70.2775 | D12: 70.45 | E12: 71.49 | F12: 71.37222222 | G12: 70.25 | H12: 70.5 | I12: 70.618 | J12: 72.14 | K12: 71.35 | L12: 71 | M12: 70.91039722 | N12: 1.89 | O12: 67 | P12: 75 | Q12: 100.2199813
A13: 12 | B13: 70.96875 | C13: 70.36528571 | D13: 70.89 | E13: 71.39 | F13: 71.61666667 | G13: 70.41666667 | H13: 71 | I13: 71.36 | J13: 72.44 | K13: 71.25 | L13: 71 | M13: 71.1697369 | N13: 2.074714286 | O13: 67 | P13: 75 | Q13: 100.5865146
A14: 1 | B14: 70.09375 | C14: 70.0234 | D14: 70.66 | E14: 71.02 | F14: 71.19649123 | G14: 70.47777778 | H14: 70.4 | I14: 71.282 | J14: 72.8 | K14: 71.70588235 | L14: 71 | M14: 70.96593014 | N14: 2.7766 | O14: 67 | P14: 75 | Q14: 100.2984678
A15: 2 | B15: 70.09375 | C15: 70.0825 | D15: 70.81 | E15: 71.02 | F15: 71.64385965 | G15: 70.35416667 | H15: 70.9 | I15: 71.826 | J15: 72.1 | K15: 71.4375 | L15: 71 | M15: 71.02677763 | N15: 2.0175 | O15: 67 | P15: 75 | Q15: 100.3844655
A16: 3 | B16: 70.25 | C16: 69.98440909 | D16: 70.77 | E16: 71.21 | F16: 71.39833333 | G16: 70.13988095 | H16: 71.6 | I16: 70.442 | J16: 71.48 | K16: 70.75 | L16: 71 | M16: 70.80246234 | N16: 1.615590909 | O16: 67 | P16: 75 | Q16: 100.0674334
A17: 4 | B17: 70.4375 | C17: 70.3583 | E17: 70.83 | F17: 71.5509434 | G17: 70.46376812 | H17: 71.1 | I17: 70.177 | J17: 71.1 | L17: 71 | M17: 70.75218894 | N17: 1.373943396 | O17: 67 | P17: 75 | Q17: 99.99638037
A18: 5 | B18: 70.5625 | C18: 70.20915 | E18: 70.71 | F18: 70.93965517 | G18: 70 | H18: 70.9 | I18: 71.048 | J18: 71.13 | L18: 71 | M18: 70.68741315 | N18: =MAX(B18:K18)-MIN(B18:K18) -> 1.13 | O18: 67 | P18: 75 | Q18: =M18/M$3*100 -> 99.90483062
A19: 6 | L19: 71 | N19: =MAX(B19:K19)-MIN(B19:K19) -> 0 | O19: 67 | P19: 75 | Q19: =M19/M$3*100 -> 0
A20: 7 | L20: 71 | N20: =MAX(B20:K20)-MIN(B20:K20) -> 0 | O20: 67 | P20: 75 | Q20: =M20/M$3*100 -> 0

Sheet AMY
F1: AMY
A2: 月 | B2: 千葉大 | C2: がんｾﾝﾀｰ | D2: 船橋中央 | E2: 県立佐原 | F2: 千葉ﾘﾊﾋﾞﾘ | G2: 順大浦安 | H2: 千葉青葉 | I2: 東歯大市川 | J2: 千葉MC | K2: こども病院 | L2: 認証値 | M2: 8病院平均 | N2: R | O2: 下限 | P2: 上限 | Q2: 2015.02月値を100％に対する変化率
A3: 2 | D3: 218.22 | E3: 241.09 | G3: 233.875 | I3: 217.972 | L3: 236 | M3: =AVERAGE(B3:C3,E3,F3,G3,H3,J3,K3) -> 237.4825 | N3: =MAX(B3:K3)-MIN(B3:K3) -> 23.118 | O3: 224 | P3: 248 | Q3: =M3/M3*100 -> 100
A4: 3 | B4: 231.2592593 | C4: 237.9990909 | D4: 218.75 | E4: 240.9 | F4: 244 | G4: 233.6 | H4: 235 | I4: 218.169 | J4: 242.21 | K4: 234.6538462 | L4: 236 | M4: 237.4527745 | N4: 25.831 | O4: 224 | P4: 248 | Q4: =M4/M$3*100 -> 99.98748309
A5: 4 | B5: 232.037037 | C5: 236.568 | D5: 218.32 | E5: 240.8 | F5: 244.7786885 | G5: 236.474359 | H5: 235.4 | I5: 219.775 | J5: 240.6 | K5: 236.1363636 | L5: 236 | M5: 237.849306 | N5: 26.45868852 | O5: 224 | P5: 248 | Q5: =M5/M$3*100 -> 100.154456
A6: 5 | B6: 231.6296296 | C6: 237.2083333 | D6: 217.34 | E6: 241.59 | F6: 242.6122807 | G6: 236.4242424 | H6: 236.6 | I6: 218.612 | J6: 243.1 | K6: 234.7 | L6: 236 | M6: 237.9830608 | N6: 25.76 | O6: 224 | P6: 248 | Q6: 100.210778
A7: 6 | B7: 231.5555556 | C7: 236.3427273 | D7: 217.07 | E7: 240.26 | F7: 241.6476923 | G7: 236.6545455 | H7: 243.1 | I7: 218.875 | J7: 243.9 | K7: 234.4761905 | L7: 236 | M7: 238.4920889 | N7: 26.83 | O7: 224 | P7: 248 | Q7: 100.4251214
A8: 7 | B8: 231.8125 | C8: 233.3595 | D8: 214 | E8: 238.96 | F8: 241.11 | G8: 236.898374 | H8: 242.8 | I8: 220.814 | J8: 246.16 | K8: 233.3529412 | L8: 236 | M8: 238.0566644 | N8: 32.16 | O8: 224 | P8: 248 | Q8: 100.2417712
A9: 8 | B9: 231.25 | C9: 232.6763636 | D9: 214.95 | E9: 238.07 | F9: 241.1415385 | G9: 234.8947368 | H9: 241.5 | I9: 219.988 | J9: 242.56 | K9: 233.5454545 | L9: 236 | M9: 236.9547617 | N9: 27.61 | O9: 224 | P9: 248 | Q9: 99.77777802
A10: 9 | B10: 230.78125 | C10: 231.6294737 | D10: 214.3 | E10: 239.02 | F10: 241.8953125 | G10: 235.6136364 | H10: 243.9 | I10: 220.131 | J10: 240.88 | K10: 233.7727273 | L10: 236 | M10: 237.18655 | N10: 29.6 | O10: 224 | P10: 248 | Q10: 99.87538028
A11: 10 | B11: 231.03125 | C11: 231.6255 | D11: 215.72 | E11: 240.7 | F11: 240.82 | G11: 234.2698413 | H11: 244.6 | I11: 222.806 | J11: 241.87 | K11: 234.2857143 | L11: 236 | M11: 237.4002882 | N11: 28.88 | O11: 224 | P11: 248 | Q11: 99.96538195
A12: 11 | B12: 231.84375 | C12: 232.4815 | D12: 220.03 | E12: 242.77 | F12: 239.705 | G12: 234.1594203 | H12: 244.3 | I12: 221.347 | J12: 244.33 | K12: 236.15 | L12: 236 | M12: 238.2174588 | N12: 24.3 | O12: 224 | P12: 248 | Q12: 100.3094791
A13: 12 | B13: 233.21875 | C13: 232.6418571 | D13: 221.89 | E13: 241.6 | F13: 241.422807 | G13: 235.780303 | H13: 241.3 | I13: 219.642 | J13: 244.07 | K13: 236 | L13: 236 | M13: 238.2542146 | N13: 24.428 | O13: 224 | P13: 248 | Q13: 100.3249564
A14: 1 | B14: 233.8125 | C14: 232.85085 | D14: 222.53 | E14: 240.7 | F14: 241.9810345 | G14: 236.5777778 | H14: 241.3 | I14: 220.346 | J14: 244.26 | K14: 235.3529412 | L14: 236 | M14: 238.3543879 | N14: 23.914 | O14: 224 | P14: 248 | Q14: 100.3671378
A15: 2 | B15: 233.53125 | C15: 235.27665 | D15: 222.62 | E15: 240.07 | F15: 242.2728814 | G15: 237.0892857 | H15: 241.7 | I15: 219.234 | J15: 240.84 | K15: 236.7368421 | L15: 236 | M15: 238.4396136 | N15: 23.03888136 | O15: 224 | P15: 248 | Q15: 100.4030249
A16: 3 | B16: 232.875 | C16: 233 | D16: 221.48 | E16: 234.86 | F16: 242.9636364 | G16: 235.702381 | H16: 240.4 | I16: 218.75 | J16: 239.56 | K16: 236.7333333 | L16: 236 | M16: 237.0117938 | N16: 24.21363636 | O16: 224 | P16: 248 | Q16: 99.80179332
A17: 4 | B17: 232.03125 | C17: 235.15 | E17: 234.99 | F17: 240.8719298 | G17: 234.3405797 | H17: 237.7 | I17: 218.532 | J17: 235.81 | L17: 236 | M17: 235.8419656 | N17: 22.33992982 | O17: 224 | P17: 248 | Q17: 99.30919779
A18: 5 | B18: 233.53125 | C18: 232.4775 | E18: 237.7 | F18: 242.0672414 | G18: 230.5238095 | H18: 239.5 | I18: 218.476 | J18: 237.7 | L18: 236 | M18: 236.2142573 | N18: =MAX(B18:K18)-MIN(B18:K18) -> 23.59124138 | O18: 224 | P18: 248 | Q18: =M18/M$3*100 -> 99.46596371
A19: 6 | L19: 236 | N19: =MAX(B19:K19)-MIN(B19:K19) -> 0 | O19: 224 | P19: 248 | Q19: =M19/M$3*100 -> 0
A20: 7 | L20: 236 | N20: =MAX(B20:K20)-MIN(B20:K20) -> 0 | O20: 224 | P20: 248 | Q20: =M20/M$3*100 -> 0

Sheet CHE
F1: CHE
A2: 月 | B2: 千葉大 | C2: がんｾﾝﾀｰ | D2: 船橋中央 | E2: 県立佐原 | F2: 千葉ﾘﾊﾋﾞﾘ | G2: 順大浦安 | H2: 千葉青葉 | I2: 東歯大市川 | J2: 千葉MC | K2: こども病院 | L2: 認証値 | M2: 10病院平均 | N2: R | O2: 下限 | P2: 上限 | Q2: 2015.02月値を100％に対する変化率
A3: 2 | D3: 312.35 | E3: 314.51 | G3: 312.1388889 | I3: 307.778 | L3: 309 | M3: =AVERAGE(B3:K3) -> 311.6942222 | N3: =MAX(B3:K3)-MIN(B3:K3) -> 6.732 | O3: 293 | P3: 325 | Q3: =M3/M3*100 -> 100
A4: 3 | B4: 305.8518519 | C4: 304.8927273 | D4: 310.91 | E4: 314.44 | F4: 305.7689655 | G4: 313.36 | H4: 304.3 | I4: 306.398 | J4: 307.83 | K4: 309.1428571 | L4: 309 | M4: 308.2894402 | N4: 10.14 | O4: 293 | P4: 325 | Q4: =M4/M$3*100 -> 98.90765314
A5: 4 | B5: 304.962963 | C5: 306.2325 | D5: 308.7 | E5: 315.21 | F5: 308.8 | G5: 305.3589744 | H5: 303.7 | I5: 310.3 | J5: 307.21 | K5: 311.4210526 | L5: 309 | M5: 308.189549 | N5: 11.51 | O5: 293 | P5: 325 | Q5: =M5/M$3*100 -> 98.87560533
A6: 5 | B6: 306.8148148 | C6: 307.1288889 | D6: 310.76 | E6: 314.63 | F6: 308.2525424 | G6: 305.3172043 | H6: 304.2 | I6: 310.176 | J6: 308.69 | K6: 309.9473684 | L6: 309 | M6: 308.5916819 | N6: 10.43 | O6: 293 | P6: 325 | Q6: 99.00462052
A7: 6 | B7: 308.2962963 | C7: 306.7754545 | D7: 308.59 | E7: 313.9 | F7: 308.7984615 | G7: 304.0754717 | H7: 308.7 | I7: 310.455 | J7: 308.9 | K7: 310 | L7: 309 | M7: 308.8490684 | N7: 9.824528302 | O7: 293 | P7: 325 | Q7: 99.08719713
A8: 7 | B8: 306.6875 | C8: 305.9535 | D8: 306.23 | E8: 312.88 | F8: 307.957377 | G8: 309.5325203 | H8: 308.2 | I8: 310.291 | J8: 308 | K8: 308.9090909 | L8: 309 | M8: 308.4640988 | N8: 6.9265 | O8: 293 | P8: 325 | Q8: 98.96368839
A9: 8 | B9: 304.65625 | C9: 310.4595455 | D9: 306.93 | E9: 312.85 | F9: 307.3876923 | G9: 310.8508772 | H9: 307.8 | I9: 308.94 | J9: 306.56 | K9: 308.5454545 | L9: 309 | M9: 308.497982 | N9: 8.19375 | O9: 293 | P9: 325 | Q9: 98.97455902
A10: 9 | B10: 306.125 | C10: 307.5831579 | D10: 307.35 | E10: 313.37 | F10: 308.0692308 | G10: 310.2234848 | H10: 307.5 | I10: 308.837 | J10: 304.55 | K10: 307.7727273 | L10: 309 | M10: 308.1380601 | N10: 8.82 | O10: 293 | P10: 325 | Q10: 98.85908628
A11: 10 | B11: 307.3125 | C11: 304.809 | D11: 309.48 | E11: 305.73 | F11: 306.5017544 | G11: 309.8968254 | H11: 307.4 | I11: 305.476 | J11: 308.67 | K11: 306.8 | L11: 309 | M11: 307.207608 | N11: 5.087825397 | O11: 293 | P11: 325 | Q11: 98.56057189
A12: 11 | B12: 307.4375 | C12: 307.8975 | D12: 310.35 | E12: 306.11 | F12: 306.7483333 | G12: 307.8695652 | H12: 307.8 | I12: 306.363 | J12: 307.12 | K12: 308.4 | L12: 309 | M12: 307.6095899 | N12: 4.24 | O12: 293 | P12: 325 | Q12: 98.68953863
A13: 12 | B13: 306.84375 | C13: 304.8862857 | D13: 311.06 | E13: 306.26 | F13: 308.0842105 | G13: 306.780303 | H13: 306.6 | I13: 308.707 | J13: 309.67 | K13: 308.625 | L13: 309 | M13: 307.7516549 | N13: 6.173714286 | O13: 293 | P13: 325 | Q13: 98.73511698
A14: 1 | B14: 305 | C14: 303.8433 | D14: 310.97 | E14: 304.29 | F14: 307.1280702 | G14: 307.8333333 | H14: 306 | I14: 308.802 | J14: 309.03 | K14: 308 | L14: 309 | M14: 307.0896704 | N14: 7.1267 | O14: 293 | P14: 325 | Q14: 98.52273429
A15: 2 | B15: 306.6875 | C15: 304.7725 | D15: 310.74 | E15: 304.25 | F15: 307.4915254 | G15: 307.297619 | H15: 307 | I15: 309.103 | J15: 308.88 | K15: 309.1578947 | L15: 309 | M15: 307.5380039 | N15: 6.49 | O15: 293 | P15: 325 | Q15: 98.66657191
A16: 3 | B16: 305.90625 | C16: 306.8954545 | D16: 311.57 | E16: 301.11 | F16: 308.2296875 | G16: 306.5178571 | H16: 308.1 | I16: 307.687 | J16: 304.14 | K16: 309.1666667 | L16: 309 | M16: 306.9322916 | N16: 10.46 | O16: 293 | P16: 325 | Q16: 98.47224289
A17: 4 | B17: 305.78125 | C17: 307.40085 | E17: 301.04 | F17: 309.9362069 | G17: 306.0326087 | H17: 307.1 | I17: 308.063 | J17: 301.02 | L17: 309 | M17: 305.7967394 | N17: 8.916206897 | O17: 293 | P17: 325 | Q17: 98.10792682
A18: 5 | B18: 306.40625 | C18: 306.01915 | E18: 301.14 | F18: 306.3508772 | G18: 310.1904762 | H18: 305.3 | I18: 307.366 | J18: 300.74 | L18: 309 | M18: 305.4390942 | N18: =MAX(B18:K18)-MIN(B18:K18) -> 9.45047619 | O18: 293 | P18: 325 | Q18: =M18/M$3*100 -> 97.99318447
A19: 6 | L19: 309 | N19: =MAX(B19:K19)-MIN(B19:K19) -> 0 | O19: 293 | P19: 325 | Q19: =M19/M$3*100 -> 0
A20: 7 | L20: 309 | N20: =MAX(B20:K20)-MIN(B20:K20) -> 0 | O20: 293 | P20: 325 | Q20: =M20/M$3*100 -> 0

Sheet TCH
F1: TCH
A2: 月 | B2: 千葉大 | C2: がんｾﾝﾀｰ | D2: 船橋中央 | E2: 県立佐原 | F2: 千葉ﾘﾊﾋﾞﾘ | G2: 順大浦安 | H2: 千葉青葉 | I2: 東歯大市川 | J2: 千葉MC | K2: こども病院 | L2: 認証値 | M2: 10病院平均 | N2: R | O2: 下限 | P2: 上限 | Q2: 2015.02月値を100％に対する変化率
A3: 2 | D3: 142.8 | E3: 138.98 | G3: 142.0833333 | I3: 142.75 | L3: 141 | M3: =AVERAGE(B3:K3) -> 141.6533333 | N3: =MAX(B3:K3)-MIN(B3:K3) -> 3.82 | O3: 133 | P3: 149 | Q3: =M3/M3*100 -> 100
A4: 3 | B4: 141.1481481 | C4: 141.5095455 | D4: 142.64 | E4: 138.91 | F4: 143.3241379 | G4: 141.7826087 | H4: 140.5 | I4: 143.723 | J4: 139.38 | K4: 140.90625 | L4: 141 | M4: 141.382369 | N4: 4.813 | O4: 133 | P4: 149 | Q4: =M4/M$3*100 -> 99.80871307
A5: 4 | B5: 140.962963 | C5: 141.8205 | D5: 141.9 | E5: 139.01 | F5: 143.646875 | G5: 141.2564103 | H5: 140.9 | I5: 142.313 | J5: 138.87 | K5: 141.0454545 | L5: 141 | M5: 141.1725203 | N5: 4.776875 | O5: 133 | P5: 149 | Q5: =M5/M$3*100 -> 99.6605706
A6: 5 | B6: 141.7037037 | C6: 142.09 | D6: 141.74 | E6: 138.74 | F6: 143.1694915 | G6: 141.5260417 | H6: 140.3 | I6: 141.553 | J6: 140.69 | K6: 140.35 | L6: 141 | M6: 141.1862237 | N6: 4.429491525 | O6: 133 | P6: 149 | Q6: 99.67024451
A7: 6 | B7: 140.6666667 | C7: 140.9763636 | D7: 141.86 | E7: 138.56 | F7: 143.7 | G7: 142.3349057 | H7: 141.4 | I7: 142.5 | J7: 141.5 | K7: 140.2380952 | L7: 141 | M7: 141.3736031 | N7: 5.14 | O7: 133 | P7: 149 | Q7: 99.80252479
A8: 7 | B8: 140.25 | C8: 141.044 | D8: 141.28 | E8: 139.1 | F8: 144.4409836 | G8: 141.7792793 | H8: 141.7 | I8: 142.186 | J8: 141.44 | K8: 140.2941176 | L8: 141 | M8: 141.3514381 | N8: 5.3409836 | O8: 133 | P8: 149 | Q8: 99.78687739
A9: 8 | B9: 140.21875 | C9: 141.5581818 | D9: 142.2 | E9: 138.49 | F9: 143.321875 | G9: 142.0263158 | H9: 139.2 | I9: 141.238 | J9: 139.89 | K9: 140 | L9: 141 | M9: 140.8143123 | N9: 4.831875 | O9: 133 | P9: 149 | Q9: 99.40769408
A10: 9 | B10: 140.1875 | C10: 141.01 | D10: 142.07 | E10: 139.14 | F10: 143.1288889 | G10: 142.5606061 | H10: 138.5 | I10: 143.093 | J10: 137.81 | K10: 140.3636364 | L10: 141 | M10: 140.7863631 | N10: 5.318888889 | O10: 133 | P10: 149 | Q10: 99.38796343
A11: 10 | B11: 140.65625 | C11: 142.187 | D11: 141.51 | E11: 139.28 | F11: 143.3245902 | G11: 143.0625 | H11: 139.1 | I11: 141.77 | J11: 139.57 | K11: 140.3684211 | L11: 141 | M11: 141.0828761 | N11: 4.224590164 | O11: 133 | P11: 149 | Q11: 99.59728642
A12: 11 | B12: 140.34375 | C12: 143.1925 | D12: 141.57 | E12: 139.47 | F12: 144.1516667 | G12: 143.8106061 | H12: 140.3 | I12: 140.8 | J12: 140.64 | K12: 141 | L12: 141 | M12: 141.5278523 | N12: 4.681666667 | O12: 133 | P12: 149 | Q12: 99.9114168
A13: 12 | B13: 141.09375 | C13: 141.898619 | D13: 142.39 | E13: 139.8 | F13: 143.8105263 | G13: 143.787037 | H13: 140.7 | I13: 139.788 | J13: 141.11 | K13: 141.3125 | L13: 141 | M13: 141.5690432 | N13: 4.022526316 | O13: 133 | P13: 149 | Q13: 99.94049551
A14: 1 | B14: 140.84375 | C14: 142.1583 | D14: 141.21 | E14: 139.06 | F14: 143.5448276 | G14: 143.0416667 | H14: 140.4 | I14: 139.012 | J14: 141.79 | K14: 140.5294118 | L14: 141 | M14: 141.1589956 | N14: 4.532827586 | O14: 133 | P14: 149 | Q14: 99.65102287
A15: 2 | B15: 140.71875 | C15: 142.29665 | D15: 142.1 | E15: 138.08 | F15: 142.7583333 | G15: 143.8333333 | H15: 141.2 | I15: 140.228 | J15: 140.85 | K15: 140.4736842 | L15: 141 | M15: 141.2538751 | N15: 5.753333333 | O15: 133 | P15: 149 | Q15: 99.71800293
A16: 3 | B16: 140.6875 | C16: 142.1507727 | D16: 141.7 | E16: 138.77 | F16: 142.39375 | G16: 143.6089744 | H16: 140.9 | I16: 139.882 | J16: 139.73 | K16: 140.5555556 | L16: 141 | M16: 141.0378553 | N16: 4.838974359 | O16: 133 | P16: 149 | Q16: 99.565504
A17: 4 | B17: 140.53125 | C17: 142.9942 | E17: 140.88 | F17: 143.5896552 | G17: 142.9351852 | H17: 142.3 | I17: 140.544 | J17: 140.08 | L17: 141 | M17: 141.7317863 | N17: 3.509655172 | O17: 133 | P17: 149 | Q17: 100.0553838
A18: 5 | B18: 140.625 | C18: 141.765 | E18: 140.23 | F18: 142.5711864 | G18: 142.15 | H18: 144.2 | I18: 140.783 | J18: 140.2 | L18: 141 | M18: 141.5655233 | N18: =MAX(B18:K18)-MIN(B18:K18) -> 4 | O18: 133 | P18: 149 | Q18: =M18/M$3*100 -> 99.93801062
A19: 6 | L19: 141 | N19: =MAX(B19:K19)-MIN(B19:K19) -> 0 | O19: 133 | P19: 149 | Q19: =M19/M$3*100 -> 0
A20: 7 | L20: 141 | N20: =MAX(B20:K20)-MIN(B20:K20) -> 0 | O20: 133 | P20: 149 | Q20: =M20/M$3*100 -> 0

Sheet TG
F1: TG
A2: 月 | B2: 千葉大 | C2: がんｾﾝﾀｰ | D2: 船橋中央 | E2: 県立佐原 | F2: 千葉ﾘﾊﾋﾞﾘ | G2: 順大浦安 | H2: 千葉青葉 | I2: 東歯大市川 | J2: 千葉MC | K2: こども病院 | L2: 認証値 | M2: 10病院平均 | N2: R | O2: 下限 | P2: 上限 | Q2: 2015.02月値を100％に対する変化率
A3: 2 | D3: 49.88 | E3: 48.72 | G3: 49.75 | I3: 50.458 | L3: 50 | M3: =AVERAGE(B3:K3) -> 49.702 | N3: =MAX(B3,D3,E3,I3)-MIN(B3,D3,E3,I3) -> 1.738 | O3: 47 | P3: 53 | Q3: =M3/M3*100 -> 100
A4: 3 | B4: 51.96296296 | C4: 49.34863636 | D4: 49.64 | E4: 48.66 | F4: 50.21034483 | G4: 49.42307692 | H4: 50.5 | I4: 50.606 | J4: 48.01 | K4: 50.86363636 | L4: 50 | M4: 49.92246574 | N4: 3.302962963 | O4: 47 | P4: 53 | Q4: =M4/M$3*100 -> 100.4435752
A5: 4 | B5: 51.77777778 | C5: 49.4555 | D5: 49.92 | E5: 48.68 | F5: 50.2109375 | G5: 49.6474359 | H5: 50.6 | I5: 50.579 | J5: 48 | K5: 50.6875 | L5: 50 | M5: 49.95581512 | N5: 3.097777778 | O5: 47 | P5: 53 | Q5: =M5/M$3*100 -> 100.5106739
A6: 5 | B6: 51.88888889 | C6: 49.67555556 | D6: 49.05 | E6: 48.13 | F6: 50.67966102 | G6: 49.23232323 | H6: 50.2 | I6: 49.726 | J6: 48.47 | K6: 52 | L6: 50 | M6: 49.90524287 | N6: 3.758888889 | O6: 47 | P6: 53 | Q6: 100.4089229
A7: 6 | B7: 51.81481481 | C7: 49.20227273 | D7: 49.25 | E7: 48.34 | F7: 51.19538462 | G7: 49.5 | H7: 50.1 | I7: 49.625 | J7: 49.4 | K7: 51.83333333 | L7: 50 | M7: 50.02608055 | N7: 3.474814815 | O7: 47 | P7: 53 | Q7: 100.6520473
A8: 7 | B8: 51.78125 | C8: 48.9535 | D8: 49.05 | E8: 48.17 | F8: 50.74590164 | G8: 50.475 | H8: 49.8 | I8: 49.24 | J8: 49.15 | K8: 52.05882353 | L8: 50 | M8: 49.94244752 | N8: 3.61125 | O8: 47 | P8: 53 | Q8: 100.4837784
A9: 8 | B9: 51.6875 | C9: 48.99272727 | D9: 48.95 | E9: 47.93 | F9: 50.7625 | G9: 49.98245614 | H9: 49.5 | I9: 49.125 | J9: 49 | K9: 52.31818182 | L9: 50 | M9: 49.82483652 | N9: =MAX(B9,D9,E9,F9,I9)-MIN(B9,D9,E9,F9,I9) -> 3.7575 | O9: 47 | P9: 53 | Q9: 100.247146
A10: 9 | B10: 51.84375 | C10: 49.93263158 | D10: 48.95 | E10: 48.24 | F10: 50.85757576 | G10: 49.65151515 | H10: 49.7 | I10: 50.232 | J10: 48.6 | K10: 51.95454545 | L10: 50 | M10: 49.99620179 | N10: =MAX(B10,D10,E10,F10,I10)-MIN(B10,D10,E10,F10,I10) -> 3.60375 | O10: 47 | P10: 53 | Q10: 100.5919315
A11: 10 | B11: 51.59375 | C11: 49.8325 | D11: 48.62 | E11: 48.23 | F11: 50.97540984 | G11: 49.78571429 | H11: 49.6 | I11: 49.533 | J11: 49.8 | K11: 51.61111111 | L11: 50 | M11: 49.95814852 | N11: =MAX(B11,D11,E11,F11,I11)-MIN(B11,D11,E11,F11,I11) -> 3.36375 | O11: 47 | P11: 53 | Q11: 100.5153686
A12: 11 | B12: 51.9375 | C12: 49.8275 | D12: 48.9 | E12: 48.3 | F12: 51.23 | G12: 50.39855072 | H12: 49.6 | I12: 49.328 | J12: 49.89 | K12: 52.3 | L12: 50 | M12: 50.17115507 | N12: =MAX(B12,D12,E12,F12,H12,I12)-MIN(B12,D12,E12,F12,H12,I12) -> 3.6375 | O12: 47 | P12: 53 | Q12: 100.943936
A13: 12 | B13: 51.96875 | C13: 49.19195238 | D13: 49.11 | E13: 48.34 | F13: 50.89824561 | G13: 50.43181818 | H13: 50 | I13: 48.543 | J13: 50.31 | K13: 50.3125 | L13: 50 | M13: 49.91062662 | N13: 3.62875 | O13: 47 | P13: 53 | Q13: 100.419755
A14: 1 | B14: 51.90625 | C14: 49.5883 | D14: 48.66 | E14: 47.3 | F14: 51.05344828 | G14: 51.19047619 | H14: 49.3 | I14: 48.32 | J14: 50.48 | K14: 52.05882353 | L14: 50 | M14: 49.9857298 | N14: 4.60625 | O14: 47 | P14: 53 | Q14: 100.5708619
A15: 2 | B15: 51.96875 | C15: 49.4858 | D15: 49 | E15: 47.9 | F15: 50.68 | G15: 50.5625 | H15: 49 | I15: 48.382 | J15: 50.52 | K15: 51.78947368 | L15: 50 | M15: 49.92885237 | N15: 4.06875 | O15: 47 | P15: 53 | Q15: 100.456425
A16: 3 | B16: 52.0625 | C16: 49.36518182 | D16: 49.89 | E16: 48.15 | F16: 50.41940299 | G16: 50.57333333 | H16: 49.7 | I16: 48.233 | J16: 49.84 | K16: 52.22222222 | L16: 50 | M16: 50.04556404 | N16: 3.9125 | O16: 47 | P16: 53 | Q16: 100.6912479
A17: 4 | B17: 51.96875 | C17: 49.5225 | E17: 48.82 | F17: 50.75344828 | G17: 50.37681159 | H17: 50.4 | I17: 49.394 | J17: 48.83 | L17: 50 | M17: 50.00818873 | N17: 3.14875 | O17: 47 | P17: 53 | Q17: 100.6160491
A18: 5 | B18: 51.96875 | C18: 49.80665 | E18: 49.24 | F18: 50.73389831 | G18: 49.04761905 | H18: 51.9 | I18: 49.559 | J18: 49 | L18: 50 | M18: 50.15698967 | N18: =MAX(B18:K18)-MIN(B18:K18) -> 2.96875 | O18: 47 | P18: 53 | Q18: =M18/M$3*100 -> 100.9154353
A19: 6 | L19: 50 | N19: =MAX(B19:K19)-MIN(B19:K19) -> 0 | O19: 47 | P19: 53 | Q19: =M19/M$3*100 -> 0
A20: 7 | L20: 50 | N20: =MAX(B20:K20)-MIN(B20:K20) -> 0 | O20: 47 | P20: 53 | Q20: =M20/M$3*100 -> 0

Sheet HDL
F1: HDL
A2: 月 | B2: 千葉大 | C2: がんｾﾝﾀｰ | D2: 船橋中央 | E2: 県立佐原 | F2: 千葉ﾘﾊﾋﾞﾘ | G2: 順大浦安 | H2: 千葉青葉 | I2: 東歯大市川 | J2: 千葉MC | K2: こども病院 | L2: 協和認証値 | M2: 協和平均 | N2: R | O2: 積水認証値 | P2: 積水平均 | Q2: R | R2: 協和下限 | S2: 協和上限 | T2: 積水下限 | U2: 積水上限 | V2: 2015.02月値を100％に対する変化率
A3: 2 | D3: 50.73 | E3: 49.61 | G3: 50.78888889 | I3: 49.997 | L3: 43 | N3: =MAX(B3,C3,F3,K3)-MIN(B3,C3,F3,K3) -> 0 | O3: 50 | P3: =AVERAGE(C3,D3,E3,G3,H3,I3,J3,K3) -> 50.28147222 | Q3: =MAX(D3,E3,G3,I3,J3)-MIN(D3,E3,G3,I3,J3) -> 1.178888889 | R3: 40 | S3: 46 | T3: 47 | U3: 53 | V3: =P3/P3*100 -> 100
A4: 3 | B4: 43.68518519 | C4: 49.75772727 | D4: 50.18 | E4: 49.9 | F4: 43.04137931 | G4: 50.956 | H4: 47.7 | I4: 50.793 | J4: 49.78 | K4: 50.38 | L4: 43 | M4: =AVERAGE(B4,F4) -> 43.36328225 | N4: 7.33862069 | O4: 50 | P4: 49.93084091 | Q4: 1.176 | R4: 40 | S4: 46 | T4: 47 | U4: 53 | V4: =P4/P$3*100 -> 99.30266299
A5: 4 | B5: 43.37407407 | C5: 50.1095 | D5: 49.92 | E5: 50 | F5: 43.25625 | G5: 49.54466667 | H5: 48.3 | I5: 50.52 | J5: 49.49 | K5: 50.375 | L5: 43 | M5: 43.31516204 | N5: 7.11875 | O5: 50 | P5: 49.78239583 | Q5: 1.03 | R5: 40 | S5: 46 | T5: 47 | U5: 53 | V5: =P5/P$3*100 -> 99.00743481
A6: 5 | B6: 43.05185185 | C6: 49.96333333 | D6: 50.05 | E6: 49.89 | F6: 43.01355932 | G6: 49.57828283 | H6: 48.3 | I6: 50.164 | J6: 50.41 | K6: 50.77368421 | L6: 43 | M6: 43.03270559 | N6: 7.760124888 | O6: 50 | P6: 49.89116255 | Q6: 0.8317171717 | R6: 40 | S6: 46 | T6: 47 | U6: 53 | V6: 99.2237505
A7: 6 | B7: 42.87037037 | C7: 49.75772727 | D7: 49.8 | E7: 49.99 | F7: 43.08461538 | G7: 49.78666667 | H7: 49.1 | I7: 49.093 | J7: 50.53 | K7: 51.1 | L7: 43 | M7: 42.97749288 | N7: 8.22962963 | O7: 50 | P7: 49.89467424 | Q7: 1.437 | R7: 40 | S7: 46 | T7: 47 | U7: 53 | V7: 99.23073458
A8: 7 | B8: 43.246875 | C8: 49.7705 | D8: 49.73 | E8: 49.76 | F8: 43.03934426 | G8: 49.65372807 | H8: 49.3 | I8: 49.114 | J8: 50.51 | K8: 49.95555556 | L8: 43 | M8: 43.14310963 | N8: 6.916211296 | O8: 50 | P8: 49.72422295 | Q8: 1.396 | R8: 40 | S8: 46 | T8: 47 | U8: 53 | V8: 98.89174035
A9: 8 | B9: 43.121875 | C9: 49.95318182 | D9: 50.18 | E9: 49.4 | F9: 42.7375 | G9: 49.89385965 | H9: 49.6 | I9: 49.239 | J9: 50.24 | K9: 50.21818182 | L9: 43 | M9: 42.9296875 | N9: 7.480681818 | O9: 50 | P9: 49.84052791 | Q9: 1.001 | R9: 40 | S9: 46 | T9: 47 | U9: 53 | V9: 99.12304813
A10: 9 | B10: 42.684375 | C10: 50.54631579 | D10: 50.27 | E10: 49.93 | F10: 42.79090909 | G10: 50.05606061 | H10: 49.7 | I10: 50.048 | J10: 50.18 | K10: 50.38461538 | L10: 43 | M10: 42.73764205 | N10: 7.861940789 | O10: 50 | P10: 50.13937397 | Q10: 0.34 | R10: 40 | S10: 46 | T10: 47 | U10: 53 | V10: 99.71739441
A11: 10 | B11: 42.8875 | C11: 50.425 | D11: 49.77 | E11: 49.9 | F11: 42.74590164 | G11: 50.55 | H11: 50.1 | I11: 49.903 | J11: 49.68 | K11: 50.61176471 | L11: 43 | M11: 42.81670082 | N11: 7.865863067 | O11: 50 | P11: 50.11747059 | Q11: 0.87 | R11: 40 | S11: 46 | T11: 47 | U11: 53 | V11: 99.67383287
A12: 11 | B12: 43.175 | C12: 50.5765 | D12: 49.8 | E12: 49.74 | F12: 42.9557377 | G12: 50.08405797 | H12: 49.9 | I12: 49.931 | J12: 49.69 | K12: 50.6375 | L12: 43 | M12: 43.06536885 | N12: 7.681762295 | O12: 50 | P12: 50.04488225 | Q12: 0.394057971 | R12: 40 | S12: 46 | T12: 47 | U12: 53 | V12: 99.52946888
A13: 12 | B13: 42.95 | C13: 50.70190476 | D13: 50.54 | E13: 49.76 | F13: 42.90526316 | G13: 50.24848485 | H13: 49.5 | I13: 50.194 | J13: 49.58 | K13: 50.88125 | L13: 43 | M13: =AVERAGE(B13,F13) -> 42.92763158 | N13: =MAX(B13,C13,F13,K13)-MIN(B13,C13,F13,K13) -> 7.975986842 | O13: 50 | P13: 50.17570495 | Q13: 0.96 | R13: 40 | S13: 46 | T13: 47 | U13: 53 | V13: 99.78964961
A14: 1 | B14: 43.13125 | C14: 50.71995 | D14: 49.79 | E14: 49.6 | F14: 43.18275862 | G14: 50.56111111 | H14: 49.4 | I14: 50.28 | J14: 49.84 | K14: 50.27647059 | L14: 43 | M14: =AVERAGE(B14,F14) -> 43.15700431 | N14: =MAX(B14,C14,F14,K14)-MIN(B14,C14,F14,K14) -> 7.5887 | O14: 50 | P14: 50.05844146 | Q14: 0.9611111111 | R14: 40 | S14: 46 | T14: 47 | U14: 53 | V14: 99.5564355
A15: 2 | B15: 42.890625 | C15: 49.64335 | D15: 49.98 | E15: 49.65 | F15: 42.91 | G15: 50.51369048 | H15: 49.4 | I15: 49.713 | J15: 49.46 | K15: 50.11052632 | L15: 43 | M15: =AVERAGE(B15,F15) -> 42.9003125 | N15: 7.219901316 | O15: 50 | P15: 49.80882085 | Q15: 1.053690476 | R15: 40 | S15: 46 | T15: 47 | U15: 53 | V15: 99.05998899
A16: 3 | B16: 43.178125 | C16: 50.08936364 | D16: 49.84 | E16: 49.73 | F16: 42.93432836 | G16: 50.09166667 | H16: 49.2 | I16: 49.704 | J16: 49.39 | K16: 50.26 | L16: 43 | M16: =AVERAGE(B16,F16) -> 43.05622668 | N16: 7.325671642 | O16: 50 | P16: 49.78812879 | Q16: 0.7016666667 | R16: 40 | S16: 46 | T16: 47 | U16: 53 | V16: 99.01883654
A17: 4 | B17: 42.840625 | C17: 49.9725 | E17: 49.43 | F17: 42.96666667 | G17: 50.49565217 | H17: 49.7 | I17: 49.206 | J17: 50.48 | L17: 43 | M17: =AVERAGE(B17,F17) -> 42.90364583 | N17: 7.131875 | O17: 50 | P17: 49.88069203 | Q17: 1.289652174 | R17: 40 | S17: 46 | T17: 47 | U17: 53 | V17: 99.20292669
A18: 5 | B18: 42.9 | C18: 50.1817 | E18: 49.65 | F18: 42.86440678 | G18: 50.985 | H18: 50.6 | I18: 49.702 | J18: 50.18 | L18: 43 | M18: =AVERAGE(B18,F18) -> 42.88220339 | N18: =MAX(B18,C18,F18,K18)-MIN(B18,C18,F18,K18) -> 7.31729322 | O18: 50 | P18: 50.21645 | Q18: =MAX(D18,E18,G18,I18,J18)-MIN(D18,E18,G18,I18,J18) -> 1.335 | R18: 40 | S18: 46 | T18: 47 | U18: 53 | V18: 99.87068354
A19: 6 | L19: 43 | N19: =MAX(B19,C19,F19,K19)-MIN(B19,C19,F19,K19) -> 0 | O19: 50 | Q19: =MAX(D19,E19,G19,I19,J19)-MIN(D19,E19,G19,I19,J19) -> 0 | R19: 40 | S19: 46 | T19: 47 | U19: 53 | V19: 0
A20: 7 | L20: 43 | N20: =MAX(B20,C20,F20,K20)-MIN(B20,C20,F20,K20) -> 0 | O20: 50 | Q20: =MAX(D20,E20,G20,I20,J20)-MIN(D20,E20,G20,I20,J20) -> 0 | R20: 40 | S20: 46 | T20: 47 | U20: 53 | V20: 0

Sheet TBIL
F1: TBIL
A2: 月 | B2: 千葉大 | C2: がんｾﾝﾀｰ | D2: 船橋中央 | E2: 県立佐原 | F2: 千葉ﾘﾊﾋﾞﾘ | G2: 順大浦安 | H2: 千葉青葉 | I2: 東歯大市川 | J2: 千葉MC | K2: こども病院 | L2: 認証値 | M2: 10病院平均 | N2: R | O2: 下限 | P2: 上限 | Q2: 2015.02月値を100％に対する変化率
A3: 2 | D3: 1.972 | E3: 2.04 | G3: 1.920526316 | I3: 1.926 | L3: 2 | M3: =AVERAGE(B3:K3) -> 1.964631579 | N3: =MAX(B3:K3)-MIN(B3:K3) -> 0.1194736842 | O3: 1.8 | P3: 2.2 | Q3: =M3/M3*100 -> 100
A4: 3 | B4: 1.911111111 | C4: 2.086727273 | D4: 1.968 | E4: 2.05 | F4: 2.048275862 | G4: 1.930833333 | H4: 2.03 | I4: 1.922 | J4: 2 | K4: 1.970967742 | L4: 2 | M4: 1.991791532 | N4: 0.1756161616 | O4: 1.8 | P4: 2.2 | Q4: =M4/M$3*100 -> 101.3824451
A5: 4 | B5: 1.923333333 | C5: 2.09455 | D5: 1.998 | E5: 2.05 | F5: 2.04875 | G5: 1.95525641 | H5: 2.03 | I5: 1.919 | J5: 1.99 | K5: 1.913636364 | L5: 2 | M5: 1.992252611 | N5: 0.1809136364 | O5: 1.8 | P5: 2.2 | Q5: =M5/M$3*100 -> 101.4059141
A6: 5 | B6: 1.925555556 | C6: 2.089277778 | D6: 1.939 | E6: 2.04 | F6: 1.98779661 | G6: 1.962447917 | H6: 2.03 | I6: 1.908 | J6: 1.95 | K6: 1.9 | L6: 2 | M6: 1.973207786 | N6: 0.1892777778 | O6: 1.8 | P6: 2.2 | Q6: 100.43653
A7: 6 | B7: 1.91962963 | C7: 2.097409091 | D7: 1.984 | E7: 2.05 | F7: 1.988461538 | G7: 1.961378788 | H7: 2.01 | I7: 1.878 | J7: 1.97 | K7: 1.914285714 | L7: 2 | M7: 1.977316476 | N7: 0.2194090909 | O7: 1.8 | P7: 2.2 | Q7: 100.6456629
A8: 7 | B8: 1.906875 | C8: 2.1046 | D8: 1.972 | E8: 2.07 | F8: 1.971967213 | G8: 1.956239837 | H8: 2.01 | I8: 1.857 | J8: 1.99 | K8: 1.9 | L8: 2 | M8: 1.973868205 | N8: 0.2476 | O8: 1.8 | P8: 2.2 | Q8: 100.4701455
A9: 8 | B9: 1.9134375 | C9: 2.091954545 | D9: 1.9666 | E9: 2.07 | F9: 1.991692308 | G9: 1.945555556 | H9: 2.04 | I9: 1.87 | J9: 1.94 | K9: 1.922727273 | L9: 2 | M9: 1.975196718 | N9: 0.2219545455 | O9: 1.8 | P9: 2.2 | Q9: 100.5377669
A10: 9 | B10: 1.9009375 | C10: 2.064842105 | D10: 1.965 | E10: 2.04 | F10: 2.02296875 | G10: 1.947121212 | H10: 2.05 | I10: 1.873 | J10: 1.91 | K10: 1.895454545 | L10: 2 | M10: 1.966932411 | N10: 0.1918421053 | O10: 1.8 | P10: 2.2 | Q10: 100.1171127
A11: 10 | B11: 1.8971875 | C11: 2.04815 | D11: 1.9 | E11: 2.04 | F11: 1.971 | G11: 1.94968254 | H11: 2.032 | I11: 1.887 | J11: 1.97 | K11: 1.895238095 | L11: 2 | M11: 1.959025813 | N11: 0.16115 | O11: 1.8 | P11: 2.2 | Q11: 99.71466582
A12: 11 | B12: 1.905 | C12: 2.0488 | D12: 1.9 | E12: 2.02 | F12: 1.974333333 | G12: 1.953115942 | H12: 2.03 | I12: 1.891 | J12: 2 | K12: 1.91 | L12: 2 | M12: 1.963224928 | N12: 0.1578 | O12: 1.8 | P12: 2.2 | Q12: 99.92840126
A13: 12 | B13: 1.930625 | C13: 2.056857143 | D13: 1.9 | E13: 2.06 | F13: 1.960892857 | G13: 1.956363636 | H13: 2.03 | I13: 1.912 | J13: 2 | K13: 1.95625 | L13: 2 | M13: 1.976298864 | N13: 0.16 | O13: 1.8 | P13: 2.2 | Q13: 100.5938663
A14: 1 | B14: 1.935625 | C14: 2.0557 | D14: 1.9 | E14: 2.05 | F14: 1.971896552 | G14: 1.941 | H14: 2.01 | I14: 1.899 | J14: 2 | K14: 1.929411765 | L14: 2 | M14: 1.969263332 | N14: 0.1567 | O14: 1.8 | P14: 2.2 | Q14: 100.2357568
A15: 2 | B15: 1.9328125 | C15: 2.0449 | D15: 1.9 | E15: 2.05 | F15: 1.988135593 | G15: 1.940416667 | H15: 2.03 | I15: 1.892 | J15: 1.99 | K15: 1.973684211 | L15: 2 | M15: 1.974194897 | N15: 0.158 | O15: 1.8 | P15: 2.2 | Q15: 100.4867741
A16: 3 | B16: 1.9353125 | C16: 2.045 | D16: 1.907 | E16: 2.04 | F16: 1.97516129 | G16: 1.944970238 | H16: 2.01 | I16: 1.906 | J16: 1.97 | K16: 1.911111111 | L16: 2 | M16: 1.964455514 | N16: 0.139 | O16: 1.8 | P16: 2.2 | Q16: 99.99103827
A17: 4 | B17: 1.9209375 | C17: 2.04275 | E17: 2.05 | F17: 1.992280702 | G17: 1.952246377 | H17: 2.03 | I17: 1.892 | J17: 1.93 | L17: 2 | M17: 1.976276822 | N17: 0.158 | O17: 1.8 | P17: 2.2 | Q17: 100.5927444
A18: 5 | B18: 1.9246875 | C18: 2.03725 | E18: 2.04 | F18: 1.967931034 | G18: 1.932857143 | H18: 2.017 | I18: 1.877 | J18: 1.99 | L18: 2 | M18: 1.97334071 | N18: =MAX(B18:K18)-MIN(B18:K18) -> 0.163 | O18: 1.8 | P18: 2.2 | Q18: =M18/M$3*100 -> 100.4432959
A19: 6 | L19: 2 | N19: =MAX(B19:K19)-MIN(B19:K19) -> 0 | O19: 1.8 | P19: 2.2 | Q19: =M19/M$3*100 -> 0
A20: 7 | L20: 2 | N20: =MAX(B20:K20)-MIN(B20:K20) -> 0 | O20: 1.8 | P20: 2.2 | Q20: =M20/M$3*100 -> 0

Sheet TP
F1: TP
A2: 月 | B2: 千葉大 | C2: がんｾﾝﾀｰ | D2: 船橋中央 | E2: 県立佐原 | F2: 千葉ﾘﾊﾋﾞﾘ | G2: 順大浦安 | H2: 千葉青葉 | I2: 東歯大市川 | J2: 千葉MC | K2: こども病院 | L2: 認証値 | M2: 10病院平均 | N2: R | O2: 下限 | P2: 上限 | Q2: 2015.02月値を100％に対する変化率
A3: 2 | D3: 6.653 | E3: 6.53 | G3: 6.5409375 | I3: 6.581 | L3: 6.6 | M3: =AVERAGE(B3:K3) -> 6.576234375 | N3: =MAX(B3:K3)-MIN(B3:K3) -> 0.123 | O3: 6.4 | P3: 6.8 | Q3: =M3/M3*100 -> 100
A4: 3 | B4: 6.552222222 | C4: 6.544272727 | D4: 6.639 | E4: 6.52 | F4: 6.563793103 | G4: 6.583478261 | H4: 6.65 | I4: 6.599 | J4: 6.68 | K4: 6.509677419 | L4: 6.6 | M4: 6.584144373 | N4: 0.1703225806 | O4: 6.4 | P4: 6.8 | Q4: =M4/M$3*100 -> 100.1202816
A5: 4 | B5: 6.551481481 | C5: 6.5309 | D5: 6.585 | E5: 6.52 | F5: 6.5571875 | G5: 6.526307692 | H5: 6.66 | I5: 6.608 | J5: 6.67 | K5: 6.581818182 | L5: 6.6 | M5: 6.579069486 | N5: 0.15 | O5: 6.4 | P5: 6.8 | Q5: =M5/M$3*100 -> 100.0431115
A6: 5 | B6: 6.567037037 | C6: 6.549666667 | D6: 6.563 | E6: 6.51 | F6: 6.562033898 | G6: 6.52334375 | H6: 6.66 | I6: 6.573 | J6: 6.68 | K6: 6.57 | L6: 6.6 | M6: 6.575808135 | N6: 0.17 | O6: 6.4 | P6: 6.8 | Q6: 99.99351848
A7: 6 | B7: 6.598518519 | C7: 6.534272727 | D7: 6.605 | E7: 6.61 | F7: 6.554 | G7: 6.509227273 | H7: 6.66 | I7: 6.598 | J7: 6.72 | K7: 6.561904762 | L7: 6.6 | M7: 6.595092328 | N7: 0.2107727273 | O7: 6.4 | P7: 6.8 | Q7: 100.2867591
A8: 7 | B8: 6.609375 | C8: 6.51865 | D8: 6.582 | E8: 6.68 | F8: 6.560491803 | G8: 6.53204878 | H8: 6.66 | I8: 6.614 | J8: 6.74 | K8: 6.59375 | L8: 6.6 | M8: 6.609031558 | N8: 0.22135 | O8: 6.4 | P8: 6.8 | Q8: 100.4987228
A9: 8 | B9: 6.5978125 | C9: 6.523590909 | D9: 6.591 | E9: 6.61 | F9: 6.553076923 | G9: 6.552464912 | H9: 6.67 | I9: 6.626 | J9: 6.68 | K9: 6.586363636 | L9: 6.6 | M9: 6.599030888 | N9: 0.1564090909 | O9: 6.4 | P9: 6.8 | Q9: 100.3466499
A10: 9 | B10: 6.61625 | C10: 6.548210526 | D10: 6.62 | E10: 6.62 | F10: 6.552923077 | G10: 6.545234848 | H10: 6.71 | I10: 6.713 | J10: 6.67 | K10: 6.595454545 | L10: 6.6 | M10: 6.6191073 | N10: 0.1677651515 | O10: 6.4 | P10: 6.8 | Q10: 100.6519373
A11: 10 | B11: 6.5775 | C11: 6.56015 | D11: 6.59 | E11: 6.62 | F11: 6.559152542 | G11: 6.539206349 | H11: 6.65 | I11: 6.667 | J11: 6.64 | K11: 6.595238095 | L11: 6.6 | M11: 6.599824699 | N11: 0.1277936508 | O11: 6.4 | P11: 6.8 | Q11: 100.3587208
A12: 11 | B12: 6.5853125 | C12: 6.582 | D12: 6.605 | E12: 6.62 | F12: 6.573833333 | G12: 6.537137681 | H12: 6.66 | I12: 6.633 | J12: 6.59 | K12: 6.605 | L12: 6.6 | M12: 6.599128351 | N12: 0.1228623188 | O12: 6.4 | P12: 6.8 | Q12: 100.348132
A13: 12 | B13: 6.6109375 | C13: 6.572857143 | D13: 6.584 | E13: 6.64 | F13: 6.572807018 | G13: 6.543636364 | H13: 6.66 | I13: 6.601 | J13: 6.59 | K13: 6.60625 | L13: 6.6 | M13: 6.598148802 | N13: 0.1163636364 | O13: 6.4 | P13: 6.8 | Q13: 100.3332367
A14: 1 | B14: 6.614375 | C14: 6.5338 | D14: 6.595 | E14: 6.63 | F14: 6.582413793 | G14: 6.560654762 | H14: 6.66 | I14: 6.575 | J14: 6.66 | K14: 6.6 | L14: 6.6 | M14: 6.601124356 | N14: 0.1262 | O14: 6.4 | P14: 6.8 | Q14: 100.3784838
A15: 2 | B15: 6.6040625 | C15: 6.55015 | D15: 6.582 | E15: 6.62 | F15: 6.582833333 | G15: 6.545833333 | H15: 6.692 | I15: 6.603 | J15: 6.68 | K15: 6.6 | L15: 6.6 | M15: 6.605987917 | N15: 0.1461666667 | O15: 6.4 | P15: 6.8 | Q15: 100.4524404
A16: 3 | B16: 6.605625 | C16: 6.614818182 | D16: 6.582 | E16: 6.65 | F16: 6.582424242 | G16: 6.559791667 | H16: 6.67 | I16: 6.576 | J16: 6.66 | K16: 6.53125 | L16: 6.6 | M16: 6.603190909 | N16: 0.13875 | O16: 6.4 | P16: 6.8 | Q16: 100.4099084
A17: 4 | B17: 6.585625 | C17: 6.67525 | E17: 6.64 | F17: 6.595689655 | G17: 6.498768116 | H17: 6.68 | I17: 6.573 | J17: 6.63 | L17: 6.6 | M17: 6.609791596 | N17: 0.1812318841 | O17: 6.4 | P17: 6.8 | Q17: 100.5102802
A18: 5 | B18: 6.6096875 | C18: 6.5549 | E18: 6.6 | F18: 6.600508475 | G18: 6.522619048 | H18: 6.7 | I18: 6.57 | J18: 6.63 | L18: 6.6 | M18: 6.598464378 | N18: =MAX(B18:K18)-MIN(B18:K18) -> 0.1773809524 | O18: 6.4 | P18: 6.8 | Q18: =M18/M$3*100 -> 100.3380354
A19: 6 | L19: 6.6 | N19: =MAX(B19:K19)-MIN(B19:K19) -> 0 | O19: 6.4 | P19: 6.8 | Q19: =M19/M$3*100 -> 0
A20: 7 | L20: 6.6 | N20: =MAX(B20:K20)-MIN(B20:K20) -> 0 | O20: 6.4 | P20: 6.8 | Q20: =M20/M$3*100 -> 0

Sheet ALB
F1: ALB
A2: 月 | B2: 千葉大 | C2: がんｾﾝﾀｰ | D2: 船橋中央 | E2: 県立佐原 | F2: 千葉ﾘﾊﾋﾞﾘ | G2: 順大浦安 | H2: 千葉青葉 | I2: 東歯大市川 | J2: 千葉MC | K2: こども病院 | L2: BCG認証値 | M2: BCG平均 | N2: R | O2: BCP認証値 | P2: BCP平均 | Q2: R | R2: BCG下限 | S2: BCG上限 | T2: BCP下限 | U2: BCP上限 | V2: 2015.02月値を100％に対する変化率
A3: 2 | D3: 4.133 | E3: 4.1 | G3: 4.048289474 | I3: 4.333 | L3: 4.2 | M3: =AVERAGE(B3,H3,I3) -> 4.333 | N3: =MAX(B3,H3,I3,J3)-MIN(B3,H3,I3,J3) -> 0 | O3: 4.1 | P3: =AVERAGE(C3,D3,E3,F3,G3,J3,K3) -> 4.093763158 | Q3: =MAX(C3,D3,E3,F3,G3,K3)-MIN(C3,D3,E3,F3,G3,K3) -> 0.08471052632 | R3: 4 | S3: 4.4 | T3: 3.9 | U3: 4.3 | V3: =P3/P3*100 -> 100
A4: 3 | B4: 4.230740741 | C4: 4.047272727 | D4: 4.141 | E4: 4.12 | F4: 4.103448276 | G4: 4.040384615 | H4: 4.17 | I4: 4.313 | J4: 4.19 | K4: 4.125806452 | L4: 4.2 | M4: =AVERAGE(B4,H4,I4) -> 4.23791358 | N4: 0.143 | O4: 4.1 | P4: =AVERAGE(C4,D4,E4,F4,G4,J4,K4) -> 4.109701724 | Q4: =MAX(C4,D4,E4,F4,G4,K4)-MIN(C4,D4,E4,F4,G4,K4) -> 0.1006153846 | R4: 4 | S4: 4.4 | T4: 3.9 | U4: 4.3 | V4: =P4/P$3*100 -> 100.3893378
A5: 4 | B5: 4.224814815 | C5: 4.0641 | D5: 4.14 | E5: 4.14 | F5: 4.121875 | G5: 4.023333333 | H5: 4.21 | I5: 4.323 | J5: 4.2 | K5: 4.127272727 | L5: 4.2 | M5: 4.252604938 | N5: 0.123 | O5: 4.1 | P5: 4.116654437 | Q5: =MAX(C5,D5,E5,F5,G5,K5)-MIN(C5,D5,E5,F5,G5,K5) -> 0.1166666667 | R5: 4 | S5: 4.4 | T5: 3.9 | U5: 4.3 | V5: =P5/P$3*100 -> 100.5591745
A6: 5 | B6: 4.21962963 | C6: 4.060944444 | D6: 4.142 | E6: 4.14 | F6: 4.125932203 | G6: 4.014747312 | H6: 4.22 | I6: 4.314 | J6: 4.2 | K6: 4.125 | L6: 4.2 | M6: 4.251209877 | N6: 0.114 | O6: 4.1 | P6: 4.115517709 | Q6: =MAX(D6,E6,G6)-MIN(D6,E6,G6) -> 0.1272526882 | R6: 4 | S6: 4.4 | T6: 3.9 | U6: 4.3 | V6: 100.5314072
A7: 6 | B7: 4.205925926 | C7: 4.042136364 | D7: 4.12 | E7: 4.15 | F7: 4.125846154 | G7: 4.012924242 | H7: 4.22 | I7: 4.297 | J7: 4.18 | K7: 4.119047619 | L7: 4.2 | M7: 4.240975309 | N7: 0.117 | O7: 4.1 | P7: 4.10713634 | Q7: =MAX(D7,E7,G7)-MIN(D7,E7,G7) -> 0.1370757576 | R7: 4 | S7: 4.4 | T7: 3.9 | U7: 4.3 | V7: 100.3266721
A8: 7 | B8: 4.203125 | C8: 4.033 | D8: 4.02 | E8: 4.16 | F8: 4.094754098 | G8: 4.121907895 | H8: 4.23 | I8: 4.298 | J8: 4.19 | K8: 4.111764706 | L8: 4.2 | M8: 4.243708333 | N8: 0.108 | O8: 4.1 | P8: 4.104489528 | Q8: =MAX(C8,D8,E8,F8,G8,K8)-MIN(C8,D8,E8,F8,G8,K8) -> 0.14 | R8: 4 | S8: 4.4 | T8: 3.9 | U8: 4.3 | V8: 100.2620174
A9: 8 | B9: 4.2153125 | C9: 4.058863636 | D9: 4.009 | E9: 4.16 | F9: 4.105692308 | G9: 4.168026316 | H9: 4.25 | I9: 4.301 | J9: 4.21 | K9: 4.109090909 | L9: 4.2 | M9: 4.2554375 | N9: 0.091 | O9: 4.1 | P9: 4.117239024 | Q9: 0.1590263158 | R9: 4 | S9: 4.4 | T9: 3.9 | U9: 4.3 | V9: 100.5734544
A10: 9 | B10: 4.2240625 | C10: 4.078473684 | D10: 4.03 | E10: 4.15 | F10: 4.1025 | G10: 4.132103175 | H10: 4.25 | I10: 4.306 | J10: 4.12 | K10: 4.095454545 | L10: 4.2 | M10: 4.260020833 | N10: 0.186 | O10: 4.1 | P10: 4.101218772 | Q10: 0.12 | R10: 4 | S10: 4.4 | T10: 3.9 | U10: 4.3 | V10: 100.1821213
A11: 10 | B11: 4.2240625 | C11: 4.0966 | D11: 4.113 | E11: 4.16 | F11: 4.09 | G11: 4.167579365 | H11: 4.25 | I11: 3.995 | J11: 4.03 | K11: 4.095238095 | L11: 4.2 | M11: =AVERAGE(B11,H11) -> 4.23703125 | N11: =MAX(B11,H11)-MIN(B11,H11) -> 0.0259375 | O11: 4.1 | P11: =AVERAGE(C11,D11,E11,F11,G11,I11,J11,K11) -> 4.093427183 | Q11: =MAX(C11,D11,E11,F11,G11,I11,J11,K11)-MIN(C11,D11,E11,F11,G11,I11,J11,K11) -> 0.1725793651 | R11: 4 | S11: 4.4 | T11: 3.9 | U11: 4.3 | V11: 99.99179299
A12: 11 | B12: 4.2325 | C12: 4.129 | D12: 4.143 | E12: 4.16 | F12: 4.1065 | G12: 4.157246377 | H12: 4.25 | I12: 3.991 | J12: 4.01 | K12: 4.1 | L12: 4.2 | M12: 4.24125 | N12: =MAX(B12,H12)-MIN(B12,H12) -> 0.0175 | O12: 4.1 | P12: 4.099593297 | Q12: =MAX(C12,D12,E12,F12,G12,I12,J12,K12)-MIN(C12,D12,E12,F12,G12,I12,J12,K12) -> 0.169 | R12: 4 | S12: 4.4 | T12: 3.9 | U12: 4.3 | V12: 100.1424152
A13: 12 | B13: 4.2346875 | C13: 4.111857143 | D13: 4.158 | E13: 4.15 | F13: 4.128571429 | G13: 4.12547619 | H13: 4.25 | I13: 3.968 | J13: 4.02 | K13: 4.10625 | L13: 4.2 | M13: 4.24234375 | N13: 0.0153125 | O13: 4.1 | P13: 4.096019345 | Q13: 0.19 | R13: 4 | S13: 4.4 | T13: 3.9 | U13: 4.3 | V13: 100.0551128
A14: 1 | B14: 4.23625 | C14: 4.0643 | D14: 4.174 | E14: 4.15 | F14: 4.142068966 | G14: 4.153555556 | H14: 4.25 | I14: 3.973 | J14: 4.02 | K14: 4.076470588 | L14: 4.2 | M14: 4.243125 | N14: 0.01375 | O14: 4.1 | P14: 4.094174389 | Q14: 0.201 | R14: 4 | S14: 4.4 | T14: 3.9 | U14: 4.3 | V14: 100.0100453
A15: 2 | B15: 4.2346875 | C15: 4.08925 | D15: 4.193 | E15: 4.13 | F15: 4.109666667 | G15: 4.161666667 | H15: 4.28 | I15: 3.952 | J15: 4.05 | K15: 4.057894737 | L15: 4.2 | M15: 4.25734375 | N15: 0.0453125 | O15: 4.1 | P15: 4.092934759 | Q15: 0.241 | R15: 4 | S15: 4.4 | T15: 3.9 | U15: 4.3 | V15: 99.97976436
A16: 3 | B16: 4.198125 | C16: 4.114545455 | D16: 4.205 | E16: 4.13 | F16: 4.11359375 | G16: 4.111925287 | H16: 4.23 | I16: 3.975 | J16: 4.04 | K16: 4.083333333 | L16: 4.2 | M16: 4.2140625 | N16: 0.031875 | O16: 4.1 | P16: 4.096674728 | Q16: 0.23 | R16: 4 | S16: 4.4 | T16: 3.9 | U16: 4.3 | V16: 100.0711221
A17: 4 | B17: 4.1996875 | C17: 4.13895 | E17: 4.14 | F17: 4.103859649 | G17: 4.090217391 | H17: 4.19 | I17: 4.054 | J17: 4.02 | L17: 4.2 | M17: 4.19484375 | N17: 0.0096875 | O17: 4.1 | P17: 4.091171173 | Q17: 0.12 | R17: 4 | S17: 4.4 | T17: 3.9 | U17: 4.3 | V17: 99.93668455
A18: 5 | B18: 4.2028125 | C18: 4.105 | E18: 4.11 | F18: 4.113684211 | G18: 4.150952381 | H18: 4.21 | I18: 4.03 | J18: 4.01 | L18: 4.2 | M18: 4.20640625 | N18: 0.0071875 | O18: 4.1 | P18: 4.086606099 | Q18: 0.140952381 | R18: 4 | S18: 4.4 | T18: 3.9 | U18: 4.3 | V18: =P18/P$3*100 -> 99.82517163
A19: 6 | L19: 4.2 | N19: 0 | O19: 4.1 | Q19: 0 | R19: 4 | S19: 4.4 | T19: 3.9 | U19: 4.3 | V19: =P19/P$3*100 -> 0
A20: 7 | L20: 4.2 | N20: 0 | O20: 4.1 | Q20: 0 | R20: 4 | S20: 4.4 | T20: 3.9 | U20: 4.3 | V20: =P20/P$3*100 -> 0

Sheet BUN
F1: BUN
A2: 月 | B2: 千葉大 | C2: がんｾﾝﾀｰ | D2: 船橋中央 | E2: 県立佐原 | F2: 千葉ﾘﾊﾋﾞﾘ | G2: 順大浦安 | H2: 千葉青葉 | I2: 東歯大市川 | J2: 千葉MC | K2: こども病院 | L2: 認証値 | M2: 10病院平均 | N2: R | O2: 下限 | P2: 上限 | Q2: 2015.02月値を100％に対する変化率
A3: 2 | D3: 32.218 | E3: 32 | G3: 33.16 | I3: 33.581 | L3: 33 | M3: =AVERAGE(B3:K3) -> 32.73975 | N3: =MAX(B3:K3)-MIN(B3:K3) -> 1.581 | O3: 31 | P3: 35 | Q3: =M3/M3*100 -> 100
A4: 3 | B4: 32.85185185 | C4: 32.22068182 | D4: 32.193 | E4: 32.15 | F4: 33.16896552 | G4: 33.14166667 | H4: 33.6 | I4: 33.542 | J4: 32.69 | K4: 32.31290323 | L4: 33 | M4: 32.78710691 | N4: 1.45 | O4: 31 | P4: 35 | Q4: =M4/M$3*100 -> 100.1446465
A5: 4 | B5: 32.80740741 | C5: 32.14955 | D5: 32.392 | E5: 32.31 | F5: 33.065625 | G5: 33.29230769 | H5: 33.8 | I5: 33.725 | J5: 33.23 | K5: 32.46363636 | L5: 33 | M5: 32.92355265 | N5: 1.65045 | O5: 31 | P5: 35 | Q5: =M5/M$3*100 -> 100.5614052
A6: 5 | B6: 32.95925926 | C6: 32.20727778 | D6: 32.284 | E6: 32.18 | F6: 33.25254237 | G6: 33.37828283 | H6: 33.8 | I6: 33.436 | J6: 33.52 | K6: 32.155 | L6: 33 | M6: 32.91723622 | N6: 1.645 | O6: 31 | P6: 35 | Q6: 100.5421123
A7: 6 | B7: 32.98888889 | C7: 32.03981818 | D7: 32.295 | E7: 32.36 | F7: 33.36212121 | G7: 33.04242424 | H7: 34 | I7: 33.401 | J7: 33.43 | K7: 32.18571429 | L7: 33 | M7: 32.91049668 | N7: 1.960181818 | O7: 31 | P7: 35 | Q7: 100.5215271
A8: 7 | B8: 32.875 | C8: 32.6042 | D8: 32.3 | E8: 32.43 | F8: 33.23934426 | G8: 33.21875 | H8: 33.4 | I8: 33.243 | J8: 32.91 | K8: 32.45882353 | L8: 33 | M8: 32.86791178 | N8: 1.1 | O8: 31 | P8: 35 | Q8: 100.3914562
A9: 8 | B9: 32.909375 | C9: 32.55122727 | D9: 32.261 | E9: 32.6 | F9: 33.203125 | G9: 33.07236842 | H9: 33.9 | I9: 32.875 | J9: 32.59 | K9: 32.26363636 | L9: 33 | M9: 32.82257321 | N9: 1.639 | O9: 31 | P9: 35 | Q9: 100.2529745
A10: 9 | B10: 33.040625 | C10: 32.65610526 | D10: 32.162 | E10: 32.55 | F10: 33.03384615 | G10: 33.02063492 | H10: 34 | I10: 32.957 | J10: 32.56 | K10: 32.08636364 | L10: 33 | M10: 32.8066575 | N10: 1.913636364 | O10: 31 | P10: 35 | Q10: 100.2043617
A11: 10 | B11: 32.95 | C11: 32.6673 | D11: 32.162 | E11: 32.55 | F11: 33.12666667 | G11: 33.00674603 | H11: 34.1 | I11: 33.275 | J11: 32.73 | K11: 31.96190476 | L11: 33 | M11: 32.85296175 | N11: 2.138095238 | O11: 31 | P11: 35 | Q11: 100.3457929
A12: 11 | B12: 32.98125 | C12: 32.8578 | D12: 32.087 | E12: 32.37 | F12: 33.33666667 | G12: 33.14772727 | H12: 33.6 | I12: 33.313 | J12: 32.87 | K12: 31.93 | L12: 33 | M12: 32.84934439 | N12: 1.67 | O12: 31 | P12: 35 | Q12: 100.3347441
A13: 12 | B13: 33.040625 | C13: 32.7842381 | D13: 31.979 | E13: 32.42 | F13: 33.34561404 | G13: 33.01401515 | H13: 33.3 | I13: 33.359 | J13: 32.92 | K13: 31.85 | L13: 33 | M13: 32.80124923 | N13: 1.509 | O13: 31 | P13: 35 | Q13: 100.1878427
A14: 1 | B14: 32.921875 | C14: 32.5878 | D14: 31.971 | E14: 32.37 | F14: 33.29310345 | G14: 33.06111111 | H14: 33.2 | I14: 33.264 | J14: 32.97 | K14: 32.34705882 | L14: 33 | M14: 32.79859484 | N14: 1.322103448 | O14: 31 | P14: 35 | Q14: 100.1797351
A15: 2 | B15: 33.034375 | C15: 32.71255 | D15: 31.989 | E15: 32.51 | F15: 33.23166667 | G15: 33.08333333 | H15: 33.3 | I15: 33.404 | J15: 32.64 | K15: 32.27894737 | L15: 33 | M15: 32.81838724 | N15: 1.415 | O15: 31 | P15: 35 | Q15: 100.2401889
A16: 3 | B16: 33.084375 | C16: 32.67186364 | D16: 32.107 | E16: 32.56 | F16: 33.29076923 | G16: 33.25208333 | H16: 33.1 | I16: 33.32 | J16: 32.52 | K16: 32.29444444 | L16: 33 | M16: 32.82005356 | N16: 1.213 | O16: 31 | P16: 35 | Q16: 100.2452785
A17: 4 | B17: 32.978125 | C17: 32.82485 | E17: 32.9 | F17: 33.25178571 | G17: 33.05362319 | H17: 33.2 | I17: 33.21 | J17: 32.74 | L17: 33 | M17: 33.01979799 | N17: 0.5117857143 | O17: 31 | P17: 35 | Q17: 100.8553761
A18: 5 | B18: 32.978125 | C18: 32.78575 | E18: 32.81 | F18: 33.23333333 | G18: 33.24761905 | H18: 33.7 | I18: 33.198 | J18: 32.89 | L18: 33 | M18: 33.10535342 | N18: =MAX(B18:K18)-MIN(B18:K18) -> 0.91425 | O18: 31 | P18: 35 | Q18: =M18/M$3*100 -> 101.1166958
A19: 6 | L19: 33 | N19: =MAX(B19:K19)-MIN(B19:K19) -> 0 | O19: 31 | P19: 35 | Q19: =M19/M$3*100 -> 0
A20: 7 | L20: 33 | N20: =MAX(B20:K20)-MIN(B20:K20) -> 0 | O20: 31 | P20: 35 | Q20: =M20/M$3*100 -> 0

Sheet CRE
F1: CRE
A2: 月 | B2: 千葉大 | C2: がんｾﾝﾀｰ | D2: 船橋中央 | E2: 県立佐原 | F2: 千葉ﾘﾊﾋﾞﾘ | G2: 順大浦安 | H2: 千葉青葉 | I2: 東歯大市川 | J2: 千葉MC | K2: こども病院 | L2: 認証値 | M2: 10病院平均 | N2: R | O2: 下限 | P2: 上限 | Q2: 2015.02月値を100％に対する変化率
A3: 2 | D3: 2.885 | E3: 2.95 | G3: 2.944871795 | I3: 2.935 | L3: 2.94 | M3: =AVERAGE(B3:K3) -> 2.928717949 | N3: =MAX(B3:K3)-MIN(B3:K3) -> 0.065 | O3: 2.74 | P3: 3.14 | Q3: =M3/M3*100 -> 100
A4: 3 | B4: 2.949259259 | C4: 2.882618182 | D4: 2.873 | E4: 2.94 | F4: 2.899586207 | G4: 2.9492 | H4: 2.875 | I4: 2.922 | J4: 2.98 | K4: 2.887666667 | L4: 2.94 | M4: 2.915833031 | N4: 0.107 | O4: 2.74 | P4: 3.14 | Q4: =M4/M$3*100 -> 99.56004923
A5: 4 | B5: 2.929259259 | C5: 2.880685 | D5: 2.8937 | E5: 2.94 | F5: 2.889703125 | G5: 2.9399 | H5: 2.887 | I5: 2.912 | J5: 2.96 | K5: 2.900454545 | L5: 2.94 | M5: 2.913270193 | N5: 0.079315 | O5: 2.74 | P5: 3.14 | Q5: =M5/M$3*100 -> 99.47254205
A6: 5 | B6: 2.937777778 | C6: 2.87105 | D6: 2.9013 | E6: 2.93 | F6: 2.89640678 | G6: 2.944192708 | H6: 2.9 | I6: 2.916 | J6: 3.02 | K6: 2.9005 | L6: 2.94 | M6: 2.921722727 | N6: 0.14895 | O6: 2.74 | P6: 3.14 | Q6: 99.76115071
A7: 6 | B7: 2.941481481 | C7: 2.874131818 | D7: 2.8966 | E7: 2.95 | F7: 2.893469697 | G7: 2.938297872 | H7: 2.978 | I7: 2.913 | J7: 3 | K7: 2.897142857 | L7: 2.94 | M7: 2.928212373 | N7: 0.1258681818 | O7: 2.74 | P7: 3.14 | Q7: 99.98273729
A8: 7 | B8: 2.9503125 | C8: 2.866915 | D8: 2.894 | E8: 2.95 | F8: 2.892081967 | G8: 2.909705882 | H8: 2.998 | I8: 2.907 | J8: 2.97 | K8: 2.908235294 | L8: 2.94 | M8: 2.924625064 | N8: 0.131085 | O8: 2.74 | P8: 3.14 | Q8: 99.86024996
A9: 8 | B9: 2.95 | C9: 2.865913636 | D9: 2.898 | E9: 2.96 | F9: 2.88903125 | G9: 2.8825 | H9: 2.965 | I9: 2.892 | J9: 2.98 | K9: 2.933181818 | L9: 2.94 | M9: 2.92156267 | N9: 0.1140863636 | O9: 2.74 | P9: 3.14 | Q9: 99.75568565
A10: 9 | B10: 2.95 | C10: 2.870478947 | D10: 2.891 | E10: 2.96 | F10: 2.882384615 | G10: 2.884106061 | H10: 2.948 | I10: 2.914 | J10: 2.98 | K10: 2.930952381 | L10: 2.94 | M10: 2.9210922 | N10: 0.1095210526 | O10: 2.74 | P10: 3.14 | Q10: 99.73962162
A11: 10 | B11: 2.9490625 | C11: 2.89738 | D11: 2.8954 | E11: 2.95 | F11: 2.877016667 | G11: 2.8915 | H11: 2.962 | I11: 2.939 | J11: 2.97 | K11: 2.931904762 | L11: 2.94 | M11: 2.926326393 | N11: 0.09298333333 | O11: 2.74 | P11: 3.14 | Q11: 99.9183412
A12: 11 | B12: 2.94 | C12: 2.90633 | D12: 2.8978 | E12: 2.96 | F12: 2.89285 | G12: 2.893492063 | H12: 2.955 | I12: 2.923 | J12: 2.89 | K12: 2.938 | L12: 2.94 | M12: 2.919647206 | N12: 0.07 | O12: 2.74 | P12: 3.14 | Q12: 99.69028283
A13: 12 | B13: 2.9396875 | C13: 2.905580952 | D13: 2.8853 | E13: 2.96 | F13: 2.895017544 | G13: 2.898065217 | H13: 2.96 | I13: 2.907 | J13: 2.95 | K13: 2.945 | L13: 2.94 | M13: 2.924565121 | N13: 0.0747 | O13: 2.74 | P13: 3.14 | Q13: 99.85820323
A14: 1 | B14: 2.9353125 | C14: 2.88475 | D14: 2.8829 | E14: 2.96 | F14: 2.908241379 | G14: 2.907466667 | H14: 2.967 | I14: 2.901 | J14: 2.96 | K14: 2.950588235 | L14: 2.94 | M14: 2.925725878 | N14: 0.0841 | O14: 2.74 | P14: 3.14 | Q14: 99.89783685
A15: 2 | B15: 2.936875 | C15: 2.8974 | D15: 2.8874 | E15: 2.98 | F15: 2.905633333 | G15: 2.902118056 | H15: 2.963 | I15: 2.909 | J15: 2.99 | K15: 2.947368421 | L15: 2.94 | M15: 2.931879481 | N15: 0.1026 | O15: 2.74 | P15: 3.14 | Q15: 100.1079494
A16: 3 | B16: 2.9296875 | C16: 2.903818182 | D16: 2.903 | E16: 2.97 | F16: 2.912078125 | G16: 2.890327381 | H16: 2.951 | I16: 2.89 | J16: 2.98 | K16: 2.951666667 | L16: 2.94 | M16: 2.928157785 | N16: 0.09 | O16: 2.74 | P16: 3.14 | Q16: 99.98087343
A17: 4 | B17: 2.9384375 | C17: 2.90085 | E17: 2.98 | F17: 2.919122807 | G17: 2.901557971 | H17: 2.95 | I17: 2.898 | J17: 2.95 | L17: 2.94 | M17: 2.929746035 | N17: 0.082 | O17: 2.74 | P17: 3.14 | Q17: 100.0351036
A18: 5 | B18: 2.9634375 | C18: 2.88485 | E18: 2.96 | F18: 2.908271186 | G18: 2.903809524 | H18: 2.975 | I18: 2.893 | J18: 2.96 | L18: 2.94 | M18: 2.931046026 | N18: =MAX(B18:K18)-MIN(B18:K18) -> 0.09015 | O18: 2.74 | P18: 3.14 | Q18: =M18/M$3*100 -> 100.0794914
A19: 6 | L19: 2.94 | N19: =MAX(B19:K19)-MIN(B19:K19) -> 0 | O19: 2.74 | P19: 3.14 | Q19: =M19/M$3*100 -> 0
A20: 7 | L20: 2.94 | N20: =MAX(B20:K20)-MIN(B20:K20) -> 0 | O20: 2.74 | P20: 3.14 | Q20: =M20/M$3*100 -> 0

Sheet UA
F1: UA
A2: 月 | B2: 千葉大 | C2: がんｾﾝﾀｰ | D2: 船橋中央 | E2: 県立佐原 | F2: 千葉ﾘﾊﾋﾞﾘ | G2: 順大浦安 | H2: 千葉青葉 | I2: 東歯大市川 | J2: 千葉MC | K2: こども病院 | L2: 認証値 | M2: 10病院平均 | N2: R | O2: 下限 | P2: 上限 | Q2: 2015.02月値を100％に対する変化率
A3: 2 | D3: 6.647 | E3: 6.51 | G3: 6.612820513 | I3: 6.531 | L3: 6.6 | M3: =AVERAGE(B3:K3) -> 6.575205128 | N3: =MAX(B3:K3)-MIN(B3:K3) -> 0.137 | O3: 6.3 | P3: 6.9 | Q3: =M3/M3*100 -> 100
A4: 3 | B4: 6.625925926 | C4: 6.619590909 | D4: 6.63 | E4: 6.51 | F4: 6.607241379 | G4: 6.534615385 | H4: 6.63 | I4: 6.494 | J4: 6.54 | K4: 6.6375 | L4: 6.6 | M4: 6.58288736 | N4: 0.1435 | O4: 6.3 | P4: 6.9 | Q4: =M4/M$3*100 -> 100.1168364
A5: 4 | B5: 6.596296296 | C5: 6.62785 | D5: 6.67 | E5: 6.5 | F5: 6.62421875 | G5: 6.582051282 | H5: 6.67 | I5: 6.526 | J5: 6.53 | K5: 6.709090909 | L5: 6.6 | M5: 6.603550724 | N5: 0.2090909091 | O5: 6.3 | P5: 6.9 | Q5: =M5/M$3*100 -> 100.4310983
A6: 5 | B6: 6.588888889 | C6: 6.648944444 | D6: 6.679 | E6: 6.49 | F6: 6.622542373 | G6: 6.605555556 | H6: 6.67 | I6: 6.499 | J6: 6.54 | K6: 6.705 | L6: 6.6 | M6: 6.604893126 | N6: 0.215 | O6: 6.3 | P6: 6.9 | Q6: 100.4515144
A7: 6 | B7: 6.548148148 | C7: 6.684045455 | D7: 6.666 | E7: 6.51 | F7: 6.606666667 | G7: 6.651515152 | H7: 6.58 | I7: 6.419 | J7: 6.54 | K7: 6.7 | L7: 6.6 | M7: 6.590537542 | N7: 0.281 | O7: 6.3 | P7: 6.9 | Q7: 100.2331853
A8: 7 | B8: 6.58125 | C8: 6.66335 | D8: 6.66 | E8: 6.53 | F8: 6.610655738 | G8: 6.666666667 | H8: 6.58 | I8: 6.378 | J8: 6.53 | K8: 6.705882353 | L8: 6.6 | M8: 6.590580476 | N8: 0.3278823529 | O8: 6.3 | P8: 6.9 | Q8: 100.2338383
A9: 8 | B9: 6.596875 | C9: 6.649772727 | D9: 6.655 | E9: 6.52 | F9: 6.601538462 | G9: 6.64122807 | H9: 6.59 | I9: 6.381 | J9: 6.58 | K9: 6.713636364 | L9: 6.6 | M9: 6.592905062 | N9: 0.3326363636 | O9: 6.3 | P9: 6.9 | Q9: 100.2691921
A10: 9 | B10: 6.628125 | C10: 6.648578947 | D10: 6.658 | E10: 6.53 | F10: 6.567619048 | G10: 6.571212121 | H10: 6.58 | I10: 6.389 | J10: 6.45 | K10: 6.709090909 | L10: 6.6 | M10: 6.573162603 | N10: 0.3200909091 | O10: 6.3 | P10: 6.9 | Q10: 99.96893594
A11: 10 | B11: 6.58125 | C11: 6.63485 | D11: 6.645 | E11: 6.48 | F11: 6.557333333 | G11: 6.567460317 | H11: 6.54 | I11: 6.495 | J11: 6.5 | K11: 6.7 | L11: 6.6 | M11: 6.570089365 | N11: 0.22 | O11: 6.3 | P11: 6.9 | Q11: 99.92219614
A12: 11 | B12: 6.590625 | C12: 6.62345 | D12: 6.645 | E12: 6.47 | F12: 6.5765 | G12: 6.573913043 | H12: 6.55 | I12: 6.46 | J12: 6.45 | K12: 6.715 | L12: 6.6 | M12: 6.565448804 | N12: 0.265 | O12: 6.3 | P12: 6.9 | Q12: 99.85161948
A13: 12 | B13: 6.628125 | C13: 6.611952381 | D13: 6.622 | E13: 6.5 | F13: 6.587368421 | G13: 6.592424242 | H13: 6.54 | I13: 6.518 | J13: 6.5 | K13: 6.725 | L13: 6.6 | M13: 6.582487004 | N13: 0.225 | O13: 6.3 | P13: 6.9 | Q13: 100.1107475
A14: 1 | B14: 6.628125 | C14: 6.6002 | D14: 6.611 | E14: 6.48 | F14: 6.602068966 | G14: 6.583333333 | H14: 6.53 | I14: 6.422 | J14: 6.51 | K14: 6.653333333 | L14: 6.6 | M14: 6.562006063 | N14: 0.2313333333 | O14: 6.3 | P14: 6.9 | Q14: 99.79926003
A15: 2 | B15: 6.609677419 | C15: 6.62525 | D15: 6.629 | E15: 6.49 | F15: 6.579666667 | G15: 6.582142857 | H15: 6.55 | I15: 6.444 | J15: 6.6 | K15: 6.668421053 | L15: 6.6 | M15: 6.5778158 | N15: 0.2244210526 | O15: 6.3 | P15: 6.9 | Q15: 100.0397048
A16: 3 | B16: 6.578125 | C16: 6.624181818 | D16: 6.627 | E16: 6.5 | F16: 6.592686567 | G16: 6.566666667 | H16: 6.56 | I16: 6.467 | J16: 6.54 | K16: 6.672222222 | L16: 6.6 | M16: 6.572788227 | N16: 0.2052222222 | O16: 6.3 | P16: 6.9 | Q16: 99.9632422
A17: 4 | B17: 6.528125 | C17: 6.63665 | E17: 6.5 | F17: 6.627241379 | G17: 6.568115942 | H17: 6.52 | I17: 6.444 | J17: 6.48 | L17: 6.6 | M17: 6.53801654 | N17: 0.19265 | O17: 6.3 | P17: 6.9 | Q17: 99.43441174
A18: 5 | B18: 6.5375 | C18: 6.62775 | E18: 6.49 | F18: 6.623728814 | G18: 6.614285714 | H18: 6.551 | I18: 6.462 | J18: 6.53 | L18: 6.6 | M18: 6.554533066 | N18: =MAX(B18:K18)-MIN(B18:K18) -> 0.16575 | O18: 6.3 | P18: 6.9 | Q18: =M18/M$3*100 -> 99.68560582
A19: 6 | L19: 6.6 | N19: =MAX(B19:K19)-MIN(B19:K19) -> 0 | O19: 6.3 | P19: 6.9 | Q19: =M19/M$3*100 -> 0
A20: 7 | L20: 6.6 | N20: =MAX(B20:K20)-MIN(B20:K20) -> 0 | O20: 6.3 | P20: 6.9 | Q20: =M20/M$3*100 -> 0

Sheet GLU
F1: GLU
A2: 月 | B2: 千葉大 | C2: がんｾﾝﾀｰ | D2: 船橋中央 | E2: 県立佐原 | F2: 千葉ﾘﾊﾋﾞﾘ | G2: 順大浦安 | H2: 千葉青葉 | I2: 東歯大市川 | J2: 千葉MC | K2: こども病院 | L2: 認証値 | M2: 10病院平均 | N2: R | O2: 下限 | P2: 上限 | Q2: 2015.02月値を100％に対する変化率
A3: 2 | D3: 183.05 | E3: 183.43 | G3: 183.75 | I3: 184.694 | L3: 183 | M3: =AVERAGE(B3:K3) -> 183.731 | N3: =MAX(B3:K3)-MIN(B3:K3) -> 1.644 | O3: 178 | P3: 188 | Q3: =M3/M3*100 -> 100
A4: 3 | B4: 184 | C4: 180.7795455 | D4: 183.07 | E4: 182.84 | F4: 181.0285714 | G4: 182.7115385 | H4: 182.8 | I4: 184.193 | J4: 182.92 | K4: 182 | L4: 183 | M4: 182.6342655 | N4: 3.413454545 | O4: 178 | P4: 188 | Q4: =M4/M$3*100 -> 99.40307598
A5: 4 | B5: 183.962963 | C5: 181.0955 | D5: 183.2 | E5: 182.26 | F5: 181.3578125 | G5: 184.1346154 | H5: 184.3 | I5: 183.138 | J5: 182.36 | K5: 183.4736842 | L5: 183 | M5: 182.9282575 | N5: 3.2045 | O5: 178 | P5: 188 | Q5: =M5/M$3*100 -> 99.56308816
A6: 5 | B6: 183.5185185 | C6: 180.9138889 | D6: 183.47 | E6: 182.76 | F6: 181.6389831 | G6: 183.1458333 | H6: 185.5 | I6: 182.624 | J6: 182.78 | K6: 183.75 | L6: 183 | M6: 183.0101224 | N6: 4.586111111 | O6: 178 | P6: 188 | Q6: 99.60764508
A7: 6 | B7: 183.8518519 | C7: 181.7368182 | D7: 183.27 | E7: 181.8 | F7: 181.74375 | G7: 182.9409091 | H7: 184 | I7: 183.034 | J7: 182.7 | K7: 181.95 | L7: 183 | M7: 182.7027329 | N7: 2.263181818 | O7: 178 | P7: 188 | Q7: 99.44034099
A8: 7 | B8: 184.1875 | C8: 182.0875 | D8: 183.57 | E8: 182.43 | F8: 181.9803279 | G8: 182.9910256 | H8: 183.6 | I8: 183.698 | J8: 181.62 | K8: 181.3571429 | L8: 183 | M8: 182.7521496 | N8: 2.830357143 | O8: 178 | P8: 188 | Q8: 99.46723723
A9: 8 | B9: 183.625 | C9: 182.0586364 | D9: 183.77 | E9: 182.96 | F9: 181.9184615 | G9: 182.1973684 | H9: 183.2 | I9: 183.893 | J9: 181.2 | K9: 187 | L9: 183 | M9: 183.1822466 | N9: 5.8 | O9: 178 | P9: 188 | Q9: 99.70132783
A10: 9 | B10: 183.40625 | C10: 182.68 | D10: 183.6 | E10: 183.02 | F10: 181.2721311 | G10: 182.9772727 | H10: 182.9 | I10: 182.56 | J10: 179.96 | K10: 184.9090909 | L10: 183 | M10: 182.7284745 | N10: 4.949090909 | O10: 178 | P10: 188 | Q10: 99.45435146
A11: 10 | B11: 183.5625 | C11: 182.937 | D11: 184.34 | E11: 182.98 | F11: 180.91 | G11: 183.5039683 | H11: 183.4 | I11: 184.339 | J11: 179.82 | K11: 184.2 | L11: 183 | M11: 182.9992468 | N11: 4.52 | O11: 178 | P11: 188 | Q11: 99.6017258
A12: 11 | B12: 183.8125 | C12: 183.7485 | D12: 183.97 | E12: 182.81 | F12: 181.335 | G12: 184.0471014 | H12: 183.1 | I12: 182.961 | J12: 182.37 | K12: 184.4210526 | L12: 183 | M12: 183.2575154 | N12: 3.086052632 | O12: 178 | P12: 188 | Q12: 99.74229466
A13: 12 | B13: 184.3125 | C13: 182.771619 | D13: 184.43 | E13: 183.75 | F13: 181.2070175 | G13: 182.5666667 | H13: 182.8 | I13: 182.846 | J13: 181.67 | K13: 183.3571429 | L13: 183 | M13: 182.9710946 | N13: 3.222982456 | O13: 178 | P13: 188 | Q13: 99.58640328
A14: 1 | B14: 184.875 | C14: 181.76415 | D14: 184 | E14: 184.36 | F14: 181.5758621 | G14: 183.7944444 | H14: 182.8 | I14: 182.849 | J14: 183.17 | K14: 181.4444444 | L14: 183 | M14: 183.0632901 | N14: 3.430555556 | O14: 178 | P14: 188 | Q14: 99.63658288
A15: 2 | B15: 184.625 | C15: 183.78 | D15: 183.51 | E15: 183.14 | F15: 181.379661 | G15: 183.7321429 | H15: 183.3 | I15: 182.674 | J15: 183.15 | K15: 185.1052632 | L15: 183 | M15: 183.4396067 | N15: 3.725602141 | O15: 178 | P15: 188 | Q15: 99.84140221
A16: 3 | B16: 183.8125 | C16: 183.4128636 | D16: 183.73 | E16: 182.6 | F16: 181.1109375 | G16: 182.1071429 | H16: 182.9 | I16: 181.922 | J16: 180.37 | K16: 186 | L16: 183 | M16: 182.7965444 | N16: 5.63 | O16: 178 | P16: 188 | Q16: 99.49140014
A17: 4 | B17: 183.1875 | C17: 183.7775 | E17: 183.37 | F17: 181.6762712 | G17: 181.2644928 | H17: 185.1 | I17: 183.071 | J17: 180.06 | L17: 183 | M17: 182.6883455 | N17: 5.04 | O17: 178 | P17: 188 | Q17: 99.4325103
A18: 5 | B18: 183.21875 | C18: 182.8925 | E18: 183.05 | F18: 181.7508475 | G18: 183.3095238 | H18: 187.3 | I18: 183.616 | J18: 181.14 | L18: 183 | M18: 183.2847027 | N18: =MAX(B18:K18)-MIN(B18:K18) -> 6.16 | O18: 178 | P18: 188 | Q18: 99.75709198
A19: 6 | L19: 183 | N19: =MAX(B19:K19)-MIN(B19:K19) -> 0 | O19: 178 | P19: 188 | Q19: 0
A20: 7 | L20: 183 | N20: =MAX(B20:K20)-MIN(B20:K20) -> 0 | O20: 178 | P20: 188 | Q20: 0

Sheet Na
F1: Na
A2: 月 | B2: 千葉大 | C2: がんｾﾝﾀｰ | D2: 船橋中央 | E2: 県立佐原 | F2: 千葉ﾘﾊﾋﾞﾘ | G2: 順大浦安 | H2: 千葉青葉 | I2: 東歯大市川 | J2: 千葉MC | K2: こども病院 | L2: 認証値 | M2: 10病院平均 | N2: R | O2: 下限 | P2: 上限 | Q2: 2015.02月値を100％に対する変化率
A3: 2 | D3: 145.985 | E3: 144.97 | G3: 144.6916667 | I3: 145.397 | L3: 145 | M3: =AVERAGE(B3:K3) -> 145.2609167 | N3: =MAX(B3:K3)-MIN(B3:K3) -> 1.293333333 | O3: 143 | P3: 147 | Q3: =M3/M3*100 -> 100
A4: 3 | B4: 144.6074074 | C4: 144.4777273 | D4: 145.2 | E4: 144.83 | F4: 144.3344828 | G4: 144.0909091 | H4: 144.4 | I4: 144.987 | J4: 144.73 | K4: 143.7 | L4: 145 | M4: 144.5357527 | N4: 1.5 | O4: 143 | P4: 147 | Q4: =M4/M$3*100 -> 99.50078519
A5: 4 | B5: 144.5962963 | C5: 144.622 | D5: 145.402 | E5: 144.54 | F5: 144.5421875 | G5: 143.8153846 | H5: 144.2 | I5: 144.756 | J5: 144.86 | K5: 144.8823529 | L5: 145 | M5: 144.6216221 | N5: 1.586615385 | O5: 143 | P5: 147 | Q5: =M5/M$3*100 -> 99.55989915
A6: 5 | B6: 144.7259259 | C6: 144.5272222 | D6: 145.734 | E6: 144.75 | F6: 144.5355932 | G6: 144.478125 | H6: 145 | I6: 144.946 | J6: 145.3 | K6: 145 | L6: 145 | M6: 144.8996866 | N6: 1.255875 | O6: 143 | P6: 147 | Q6: 99.75132332
A7: 6 | B7: 144.5777778 | C7: 144.7345455 | D7: 145.625 | E7: 144.44 | F7: 144.4015385 | G7: 144.5545455 | H7: 145.1 | I7: 145.169 | J7: 145.37 | K7: 144.6666667 | L7: 145 | M7: 144.8639074 | N7: 1.223461538 | O7: 143 | P7: 147 | Q7: 99.72669229
A8: 7 | B8: 144.740625 | C8: 144.284 | D8: 145.433 | E8: 144.25 | F8: 144.6147541 | G8: 144.3736842 | H8: 145.4 | I8: 145.024 | J8: 145.33 | K8: 144.9411765 | L8: 145 | M8: 144.839124 | N8: 1.183 | O8: 143 | P8: 147 | Q8: 99.70963099
A9: 8 | B9: 144.63125 | C9: 144.8468182 | D9: 145.63 | E9: 144.42 | F9: 144.2322581 | G9: 144.5 | H9: 145 | I9: 145.026 | J9: 145.16 | K9: 145.3 | L9: 145 | M9: 144.8746326 | N9: 1.397741935 | O9: 143 | P9: 147 | Q9: 99.73407572
A10: 9 | B10: 144.6 | C10: 145.1673684 | D10: 145.88 | E10: 144.33 | F10: 143.96875 | G10: 144.1954545 | H10: 145.2 | I10: 145.256 | J10: 145.06 | K10: 144.5909091 | L10: 145 | M10: 144.8248482 | N10: 1.91125 | O10: 143 | P10: 147 | Q10: 99.69980331
A11: 10 | B11: 144.559375 | C11: 145.001 | D11: 146.302 | E11: 144.27 | F11: 144.5360656 | G11: 143.9952381 | H11: 145.1 | I11: 145.214 | J11: 144.81 | K11: 144.5555556 | L11: 145 | M11: 144.8343234 | N11: 2.306761905 | O11: 143 | P11: 147 | Q11: 99.70632621
A12: 11 | B12: 144.534375 | C12: 144.94 | D12: 146.08 | E12: 144.33 | F12: 144.7952381 | G12: 144.2095238 | H12: 145 | I12: 145.388 | J12: 145.05 | K12: 144.05 | L12: 145 | M12: 144.8377137 | N12: 2.03 | O12: 143 | P12: 147 | Q12: 99.70866012
A13: 12 | B13: 144.546875 | C13: 144.6217143 | D13: 146.135 | E13: 144.55 | F13: 144.7666667 | G13: 144.0526316 | H13: 145.1 | I13: 145.374 | J13: 145.19 | K13: 144.375 | L13: 145 | M13: 144.8711888 | N13: 2.082368421 | O13: 143 | P13: 147 | Q13: 99.73170491
A14: 1 | B14: 144.465625 | C14: 144.8291 | D14: 145.871 | E14: 144.71 | F14: 144.7118644 | G14: 144.3666667 | H14: 144.4 | I14: 145.827 | J14: 145.26 | K14: 144.4117647 | L14: 145 | M14: 144.8853021 | N14: 1.504333333 | O14: 143 | P14: 147 | Q14: 99.74142075
A15: 2 | B15: 144.36875 | C15: 144.53625 | D15: 144.954 | E15: 144.28 | F15: 144.6559322 | G15: 144.4178571 | H15: 144.9 | I15: 145.698 | J15: 144.9 | K15: 144.5789474 | L15: 145 | M15: 144.7289737 | N15: 1.418 | O15: 143 | P15: 147 | Q15: 99.63380171
A16: 3 | B16: 144.3 | C16: 144.6886364 | D16: 145.071 | E16: 144.17 | F16: 144.7553846 | G16: 144.1592593 | H16: 144.9 | I16: 145.69 | J16: 145.37 | K16: 144.7777778 | L16: 145 | M16: 144.7882058 | N16: 1.530740741 | O16: 143 | P16: 147 | Q16: 99.67457808
A17: 4 | B17: 144.259375 | C17: 144.6725 | E17: 144.92 | F17: 144.9625 | G17: 143.9318182 | H17: 145.1 | I17: 145.518 | J17: 145.31 | L17: 145 | M17: 144.8342741 | N17: 1.586181818 | O17: 143 | P17: 147 | Q17: 99.70629229
A18: 5 | B18: 144.221875 | C18: 144.9433 | E18: 144.55 | F18: 144.5683333 | G18: 143.4666667 | H18: 145.2 | I18: 145.555 | J18: 145.54 | L18: 145 | M18: 144.7556469 | N18: 2.088333333 | O18: 143 | P18: 147 | Q18: 99.65216398
A19: 6 | L19: 145 | N19: 0 | O19: 143 | P19: 147 | Q19: 0
A20: 7 | L20: 145 | N20: 0 | O20: 143 | P20: 147 | Q20: 0

Sheet K
F1: K
A2: 月 | B2: 千葉大 | C2: がんｾﾝﾀｰ | D2: 船橋中央 | E2: 県立佐原 | F2: 千葉ﾘﾊﾋﾞﾘ | G2: 順大浦安 | H2: 千葉青葉 | I2: 東歯大市川 | J2: 千葉MC | K2: こども病院 | L2: 認証値 | M2: 10病院平均 | N2: R | O2: 下限 | P2: 上限 | Q2: 2015.02月値を100％に対する変化率
A3: 2 | D3: 5.468 | E3: 5.37 | G3: 5.369459459 | I3: 5.437 | L3: 5.4 | M3: =AVERAGE(B3:K3) -> 5.411114865 | N3: =MAX(B3:K3)-MIN(B3:K3) -> 0.09854054054 | O3: 5.2 | P3: 5.6 | Q3: =M3/M3*100 -> 100
A4: 3 | B4: 5.379259259 | C4: 5.398363636 | D4: 5.434 | E4: 5.37 | F4: 5.384137931 | G4: 5.352916667 | H4: 5.37 | I4: 5.417 | J4: 5.37 | K4: 5.326666667 | L4: 5.4 | M4: 5.380234416 | N4: 0.1073333333 | O4: 5.2 | P4: 5.6 | Q4: =M4/M$3*100 -> 99.42931448
A5: 4 | B5: 5.383703704 | C5: 5.3988 | D5: 5.465 | E5: 5.36 | F5: 5.39 | G5: 5.343461538 | H5: 5.36 | I5: 5.41 | J5: 5.37 | K5: 5.352380952 | L5: 5.4 | M5: 5.383334619 | N5: 0.1215384615 | O5: 5.2 | P5: 5.6 | Q5: =M5/M$3*100 -> 99.48660773
A6: 5 | B6: 5.388518519 | C6: 5.395444444 | D6: 5.461 | E6: 5.37 | F6: 5.394576271 | G6: 5.37 | H6: 5.39 | I6: 5.419 | J6: 5.4 | K6: 5.36 | L6: 5.4 | M6: 5.394853923 | N6: 0.101 | O6: 5.2 | P6: 5.6 | Q6: 99.69949
A7: 6 | B7: 5.381111111 | C7: 5.400727273 | D7: 5.47 | E7: 5.38 | F7: 5.39078125 | G7: 5.370727273 | H7: 5.4 | I7: 5.432 | J7: 5.41 | K7: 5.352380952 | L7: 5.4 | M7: 5.398772786 | N7: 0.1176190476 | O7: 5.2 | P7: 5.6 | Q7: 99.77191246
A8: 7 | B8: 5.384375 | C8: 5.4022 | D8: 5.453 | E8: 5.38 | F8: 5.394262295 | G8: 5.369210526 | H8: 5.4 | I8: 5.424 | J8: 5.41 | K8: 5.382352941 | L8: 5.4 | M8: 5.399940076 | N8: 0.08378947368 | O8: 5.2 | P8: 5.6 | Q8: 99.79348454
A9: 8 | B9: 5.3909375 | C9: 5.408 | D9: 5.42 | E9: 5.37 | F9: 5.38796875 | G9: 5.376842105 | H9: 5.41 | I9: 5.424 | J9: 5.41 | K9: 5.365 | L9: 5.4 | M9: 5.396274836 | N9: 0.059 | O9: 5.2 | P9: 5.6 | Q9: 99.72574913
A10: 9 | B10: 5.380625 | C10: 5.420210526 | D10: 5.425 | E10: 5.37 | F10: 5.369538462 | G10: 5.365909091 | H10: 5.4 | I10: 5.433 | J10: 5.4 | K10: 5.336363636 | L10: 5.4 | M10: 5.390064672 | N10: 0.09663636364 | O10: 5.2 | P10: 5.6 | Q10: 99.61098232
A11: 10 | B11: 5.3753125 | C11: 5.4155 | D11: 5.458 | E11: 5.39 | F11: 5.394754098 | G11: 5.35952381 | H11: 5.4 | I11: 5.425 | J11: 5.39 | K11: 5.352380952 | L11: 5.4 | M11: 5.396047136 | N11: 0.1056190476 | O11: 5.2 | P11: 5.6 | Q11: 99.72154114
A12: 11 | B12: 5.384375 | C12: 5.40345 | D12: 5.485 | E12: 5.39 | F12: 5.412698413 | G12: 5.365217391 | H12: 5.39 | I12: 5.432 | J12: 5.4 | K12: 5.34 | L12: 5.4 | M12: 5.40027408 | N12: 0.145 | O12: 5.2 | P12: 5.6 | Q12: 99.7996571
A13: 12 | B13: 5.385 | C13: 5.395285714 | D13: 5.485 | E13: 5.39 | F13: 5.408947368 | G13: 5.354545455 | H13: 5.4 | I13: 5.428 | J13: 5.41 | K13: 5.35625 | L13: 5.4 | M13: 5.401302854 | N13: 0.1304545455 | O13: 5.2 | P13: 5.6 | Q13: 99.81866932
A14: 1 | B14: 5.3778125 | C14: 5.3989 | D14: 5.466 | E14: 5.4 | F14: 5.404915254 | G14: 5.379333333 | H14: 5.37 | I14: 5.452 | J14: 5.41 | K14: 5.341176471 | L14: 5.4 | M14: 5.400013756 | N14: 0.1248235294 | O14: 5.2 | P14: 5.6 | Q14: 99.79484618
A15: 2 | B15: 5.374375 | C15: 5.3904 | D15: 5.44 | E15: 5.38 | F15: 5.397166667 | G15: 5.382142857 | H15: 5.39 | I15: 5.441 | J15: 5.4 | K15: 5.347368421 | L15: 5.4 | M15: 5.394245294 | N15: 0.09363157895 | O15: 5.2 | P15: 5.6 | Q15: 99.68824224
A16: 3 | B16: 5.3725 | C16: 5.391318182 | D16: 5.412 | E16: 5.37 | F16: 5.397846154 | G16: 5.369642857 | H16: 5.39 | I16: 5.447 | J16: 5.4 | K16: 5.338888889 | L16: 5.4 | M16: 5.388919608 | N16: 0.1081111111 | O16: 5.2 | P16: 5.6 | Q16: 99.589821
A17: 4 | B17: 5.3759375 | C17: 5.39365 | E17: 5.39 | F17: 5.401724138 | G17: 5.371304348 | H17: 5.4 | I17: 5.44 | J17: 5.39 | L17: 5.4 | M17: 5.395326998 | N17: 0.06869565217 | O17: 5.2 | P17: 5.6 | Q17: 99.70823265
A18: 5 | B18: 5.38 | C18: 5.3931 | E18: 5.36 | F18: 5.394067797 | G18: 5.361428571 | H18: 5.42 | I18: 5.441 | J18: 5.4 | L18: 5.4 | M18: 5.393699546 | N18: 0.081 | O18: 5.2 | P18: 5.6 | Q18: 99.67815655
A19: 6 | L19: 5.4 | N19: 0 | O19: 5.2 | P19: 5.6 | Q19: 0
A20: 7 | L20: 5.4 | N20: 0 | O20: 5.2 | P20: 5.6 | Q20: 0

Sheet CL
F1: CL
A2: 月 | B2: 千葉大 | C2: がんｾﾝﾀｰ | D2: 船橋中央 | E2: 県立佐原 | F2: 千葉ﾘﾊﾋﾞﾘ | G2: 順大浦安 | H2: 千葉青葉 | I2: 東歯大市川 | J2: 千葉MC | K2: こども病院 | L2: 日立認証値 | M2: 日立平均 | N2: R | O2: CL認証値 | P2: A&T平均 | Q2: R | R2: CL下限 | S2: CL上限 | T2: A&T下限 | U2: A&T上限 | V2: 2015.02月値を100％に対する変化率
A3: 2 | D3: 110.05 | E3: 109.21 | G3: 105.3076923 | I3: 110.117 | L3: 106 | M3: =AVERAGE(G3,H3) -> 105.3076923 | N3: =MAX(G3,H3,C3)-MIN(G3,H3,C3) -> 0 | O3: 109 | P3: =AVERAGE(B3,C3,D3,E3,F3,I3,J3,K3) -> 109.7923333 | Q3: =MAX(B3,C3,D3,E3,F3,I3,J3,K3)-MIN(B3,C3,D3,E3,F3,I3,J3,K3) -> 0.907 | R3: 103 | S3: 109 | T3: 106 | U3: 112 | V3: =P3/P3*100 -> 100
A4: 3 | B4: 109 | C4: 104.8090909 | D4: 109.66 | E4: 109.05 | F4: 109.4793103 | G4: 105.1833333 | H4: 105.1 | I4: 110.016 | J4: 108.9 | K4: 108.21875 | L4: 106 | M4: 105.1416667 | N4: 0.3742424242 | O4: 109 | P4: 108.6416439 | Q4: =MAX(B4,D4,E4,F4,I4,J4,K4)-MIN(B4,D4,E4,F4,I4,J4,K4) -> 1.79725 | R4: 103 | S4: 109 | T4: 106 | U4: 112 | V4: =P4/P$3*100 -> 98.95194009
A5: 4 | B5: 108.937037 | C5: 105.396 | D5: 110.13 | E5: 108.92 | F5: 109.515625 | G5: 104.6769231 | H5: 104.3 | I5: 109.995 | J5: 109.02 | K5: 108.7142857 | L5: 106 | M5: 104.4884615 | N5: 1.096 | O5: 109 | P5: 108.8284935 | Q5: =MAX(B5,D5,E5,F5,I5,J5,K5)-MIN(B5,D5,E5,F5,I5,J5,K5) -> 1.415714286 | R5: 103 | S5: 109 | T5: 106 | U5: 112 | V5: =P5/P$3*100 -> 99.12212462
A6: 5 | B6: 108.8851852 | C6: 104.8372222 | D6: 110.68 | E6: 108.8 | F6: 109.5254237 | G6: 104.7969697 | H6: 103.8 | I6: 108.499 | J6: 109.71 | K6: 108.2 | L6: 106 | M6: 104.2984848 | N6: 1.037222222 | O6: 109 | P6: 108.6421039 | Q6: 2.48 | R6: 103 | S6: 109 | T6: 106 | U6: 112 | V6: 98.95235905
A7: 6 | B7: 108.6444444 | C7: 104.4631818 | D7: 110.02 | E7: 108.81 | F7: 109.4328125 | G7: 104.7509804 | H7: 104 | I7: 108.125 | J7: 109.71 | K7: 108.2380952 | L7: 106 | M7: 104.3754902 | N7: 0.7509803922 | O7: 109 | P7: 108.4304418 | Q7: 1.895 | R7: 103 | S7: 109 | T7: 106 | U7: 112 | V7: 98.75957497
A8: 7 | B8: 108.840625 | C8: 104.3375 | D8: 110.15 | E8: 108.69 | F8: 109.5196721 | G8: 104.2210526 | H8: 104.2 | I8: 108.481 | J8: 109.61 | K8: 108.3529412 | L8: 106 | M8: 104.2105263 | N8: 0.1375 | O8: 109 | P8: 108.4977173 | Q8: 1.797058824 | R8: 103 | S8: 109 | T8: 106 | U8: 112 | V8: 98.82085023
A9: 8 | B9: 109.08125 | C9: 104.1977273 | D9: 110.41 | E9: 108.85 | F9: 108.9359375 | G9: 104.1421053 | H9: 104.1 | I9: 108.993 | J9: 109.61 | K9: 108.7 | L9: 106 | M9: 104.1210526 | N9: 0.09772727273 | O9: 109 | P9: 108.5972393 | Q9: 1.71 | R9: 103 | S9: 109 | T9: 106 | U9: 112 | V9: 98.91149596
A10: 9 | B10: 108.89375 | C10: 104.2252632 | D10: 110.68 | E10: 108.59 | F10: 108.8307692 | G10: 104.8571429 | H10: 104.6 | I10: 109.161 | J10: 109.34 | K10: 108 | L10: 106 | M10: 104.7285714 | N10: =MAX(G10,H10)-MIN(G10,H10) -> 0.2571428571 | O10: 109 | P10: 108.4650978 | Q10: =MAX(B10,C10,D10,E10,F10,I10,J10,K10)-MIN(B10,C10,D10,E10,F10,I10,J10,K10) -> 6.454736842 | R10: 103 | S10: 109 | T10: 106 | U10: 112 | V10: 98.79114006
A11: 10 | B11: 108.99375 | C11: 104.8315 | D11: 110.025 | E11: 108.56 | F11: 109.1 | G11: 104.6952381 | H11: 104 | I11: 109.021 | J11: 109.23 | K11: 108.9444444 | L11: 106 | M11: 104.347619 | N11: 0.6952380952 | O11: 109 | P11: 108.5882118 | Q11: 5.1935 | R11: 103 | S11: 109 | T11: 106 | U11: 112 | V11: 98.90327358
A12: 11 | B12: 108.975 | C12: 104.894 | D12: 109.1 | E12: 108.61 | F12: 109.2968254 | G12: 104.4333333 | H12: 104.4 | I12: 109.206 | J12: 109.38 | K12: 108.7 | L12: 106 | M12: 104.4166667 | N12: 0.03333333333 | O12: 109 | P12: 108.5202282 | Q12: 4.486 | R12: 103 | S12: 109 | T12: 106 | U12: 112 | V12: 98.84135338
A13: 12 | B13: 109.05625 | C13: 104.8840952 | D13: 109.2 | E13: 108.65 | F13: 109.1491228 | G13: 104.46 | H13: 104.3 | I13: 109.004 | J13: 108.93 | K13: 108.9375 | L13: 106 | M13: 104.38 | N13: 0.16 | O13: 109 | P13: 108.476371 | Q13: 4.315904762 | R13: 103 | S13: 109 | T13: 106 | U13: 112 | V13: 98.80140781
A14: 1 | B14: 108.865625 | C14: 104.665 | D14: 109.16 | E14: 108.73 | F14: 109.2066667 | G14: 104.8071429 | H14: 103.6 | I14: 109.288 | J14: 109.05 | K14: 108.8235294 | L14: 106 | M14: 104.2035714 | N14: 1.207142857 | O14: 109 | P14: 108.4736026 | Q14: 4.623 | R14: 103 | S14: 109 | T14: 106 | U14: 112 | V14: 98.79888635
A15: 2 | B15: 109.065625 | C15: 104.1025 | D15: 109.09 | E15: 108.47 | F15: 109.0065574 | G15: 104.3142857 | H15: 103.6 | I15: 109.124 | J15: 108.73 | K15: 108.8947368 | L15: 106 | M15: 103.9571429 | N15: 0.7142857143 | O15: 109 | P15: 108.3104274 | Q15: 5.0215 | R15: 103 | S15: 109 | T15: 106 | U15: 112 | V15: 98.65026465
A16: 3 | B16: 109.05 | C16: 103.9423636 | D16: 109.99 | E16: 108.59 | F16: 109.0323077 | G16: 105.4391304 | H16: 104.4 | I16: 109.192 | J16: 109.72 | K16: 108.9444444 | L16: 106 | M16: 104.9195652 | N16: 1.039130435 | O16: 109 | P16: 108.5576395 | Q16: 6.047636364 | R16: 103 | S16: 109 | T16: 106 | U16: 112 | V16: 98.87542798
A17: 4 | B17: 109.0125 | C17: 103.6505 | E17: 109.2 | F17: 109.0224138 | G17: 104.0736842 | H17: 104.1 | I17: 109.404 | J17: 109.82 | L17: 106 | M17: 104.0868421 | N17: 0.02631578947 | O17: 109 | P17: 108.351569 | Q17: 6.1695 | R17: 103 | S17: 109 | T17: 106 | U17: 112 | V17: 98.68773682
A18: 5 | B18: 108.896875 | C18: 104.1875 | E18: 108.98 | F18: 108.3133333 | G18: 104.1619048 | H18: 104.4 | I18: 109.143 | J18: 109.92 | L18: 106 | M18: 104.2809524 | N18: 0.2380952381 | O18: 109 | P18: 108.2401181 | Q18: 5.7325 | R18: 103 | S18: 109 | T18: 106 | U18: 112 | V18: 98.58622617
A19: 6 | L19: 106 | N19: 0 | O19: 109 | Q19: 0 | R19: 103 | S19: 109 | T19: 106 | U19: 112 | V19: 0
A20: 7 | L20: 106 | N20: 0 | O20: 109 | Q20: 0 | R20: 103 | S20: 109 | T20: 106 | U20: 112 | V20: 0

Sheet Ca
F1: Ca
A2: 月 | B2: 千葉大 | C2: がんｾﾝﾀｰ | D2: 船橋中央 | E2: 県立佐原 | F2: 千葉ﾘﾊﾋﾞﾘ | G2: 順大浦安 | H2: 千葉青葉 | I2: 東歯大市川 | J2: 千葉MC | K2: こども病院 | L2: 認証値 | M2: 10病院平均 | N2: R | O2: 下限 | P2: 上限 | Q2: 2015.02月値を100％に対する変化率
A3: 2 | D3: 11.048 | E3: 11.14 | G3: 11.26842105 | I3: 11.153 | L3: 11.3 | M3: =AVERAGE(B3:K3) -> 11.15235526 | N3: =MAX(B3:K3)-MIN(B3:K3) -> 0.2204210526 | O3: 10.8 | P3: 11.8 | Q3: =M3/M3*100 -> 100
A4: 3 | B4: 11.35925926 | C4: 11.42340909 | D4: 11.007 | E4: 11.11 | F4: 11.30482759 | G4: 11.2375 | H4: 11.27 | I4: 11.067 | J4: 11.44 | K4: 11.30769231 | L4: 11.3 | M4: 11.25266882 | N4: 0.433 | O4: 10.8 | P4: 11.8 | Q4: =M4/M$3*100 -> 100.8994832
A5: 4 | B5: 11.30740741 | C5: 11.41425 | D5: 11.1 | E5: 11.17 | F5: 11.3140625 | G5: 11.23910256 | H5: 11.3 | I5: 11.085 | J5: 11.54 | K5: 11.32272727 | L5: 11.3 | M5: 11.27925497 | N5: 0.455 | O5: 10.8 | P5: 11.8 | Q5: =M5/M$3*100 -> 101.1378736
A6: 5 | B6: 11.35185185 | C6: 11.38477778 | D6: 11.066 | E6: 11.16 | F6: 11.52327586 | G6: 11.20625 | H6: 11.33 | I6: 11.095 | J6: 11.55 | K6: 11.275 | L6: 11.3 | M6: 11.29421555 | N6: 0.484 | O6: 10.8 | P6: 11.8 | Q6: 101.2720209
A7: 6 | B7: 11.24814815 | C7: 11.3865 | D7: 11.109 | E7: 11.13 | F7: 11.53061538 | G7: 11.19964539 | H7: 11.21 | I7: 11.115 | J7: 11.39 | K7: 11.28571429 | L7: 11.3 | M7: 11.26046232 | N7: 0.4216153846 | O7: 10.8 | P7: 11.8 | Q7: 100.9693653
A8: 7 | B8: 11.225 | C8: 11.4954 | D8: 11.175 | E8: 11.11 | F8: 11.53016667 | G8: 11.26341463 | H8: 11.13 | I8: 11.063 | J8: 11.37 | K8: 11.28 | L8: 11.3 | M8: 11.26419813 | N8: 0.46716667 | O8: 10.8 | P8: 11.8 | Q8: 101.0028632
A9: 8 | B9: 11.2375 | C9: 11.481 | D9: 11.159 | E9: 11.16 | F9: 11.51131148 | G9: 11.1745614 | H9: 11.26 | I9: 11.088 | J9: 11.5 | K9: 11.26190476 | L9: 11.3 | M9: 11.28332776 | N9: 0.4233114754 | O9: 10.8 | P9: 11.8 | Q9: 101.1743932
A10: 9 | B10: 11.275 | C10: 11.42036842 | D10: 11.185 | E10: 11.14 | F10: 11.44439394 | G10: 11.21583333 | H10: 11.17 | I10: 11.083 | J10: 11.31 | K10: 11.22352941 | L10: 11.3 | M10: 11.24671251 | N10: 0.3613939394 | O10: 10.8 | P10: 11.8 | Q10: 100.8460746
A11: 10 | B11: 11.253125 | C11: 11.42555 | D11: 11.154 | E11: 11.15 | F11: 11.42288136 | G11: 11.26666667 | H11: 11.31 | I11: 11.415 | J11: 11.33 | K11: 11.24736842 | L11: 11.3 | M11: 11.29745914 | N11: 0.27555 | O11: 10.8 | P11: 11.8 | Q11: 101.3011053
A12: 11 | B12: 11.246875 | C12: 11.4607 | D12: 11.203 | E12: 11.21 | F12: 11.512 | G12: 11.33478261 | H12: 11.26 | I12: 11.378 | J12: 11.36 | K12: 11.25263158 | L12: 11.3 | M12: 11.32179892 | N12: 0.309 | O12: 10.8 | P12: 11.8 | Q12: =M12/M$3*100 -> 101.5193531
A13: 12 | B13: 11.2625 | C13: 11.36971429 | D13: 11.234 | E13: 11.22 | F13: 11.48736842 | G13: 11.35378788 | H13: 11.16 | I13: 11.385 | J13: 11.28 | K13: 11.2375 | L13: 11.3 | M13: 11.29898706 | N13: 0.3273684211 | O13: 10.8 | P13: 11.8 | Q13: =M13/M$3*100 -> 101.3148056
A14: 1 | B14: 11.28125 | C14: 11.3406 | D14: 11.226 | E14: 11.18 | F14: 11.44789474 | G14: 11.3875 | H14: 11.08 | I14: 11.524 | J14: 11.31 | K14: 11.2 | L14: 11.3 | M14: 11.29772447 | N14: 0.444 | O14: 10.8 | P14: 11.8 | Q14: 101.3034844
A15: 2 | B15: 11.234375 | C15: 11.467 | D15: 11.265 | E15: 11.19 | F15: 11.32655172 | G15: 11.39807692 | H15: 11.22 | I15: 11.452 | J15: 11.18 | K15: 11.21052632 | L15: 11.3 | M15: 11.294353 | N15: 0.287 | O15: 10.8 | P15: 11.8 | Q15: 101.2732533
A16: 3 | B16: 11.2 | C16: 11.50963636 | D16: 11.174 | E16: 11.1 | F16: 11.37578125 | G16: 11.33580247 | H16: 11.14 | I16: 11.415 | J16: 11.21 | K16: 11.12777778 | L16: 11.3 | M16: 11.25879979 | N16: 0.4096363636 | O16: 10.8 | P16: 11.8 | Q16: 100.9544578
A17: 4 | B17: 11.26875 | C17: 11.50135 | E17: 11.09 | F17: 11.4245614 | G17: 11.28333333 | H17: 11.17 | I17: 11.365 | J17: 11.23 | L17: 11.3 | M17: 11.29162434 | N17: 0.41135 | O17: 10.8 | P17: 11.8 | Q17: 101.2487862
A18: 5 | B18: 11.340625 | C18: 11.43475 | E18: 11.08 | F18: 11.36827586 | G18: 11.31428571 | H18: 11.24 | I18: 11.406 | J18: 11.35 | L18: 11.3 | M18: 11.31674207 | N18: 0.35475 | O18: 10.8 | P18: 11.8 | Q18: 101.4740098
A19: 6 | L19: 11.3 | N19: 0 | O19: 10.8 | P19: 11.8 | Q19: 0
A20: 7 | L20: 11.3 | N20: 0 | O20: 10.8 | P20: 11.8 | Q20: 0
G31: 千葉大病院は２月からBM２２５０に変わりました。

Sheet IP
F1: IP
A2: 月 | B2: 千葉大 | C2: がんｾﾝﾀｰ | D2: 船橋中央 | E2: 県立佐原 | F2: 千葉ﾘﾊﾋﾞﾘ | G2: 順大浦安 | H2: 千葉青葉 | I2: 東歯大市川 | J2: 千葉MC | K2: こども病院 | L2: 認証値 | M2: 10病院平均 | N2: R | O2: 下限 | P2: 上限 | Q2: 2015.02月値を100％に対する変化率
A3: 2 | D3: 6.082 | E3: 6.17 | G3: 6.19 | I3: 6.125 | L3: 6.1 | M3: =AVERAGE(B3:K3) -> 6.14175 | N3: =MAX(B3:K3)-MIN(B3:K3) -> 0.108 | O3: 5.9 | P3: 6.3 | Q3: =M3/M3*100 -> 100
A4: 3 | B4: 6.192592593 | C4: 6.189090909 | D4: 6.057 | E4: 6.15 | F4: 6.156896552 | G4: 6.176923077 | H4: 6.13 | I4: 6.157 | J4: 6.05 | K4: 6.069230769 | L4: 6.1 | M4: 6.13287339 | N4: 0.1425925926 | O4: 5.9 | P4: 6.3 | Q4: =M4/M$3*100 -> 99.855471
A5: 4 | B5: 6.2 | C5: 6.198 | D5: 6.052 | E5: 6.01 | F5: 6.188571429 | G5: 6.123076923 | H5: 6.1 | I5: 6.049 | J5: 6.05 | K5: 5.977272727 | L5: 6.1 | M5: 6.094792108 | N5: 0.2227272727 | O5: 5.9 | P5: 6.3 | Q5: =M5/M$3*100 -> 99.2354314
A6: 5 | B6: 6.174074074 | C6: 6.193722222 | D6: 6.1 | E6: 6.09 | F6: 6.187068966 | G6: 6.111111111 | H6: 6.1 | I6: 6.032 | J6: 6.07 | K6: 5.95 | L6: 6.1 | M6: 6.100797637 | N6: 0.2437222222 | O6: 5.9 | P6: 6.3 | Q6: 99.33321345
A7: 6 | B7: 6.155555556 | C7: 6.194818182 | D7: 6.07 | E7: 6.1 | F7: 6.121230769 | G7: 6.124242424 | H7: 6.15 | I7: 6.027 | J7: 6.08 | K7: 5.966666667 | L7: 6.1 | M7: 6.09895136 | N7: 0.2281515152 | O7: 5.9 | P7: 6.3 | Q7: 99.30315235
A8: 7 | B8: 6.13125 | C8: 6.1494 | D8: 6.057 | E8: 6.12 | F8: 6.131833333 | G8: 6.076984127 | H8: 6.15 | I8: 6.06 | J8: 6.05 | K8: 6.011764706 | L8: 6.1 | M8: 6.093823217 | N8: 0.1382352941 | O8: 5.9 | P8: 6.3 | Q8: 99.21965591
A9: 8 | B9: 6.109375 | C9: 6.160772727 | D9: 6.08 | E9: 6.13 | F9: 6.107692308 | G9: 6.118421053 | H9: 6.14 | I9: 6.05 | J9: 6.04 | K9: 5.945454545 | L9: 6.1 | M9: 6.088171563 | N9: 0.2153181818 | O9: 5.9 | P9: 6.3 | Q9: 99.12763566
A10: 9 | B10: 6.125 | C10: 6.158789474 | D10: 6.065 | E10: 6.14 | F10: 6.1128125 | G10: 6.102272727 | H10: 6.12 | I10: 6.048 | J10: 6.04 | K10: 5.931818182 | L10: 6.1 | M10: 6.084369288 | N10: 0.2269712919 | O10: 5.9 | P10: 6.3 | Q10: 99.065727
A11: 10 | B11: 6.175 | C11: 6.15665 | D11: 6.07 | E11: 6.16 | F11: 6.090333333 | G11: 6.188095238 | H11: 6.15 | I11: 6.182 | J11: 6.04 | K11: 6 | L11: 6.1 | M11: 6.121207857 | N11: 0.1880952381 | O11: 5.9 | P11: 6.3 | Q11: 99.66553274
A12: 11 | B12: 6.165625 | C12: 6.16995 | D12: 6.07 | E12: 6.13 | F12: 6.117333333 | G12: 6.230434783 | H12: 6.12 | I12: 6.135 | J12: 6.03 | K12: 6.015 | L12: 6.1 | M12: 6.118334312 | N12: 0.2154347826 | O12: 5.9 | P12: 6.3 | Q12: 99.61874566
A13: 12 | B13: 6.184375 | C13: 6.201 | D13: 6.081 | E13: 6.16 | F13: 6.119649123 | G13: 6.172727273 | H13: 6.2 | I13: 6.127 | J13: 6.05 | K13: 6.025 | L13: 6.1 | M13: 6.13207514 | N13: 0.176 | O13: 5.9 | P13: 6.3 | Q13: 99.84247388
A14: 1 | B14: 6.184375 | C14: 6.17875 | D14: 6.063 | E14: 6.2 | F14: 6.118965517 | G14: 6.15 | H14: 6.17 | I14: 6.165 | J14: 6.08 | K14: 5.988235294 | L14: 6.1 | M14: 6.129832581 | N14: 0.2117647059 | O14: 5.9 | P14: 6.3 | Q14: 99.80596053
A15: 2 | B15: 6.140625 | C15: 6.1725 | D15: 6.097 | E15: 6.19 | F15: 6.121833333 | G15: 6.185714286 | H15: 6.2 | I15: 6.161 | J15: 6.09 | K15: 6.042105263 | L15: 6.1 | M15: 6.140077788 | N15: 0.1578947368 | O15: 5.9 | P15: 6.3 | Q15: 99.97277304
A16: 3 | B16: 6.16875 | C16: 6.174772727 | D16: 6.089 | E16: 6.2 | F16: 6.148064516 | G16: 6.098214286 | H16: 6.21 | I16: 6.114 | J16: 6.1 | K16: 5.983333333 | L16: 6.1 | M16: 6.128613486 | N16: 0.2266666667 | O16: 5.9 | P16: 6.3 | Q16: 99.78611123
A17: 4 | B17: 6.1 | C17: 6.1936 | E17: 6.24 | F17: 6.168245614 | G17: 6.177272727 | H17: 6.21 | I17: 6.123 | J17: 6.05 | L17: 6.1 | M17: 6.157764793 | N17: 0.19 | O17: 5.9 | P17: 6.3 | Q17: 100.2607529
A18: 5 | B18: 6.14375 | C18: 6.17925 | E18: 6.24 | F18: 6.176557377 | G18: 6.19047619 | H18: 6.26 | I18: 6.166 | J18: 6.06 | L18: 6.1 | M18: 6.177004196 | N18: 0.2 | O18: 5.9 | P18: 6.3 | Q18: 100.574009
A19: 6 | L19: 6.1 | N19: 0 | O19: 5.9 | P19: 6.3 | Q19: 0
A20: 7 | L20: 6.1 | N20: 0 | O20: 5.9 | P20: 6.3 | Q20: 0

Sheet Fe
F1: Fe
A2: 月 | B2: 千葉大 | C2: がんｾﾝﾀｰ | D2: 船橋中央 | E2: 県立佐原 | F2: 千葉ﾘﾊﾋﾞﾘ | G2: 順大浦安 | H2: 千葉青葉 | I2: 東歯大市川 | J2: 千葉MC | K2: こども病院 | L2: 認証値 | M2: 10病院平均 | N2: R | O2: 下限 | P2: 上限 | Q2: 2015.02月値を100％に対する変化率
A3: 2 | D3: 149.13 | E3: 150.45 | G3: 156.25 | I3: 149.569 | L3: 151 | M3: =AVERAGE(B3:K3) -> 151.34975 | N3: =MAX(B3:K3)-MIN(B3:K3) -> 7.12 | O3: 143 | P3: 159 | Q3: =M3/M3*100 -> 100
A4: 3 | B4: 151.962963 | C4: 149.7277273 | D4: 150 | E4: 149.86 | F4: 151.7068966 | G4: 156.5 | H4: 150.7 | I4: 149.31 | J4: 148.71 | K4: 150.8571429 | L4: 151 | M4: 150.933473 | N4: 7.79 | O4: 143 | P4: 159 | Q4: =M4/M$3*100 -> 99.72495691
A5: 4 | B5: 151.7407407 | C5: 149.2735 | D5: 148.85 | E5: 150.68 | F5: 152.365625 | G5: 156.5192308 | H5: 150 | I5: 149.404 | J5: 149.28 | K5: 152.4666667 | L5: 151 | M5: 151.0579763 | N5: 7.669230769 | O5: 143 | P5: 159 | Q5: =M5/M$3*100 -> 99.80721892
A6: 5 | B6: 151.962963 | C6: 149.4077778 | D6: 149.63 | E6: 150.73 | F6: 153.6627119 | G6: 156.3181818 | H6: 150.2 | I6: 150.202 | J6: 149.56 | K6: 153.2631579 | L6: 151 | M6: 151.4936792 | N6: 6.91040404 | O6: 143 | P6: 159 | Q6: 100.0950971
A7: 6 | B7: 151.7407407 | C7: 149.3790909 | D7: 149.2 | E7: 150.4 | F7: 152.7938462 | G7: 156.4090909 | H7: 149.3 | I7: 148.515 | J7: 149.9 | K7: 153.7619048 | L7: 151 | M7: 151.1399673 | N7: 7.894090909 | O7: 143 | P7: 159 | Q7: 99.86139214
A8: 7 | B8: 152.0625 | C8: 149.2615 | D8: 147.75 | E8: 150.07 | F8: 152.2745763 | G8: 154.902439 | H8: 149.1 | I8: 148.016 | J8: 148.42 | K8: 153.4285714 | L8: 151 | M8: 150.5285587 | N8: 7.152439024 | O8: 143 | P8: 159 | Q8: 99.45742142
A9: 8 | B9: 151.875 | C9: 149.0440909 | D9: 149.5 | E9: 150.26 | F9: 152.7569231 | G9: 154.1578947 | H9: 149.9 | I9: 148.66 | J9: 147.9 | K9: 152.0909091 | L9: 151 | M9: 150.6144818 | N9: 6.257894737 | O9: 143 | P9: 159 | Q9: 99.51419264
A10: 9 | B10: 152.25 | C10: 149.9910526 | D10: 151.05 | E10: 149.93 | F10: 153.8015385 | G10: 156.0909091 | H10: 149.7 | I10: 148.906 | J10: 150.54 | K10: 153.4090909 | L10: 151 | M10: 151.5668591 | N10: 7.184909091 | O10: 143 | P10: 159 | Q10: 100.1434486
A11: 10 | B11: 151.9375 | C11: 149.9235 | D11: 148.57 | E11: 150.27 | F11: 153.6216667 | G11: 156.6666667 | H11: 149.5 | I11: 147.753 | J11: 149.04 | K11: 152.1 | L11: 151 | M11: 150.9382333 | N11: 8.913666667 | O11: 143 | P11: 159 | Q11: 99.72810218
A12: 11 | B12: 152.03125 | C12: 149.644 | D12: 147.72 | E12: 150.28 | F12: 155.0816667 | G12: 156.5877193 | H12: 150 | I12: 147.392 | J12: 149.6 | K12: 152.2 | L12: 151 | M12: 151.0536636 | N12: 9.195719298 | O12: 143 | P12: 159 | Q12: 99.80436941
A13: 12 | B13: 152.03125 | C13: 150.3320476 | D13: 148.39 | E13: 149.95 | F13: 154.1909091 | G13: 155.8636364 | H13: 150.1 | I13: 147.609 | J13: 148.09 | K13: 152.0625 | L13: 151 | M13: 150.8619343 | N13: 8.254636364 | O13: 143 | P13: 159 | Q13: 99.67768979
A14: 1 | B14: 152.71875 | C14: 150.08455 | D14: 150.13 | E14: 149.55 | F14: 153.9827586 | G14: 156.6666667 | H14: 149.8 | I14: 147.673 | J14: 148.67 | K14: 151.7647059 | L14: 151 | M14: 151.1040431 | N14: 8.993666667 | O14: 143 | P14: 159 | Q14: 99.83765623
A15: 2 | B15: 151.40625 | C15: 149.67585 | D15: 149.88 | E15: 149.97 | F15: 153.5016667 | G15: 156.875 | H15: 149.9 | I15: 148.104 | J15: 147.89 | K15: 152.1764706 | L15: 151 | M15: 150.9379237 | N15: 8.985 | O15: 143 | P15: 159 | Q15: 99.72789762
A16: 3 | B16: 151.125 | C16: 149.4386818 | D16: 148.02 | E16: 150.12 | F16: 152.7734375 | G16: 156.1428571 | H16: 150.2 | I16: 147.577 | J16: 147.48 | K16: 152.5555556 | L16: 151 | M16: 150.5432532 | N16: 8.662857143 | O16: 143 | P16: 159 | Q16: 99.46713041
A17: 4 | B17: 151.15625 | C17: 149.47085 | E17: 149.75 | F17: 151.8140351 | G17: 156.2826087 | H17: 148.3 | I17: 148.43 | J17: 147.15 | L17: 151 | M17: 150.294218 | N17: 9.132608696 | O17: 143 | P17: 159 | Q17: 99.30258753
A18: 5 | B18: 151.3125 | C18: 150.3275 | E18: 149.79 | F18: 153.9035088 | G18: 154.8571429 | H18: 149.8 | I18: 148.217 | J18: 147.54 | L18: 151 | M18: 150.7184565 | N18: 7.317142857 | O18: 143 | P18: 159 | Q18: 99.58289092
A19: 6 | L19: 151 | N19: 0 | O19: 143 | P19: 159 | Q19: 0
A20: 7 | L20: 151 | N20: 0 | O20: 143 | P20: 159 | Q20: 0

Sheet CRP
F1: CRP
A2: 月 | B2: 千葉大 | C2: がんｾﾝﾀｰ | D2: 船橋中央 | E2: 県立佐原 | F2: 千葉ﾘﾊﾋﾞﾘ | G2: 順大浦安 | H2: 千葉青葉 | I2: 東歯大市川 | J2: 千葉MC | K2: こども病院 | L2: 認証値 | M2: 10病院平均 | N2: R | O2: 下限 | P2: 上限 | Q2: 2015.02月値を100％に対する変化率
A3: 2 | D3: 2.2075 | E3: 2.25 | G3: 2.317625 | I3: 2.241 | L3: 2.28 | M3: =AVERAGE(B3:K3) -> 2.25403125 | N3: =MAX(B3:K3)-MIN(B3:K3) -> 0.110125 | O3: 2.08 | P3: 2.48 | Q3: =M3/M3*100 -> 100
A4: 3 | B4: 2.27962963 | C4: 2.245454545 | D4: 2.2089 | E4: 2.25 | F4: 2.203241379 | G4: 2.311153846 | H4: 2.218 | I4: 2.293 | J4: 2.39 | K4: 2.2509375 | L4: 2.28 | M4: 2.26503169 | N4: 0.1867586207 | O4: 2.08 | P4: 2.48 | Q4: =M4/M$3*100 -> 100.4880341
A5: 4 | B5: 2.287777778 | C5: 2.2377 | D5: 2.2287 | E5: 2.26 | F5: 2.192609375 | G5: 2.304038462 | H5: 2.196 | I5: 2.263 | J5: 2.38 | K5: 2.264090909 | L5: 2.28 | M5: 2.261391652 | N5: 0.187390625 | O5: 2.08 | P5: 2.48 | Q5: =M5/M$3*100 -> 100.3265439
A6: 5 | B6: 2.265185185 | C6: 2.233388889 | D6: 2.2545 | E6: 2.25 | F6: 2.193542373 | G6: 2.28140404 | H6: 2.161 | I6: 2.242 | J6: 2.41 | K6: 2.267 | L6: 2.28 | M6: 2.255802049 | N6: 0.249 | O6: 2.08 | P6: 2.48 | Q6: 100.0785614
A7: 6 | B7: 2.277777778 | C7: 2.241409091 | D7: 2.2682 | E7: 2.24 | F7: 2.204757576 | G7: 2.233230303 | H7: 2.175 | I7: 2.272 | J7: 2.39 | K7: 2.245238095 | L7: 2.28 | M7: 2.254761284 | N7: 0.215 | O7: 2.08 | P7: 2.48 | Q7: 100.0323879
A8: 7 | B8: 2.2834375 | C8: 2.26375 | D8: 2.2555 | E8: 2.28 | F8: 2.20304918 | G8: 2.204674797 | H8: 2.171 | I8: 2.287 | J8: 2.36 | K8: 2.251764706 | L8: 2.28 | M8: 2.256017618 | N8: 0.189 | O8: 2.08 | P8: 2.48 | Q8: 100.0881251
A9: 8 | B9: 2.29125 | C9: 2.245954545 | D9: 2.2673 | E9: 2.23 | F9: 2.209938462 | G9: 2.249210526 | H9: 2.172 | I9: 2.313 | J9: 2.39 | K9: 2.27 | L9: 2.28 | M9: 2.263865353 | N9: 0.218 | O9: 2.08 | P9: 2.48 | Q9: 100.4362896
A10: 9 | B10: 2.2909375 | C10: 2.257631579 | D10: 2.2642 | E10: 2.31 | F10: 2.212276923 | G10: 2.171022727 | H10: 2.16 | I10: 2.248 | J10: 2.35 | K10: 2.261363636 | L10: 2.28 | M10: 2.252543237 | N10: 0.19 | O10: 2.08 | P10: 2.48 | Q10: 99.93398435
A11: 10 | B11: 2.293125 | C11: 2.32745 | D11: 2.2967 | E11: 2.31 | F11: 2.205233333 | G11: 2.236119048 | H11: 2.173 | I11: 2.237 | J11: 2.31 | K11: 2.173333333 | L11: 2.28 | M11: 2.256196071 | N11: 0.15445 | O11: 2.08 | P11: 2.48 | Q11: 100.0960422
A12: 11 | B12: 2.288125 | C12: 2.3524 | D12: 2.3373 | E12: 2.32 | F12: 2.207616667 | G12: 2.211644928 | H12: 2.191 | I12: 2.24 | J12: 2.3 | K12: 2.176470588 | L12: 2.28 | M12: 2.262455718 | N12: 0.1759294118 | O12: 2.08 | P12: 2.48 | Q12: 100.3737512
A13: 12 | B13: 2.284375 | C13: 2.350190476 | D13: 2.3438 | E13: 2.27 | F13: 2.214254237 | G13: 2.186022727 | H13: 2.176 | I13: 2.255 | J13: 2.32 | K13: 2.187272727 | L13: 2.28 | M13: 2.258691517 | N13: 0.1741904762 | O13: 2.08 | P13: 2.48 | Q13: 100.2067525
A14: 1 | B14: 2.323125 | C14: 2.33355 | D14: 2.3411 | E14: 2.29 | F14: 2.239535714 | G14: 2.147933333 | H14: 2.154 | I14: 2.293 | J14: 2.38 | K14: 2.333846154 | L14: 2.28 | M14: 2.28360902 | N14: 0.2320666667 | O14: 2.08 | P14: 2.48 | Q14: 101.3122165
A15: 2 | B15: 2.3228125 | C15: 2.3376 | D15: 2.3058 | E15: 2.29 | F15: 2.256526316 | G15: 2.23272619 | H15: 2.142 | I15: 2.294 | J15: 2.36 | K15: 2.342631579 | L15: 2.28 | M15: 2.288409659 | N15: 0.218 | O15: 2.08 | P15: 2.48 | Q15: 101.5251966
A16: 3 | B16: 2.2946875 | C16: 2.318772727 | D16: 2.2873 | E16: 2.3 | F16: 2.304514706 | G16: 2.169892857 | H16: 2.177 | I16: 2.291 | J16: 2.36 | K16: 2.351538462 | L16: 2.28 | M16: 2.285470625 | N16: 0.1901071429 | O16: 2.08 | P16: 2.48 | Q16: 101.3948065
A17: 4 | B17: 2.264375 | C17: 2.31815 | E17: 2.31 | F17: 2.302982456 | G17: 2.111137681 | H17: 2.206 | I17: 2.268 | J17: 2.39 | L17: 2.28 | M17: 2.271330642 | N17: 0.2788623188 | O17: 2.08 | P17: 2.48 | Q17: 100.7674868
A18: 5 | B18: 2.2803125 | C18: 2.304 | E18: 2.31 | F18: 2.286576271 | G18: 2.250909091 | H18: 2.253 | I18: 2.293 | J18: 2.38 | L18: 2.28 | M18: 2.294724733 | N18: 0.1290909091 | O18: 2.08 | P18: 2.48 | Q18: 101.8053646
A19: 6 | L19: 2.28 | N19: 0 | O19: 2.08 | P19: 2.48 | Q19: 0
A20: 7 | L20: 2.28 | N20: 0 | O20: 2.08 | P20: 2.48 | Q20: 0

Sheet IgG
F1: IgG
A2: 月 | B2: 千葉大 | C2: がんｾﾝﾀｰ | D2: 船橋中央 | E2: 県立佐原 | F2: 千葉ﾘﾊﾋﾞﾘ | G2: 順大浦安 | H2: 千葉青葉 | I2: 東歯大市川 | J2: 千葉MC | K2: こども病院 | L2: 認証値 | M2: 9病院平均 | N2: R | O2: 下限 | P2: 上限 | Q2: 2015.02月値を100％に対する変化率
A3: 2 | D3: 965.04 | E3: 1000.8 | G3: 974.725 | I3: 1000.556 | L3: 985 | M3: =AVERAGE(B3:K3) -> 985.28025 | N3: =MAX(B3:K3)-MIN(B3:K3) -> 35.76 | O3: 935 | P3: 1035 | Q3: =M3/M3*100 -> 100
A4: 3 | B4: 1004.259259 | C4: 982.0809091 | D4: 1000.61 | E4: 1002.25 | F4: 994.3965517 | G4: 972.68 | I4: 991.892 | J4: 981.04 | K4: 970.0833333 | L4: 985 | M4: 988.8102282 | N4: 34.17592593 | O4: 935 | P4: 1035 | Q4: =M4/M$3*100 -> 100.3582715
A5: 4 | B5: 999.1111111 | C5: 974.752 | D5: 999.4 | E5: 995.1 | F5: 989.3234375 | G5: 982.0555556 | I5: 995.388 | J5: 982.64 | K5: 969.6666667 | L5: 985 | M5: 987.4929745 | N5: 29.73333333 | O5: 935 | P5: 1035 | Q5: =M5/M$3*100 -> 100.2245782
A6: 5 | B6: 993.7407407 | C6: 986.3716667 | D6: 989.24 | E6: 997.72 | F6: 996.7254237 | G6: 970.4494949 | I6: 987.188 | J6: 994.33 | K6: 987.6842105 | L6: 985 | M6: 989.2721707 | N6: 27.27050505 | O6: 935 | P6: 1035 | Q6: 100.4051559
A7: 6 | B7: 1001.703704 | C7: 979.1072727 | D7: 996.66 | E7: 994.91 | F7: 1000.767692 | G7: 967.9727273 | I7: 988.069 | J7: 986.4 | K7: 992.7619048 | L7: 985 | M7: 989.8169223 | N7: 33.73097643 | O7: 935 | P7: 1035 | Q7: 100.4604449
A8: 7 | B8: 998.15625 | C8: 999.915 | D8: 987.83 | E8: 997.98 | F8: 1003.388525 | G8: 966.304878 | I8: 995.942 | J8: 988.98 | K8: 1014.705882 | L8: 985 | M8: 994.8002817 | N8: 48.4010043 | O8: 935 | P8: 1035 | Q8: 100.9662258
A9: 8 | B9: 997.03125 | C9: 990.4122727 | D9: 980.8 | E9: 995.75 | F9: 997.6569231 | G9: 964.0263158 | I9: 990.202 | J9: 982.13 | K9: 1007.318182 | L9: 985 | M9: 989.4807715 | N9: 43.29186603 | O9: 935 | P9: 1035 | Q9: 100.4263276
A10: 9 | B10: 999.09375 | C10: 984.0189474 | D10: 986.25 | E10: 998.62 | F10: 1002.734921 | G10: 994.1403509 | I10: 996.482 | J10: 1001.38 | K10: 993.3809524 | L10: 985 | M10: 995.1223246 | N10: 18.71597327 | O10: 935 | P10: 1035 | Q10: 100.9989112
A11: 10 | B11: 1001.59375 | C11: 1000.3865 | D11: 985.45 | E11: 1004.2 | F11: 1001.44 | G11: 995.2857143 | I11: 1001.574 | J11: 985.54 | K11: 979.6190476 | L11: 985 | M11: 995.0098902 | N11: 24.58095238 | O11: 935 | P11: 1035 | Q11: 100.9874998
A12: 11 | B12: 1000.25 | C12: 1029.426 | D12: 996.67 | E12: 992.74 | F12: 1004.051852 | G12: 994.884058 | I12: 999.244 | J12: 1002.76 | K12: 991.3 | L12: 985 | M12: 1001.258434 | N12: 38.126 | O12: 935 | P12: 1035 | Q12: 101.6216893
A13: 12 | B13: 1002.78125 | C13: 1023.635143 | D13: 991.28 | E13: 1005.38 | F13: 1005.125 | G13: 999.7424242 | I13: 997.25 | J13: 989.63 | K13: 985.3571429 | L13: 985 | M13: 1000.020107 | N13: 38.278 | O13: 935 | P13: 1035 | Q13: 101.4960065
A14: 1 | B14: 1004.09375 | C14: 984.0982105 | D14: 976.13 | E14: 980.93 | F14: 1005.942105 | G14: 986.7857143 | I14: 1002.988 | J14: 991 | K14: 958.8235294 | L14: 985 | M14: 987.8657011 | N14: 47.11857585 | O14: 935 | P14: 1035 | Q14: 100.2624077
A15: 2 | B15: 997.625 | C15: 983.56915 | D15: 983.12 | E15: 984.14 | F15: 992.9163934 | G15: 999.5555556 | I15: 999.617 | J15: 999.33 | K15: 979 | L15: 985 | M15: 990.9858999 | N15: 20.617 | O15: 935 | P15: 1035 | Q15: 100.579089
A16: 3 | B16: 998.6875 | C16: 993.5534091 | D16: 997.77 | E16: 983.81 | F16: 994.2353846 | G16: 1008.747126 | I16: 1002.213 | J16: 997.15 | K16: 986.375 | L16: 985 | M16: 995.8379356 | N16: 24.93712644 | O16: 935 | P16: 1035 | Q16: 101.0715414
A17: 4 | B17: 996.15625 | C17: 993.42835 | E17: 985.84 | F17: 995.2054545 | G17: 1008.623188 | I17: 989.7 | J17: 993.1 | L17: 985 | M17: 994.5790347 | N17: 22.78318841 | O17: 935 | P17: 1035 | Q17: 100.9437705
A18: 5 | B18: 992.53125 | C18: 985.2975 | E18: 998.07 | F18: 1015.023404 | G18: 1017.809524 | I18: 993.659 | J18: 991.68 | L18: 985 | M18: 999.152954 | N18: 32.51202381 | O18: 935 | P18: 1035 | Q18: 101.4079957
A19: 6 | L19: 985 | N19: 0 | O19: 935 | P19: 1035 | Q19: 0
A20: 7 | L20: 985 | N20: 0 | O20: 935 | P20: 1035 | Q20: 0

Sheet IgA
F1: IgA
A2: 月 | B2: 千葉大 | C2: がんｾﾝﾀｰ | D2: 船橋中央 | E2: 県立佐原 | F2: 千葉ﾘﾊﾋﾞﾘ | G2: 順大浦安 | H2: 千葉青葉 | I2: 東歯大市川 | J2: 千葉MC | K2: こども病院 | L2: 認証値 | M2: 9病院平均 | N2: R | O2: 下限 | P2: 上限 | Q2: 2015.02月値を100％に対する変化率
A3: 2 | D3: 186.79 | E3: 194.31 | G3: 192 | I3: 199.667 | L3: 196 | M3: =AVERAGE(B3:K3) -> 193.19175 | N3: =MAX(B3:K3)-MIN(B3:K3) -> 12.877 | O3: 176 | P3: 216 | Q3: =M3/M3*100 -> 100
A4: 3 | B4: 197.5555556 | C4: 192.1936364 | D4: 191.75 | E4: 193.45 | F4: 195.0586207 | G4: 189.3809524 | I4: 195.663 | J4: 185.29 | K4: 199.3333333 | L4: 196 | M4: 193.2972331 | N4: 14.04333333 | O4: 176 | P4: 216 | Q4: =M4/M$3*100 -> 100.0546002
A5: 4 | B5: 192.962963 | C5: 191.7495 | D5: 196.76 | E5: 191.32 | F5: 196.6296875 | G5: 192.6507937 | I5: 195.05 | J5: 186.46 | K5: 198.25 | L5: 196 | M5: 193.5369938 | N5: 11.79 | O5: 176 | P5: 216 | Q5: =M5/M$3*100 -> 100.1787052
A6: 5 | B6: 193.6296296 | C6: 191.5533333 | D6: 190.75 | E6: 189.74 | F6: 199.9457627 | G6: 193.8585859 | I6: 193.357 | J6: 186.42 | K6: 197.6842105 | L6: 196 | M6: 192.9931691 | N6: 13.52576271 | O6: 176 | P6: 216 | Q6: 99.89721047
A7: 6 | B7: 191.7777778 | C7: 191.2372727 | D7: 190.89 | E7: 190.18 | F7: 194.453125 | G7: 192.430303 | I7: 191.841 | J7: 187.54 | K7: 197.2857143 | L7: 196 | M7: 191.9594659 | N7: 9.745714286 | O7: 176 | P7: 216 | Q7: 99.36214454
A8: 7 | B8: 194.25 | C8: 194.721 | D8: 194.4 | E8: 190.6 | F8: 196 | G8: 191.5811966 | I8: 194.605 | J8: 187.32 | K8: 197.8235294 | L8: 196 | M8: 193.4778584 | N8: 10.50352941 | O8: 176 | P8: 216 | Q8: 100.1480956
A9: 8 | B9: 190.125 | C9: 192.4145455 | D9: 187.81 | E9: 188.09 | F9: 196.28 | G9: 194.6296296 | I9: 188.286 | J9: 183.12 | K9: 195.7 | L9: 196 | M9: 190.7172417 | N9: 13.16 | O9: 176 | P9: 216 | Q9: 98.7191439
A10: 9 | B10: 192.59375 | C10: 191.5521053 | D10: 192.28 | E10: 190.68 | F10: 195.0258065 | G10: 195.7878788 | I10: 191.226 | J10: 179.54 | K10: 197.7142857 | L10: 196 | M10: 191.8222029 | N10: 18.17428571 | O10: 176 | P10: 216 | Q10: 99.29109442
A11: 10 | B11: 193.21875 | C11: 194.728 | D11: 189.47 | E11: 189.71 | F11: 196.9933333 | G11: 194.7142857 | I11: 194.525 | J11: 187.44 | K11: 195.3571429 | L11: 196 | M11: 192.9062791 | N11: 9.553333333 | O11: 176 | P11: 216 | Q11: 99.85223443
A12: 11 | B12: 193.6875 | C12: 196.237 | D12: 194.03 | E12: 191.58 | F12: 194.1203704 | G12: 196.5606061 | I12: 197.692 | J12: 187.98 | K12: 186.95 | L12: 196 | M12: 193.204164 | N12: 10.742 | O12: 176 | P12: 216 | Q12: 100.0064258
A13: 12 | B13: 196.625 | C13: 196.4707619 | D13: 191.81 | E13: 191.18 | F13: 195.8785714 | G13: 197.4333333 | I13: 195.94 | J13: 187.89 | K13: 187.8125 | L13: 196 | M13: 193.4489074 | N13: 9.620833333 | O13: 176 | P13: 216 | Q13: 100.1331099
A14: 1 | B14: 195.40625 | C14: 190.2201579 | D14: 188.12 | E14: 190.07 | F14: 196.88 | G14: 189.5357143 | I14: 196.439 | J14: 188.19 | K14: 189.1764706 | L14: 196 | M14: 191.5597325 | N14: 8.76 | O14: 176 | P14: 216 | Q14: 99.15523439
A15: 2 | B15: 193.90625 | C15: 187.68 | D15: 190.93 | E15: 190.26 | F15: 196.0169811 | G15: 192.7 | I15: 193.962 | J15: 186.22 | K15: 192.7894737 | L15: 196 | M15: 191.6071894 | N15: 9.796981132 | O15: 176 | P15: 216 | Q15: 99.17979905
A16: 3 | B16: 192.4375 | C16: 191.9503636 | D16: 192 | E16: 188.85 | F16: 189.7907692 | G16: 194.2857143 | I16: 196.482 | J16: 185.87 | K16: 190.0769231 | L16: 196 | M16: 191.3048078 | N16: 10.612 | O16: 176 | P16: 216 | Q16: 99.02328014
A17: 4 | B17: 192.03125 | C17: 191.95665 | E17: 184.9 | F17: 196.9285714 | G17: 192.7898551 | I17: 195.494 | J17: 184.94 | L17: 196 | M17: 191.2914752 | N17: 12.02857143 | O17: 176 | P17: 216 | Q17: 99.01637892
A18: 5 | B18: 192.125 | C18: 191.05 | E18: 189.19 | F18: 199.1528302 | G18: 194.0952381 | I18: 193.93 | J18: 189.34 | L18: 196 | M18: 192.6975812 | N18: 9.962830189 | O18: 176 | P18: 216 | Q18: 99.74420812
A19: 6 | L19: 196 | N19: 0 | O19: 176 | P19: 216 | Q19: 0
A20: 7 | L20: 196 | N20: 0 | O20: 176 | P20: 216 | Q20: 0

Sheet IgM
F1: IgM
A2: 月 | B2: 千葉大 | C2: がんｾﾝﾀｰ | D2: 船橋中央 | E2: 県立佐原 | F2: 千葉ﾘﾊﾋﾞﾘ | G2: 順大浦安 | H2: 千葉青葉 | I2: 東歯大市川 | J2: 千葉MC | K2: こども病院 | L2: 認証値 | M2: 9病院平均 | N2: R | O2: 下限 | P2: 上限 | Q2: 2015.02月値を100％に対する変化率
A3: 2 | D3: 89.36 | E3: 94.85 | G3: 89.75609756 | I3: 89.944 | L3: 91 | M3: =AVERAGE(B3:K3) -> 90.97752439 | N3: =MAX(B3:K3)-MIN(B3:K3) -> 5.49 | O3: 81 | P3: 101 | Q3: =M3/M3*100 -> 100
A4: 3 | B4: 92.51851852 | C4: 88.06727273 | D4: 93.05 | E4: 94.05 | F4: 91.8 | G4: 89.44 | I4: 89.687 | J4: 88.54 | K4: 91 | L4: 91 | M4: 90.90586569 | N4: 5.982727273 | O4: 81 | P4: 101 | Q4: =M4/M$3*100 -> 99.92123473
A5: 4 | B5: 92.03703704 | C5: 88.099 | D5: 92.82 | E5: 94.49 | F5: 91.6171875 | G5: 88.75308642 | I5: 90.55 | J5: 89.66 | K5: 90.2 | L5: 91 | M5: 90.91403455 | N5: 6.391 | O5: 81 | P5: 101 | Q5: =M5/M$3*100 -> 99.93021371
A6: 5 | B6: 91.03703704 | C6: 87.31666667 | D6: 92.14 | E6: 93.56 | F6: 92.29491525 | G6: 87.24242424 | I6: 90.753 | J6: 90.33 | K6: 89.47368421 | L6: 91 | M6: 90.4608586 | N6: 6.317575758 | O6: 81 | P6: 101 | Q6: 99.43209513
A7: 6 | B7: 90.59259259 | C7: 87.92090909 | D7: 92.52 | E7: 93.2 | F7: 92.36153846 | G7: 87.42727273 | I7: 91.057 | J7: 89.46 | K7: 89.52380952 | L7: 91 | M7: 90.45145804 | N7: 5.772727273 | O7: 81 | P7: 101 | Q7: 99.4217623
A8: 7 | B8: 91.9375 | C8: 90.504 | D8: 93.28 | E8: 94.53 | F8: 92.25081967 | G8: 87.15853659 | I8: 93.093 | J8: 88.5 | K8: 90.125 | L8: 91 | M8: 91.26431736 | N8: 7.371463415 | O8: 81 | P8: 101 | Q8: 100.315235
A9: 8 | B9: 91 | C9: 89.49636364 | D9: 91.29 | E9: 94.05 | F9: 92.38153846 | G9: 87.36842105 | I9: 90.048 | J9: 87.75 | K9: 96 | L9: 91 | M9: 91.04270257 | N9: 8.631578947 | O9: 81 | P9: 101 | Q9: 100.0716421
A10: 9 | B10: 91 | C10: 88.9 | D10: 90.17 | E10: 94.32 | F10: 92.05846154 | G10: 89.38636364 | I10: 91.536 | J10: 86.77 | K10: 95.19047619 | L10: 91 | M10: 91.03681126 | N10: 8.42047619 | O10: 81 | P10: 101 | Q10: 100.0651665
A11: 10 | B11: 91.9375 | C11: 90.862 | D11: 90.88 | E11: 92.95 | F11: 90.0220339 | G11: 94.82539683 | I11: 89.5 | J11: 88.14 | K11: 94.6875 | L11: 91 | M11: 91.53382564 | N11: 6.685396825 | O11: 81 | P11: 101 | Q11: 100.6114711
A12: 11 | B12: 91.75 | C12: 89.6745 | D12: 95.72 | E12: 92.7 | F12: 90.05833333 | G12: 94.61594203 | I12: 90.44 | J12: 87.92 | K12: 87.65 | L12: 91 | M12: 91.16986393 | N12: 8.07 | O12: 81 | P12: 101 | Q12: 100.2114143
A13: 12 | B13: 91.09375 | C13: 89.36571429 | D13: 88.95 | E13: 94.05 | F13: 90.44385965 | G13: 94.65909091 | I13: 90.085 | J13: 87.54 | K13: 87.3125 | L13: 91 | M13: 90.38887943 | N13: 7.346590909 | O13: 81 | P13: 101 | Q13: 99.3529776
A14: 1 | B14: 91.4375 | C14: 86.02889474 | D14: 87.25 | E14: 90.88 | F14: 90.44827586 | G14: 95.83333333 | I14: 91.469 | J14: 86.85 | K14: 87 | L14: 91 | M14: 89.68855599 | N14: 9.804438596 | O14: 81 | P14: 101 | Q14: 98.58320128
A15: 2 | B15: 90.75 | C15: 86.40585 | D15: 88.99 | E15: 91.69 | F15: 90.62622951 | G15: 95.68452381 | I15: 91.039 | J15: 86.07 | K15: 87.26315789 | L15: 91 | M15: 89.83541791 | N15: 9.61452381 | O15: 81 | P15: 101 | Q15: 98.74462788
A16: 3 | B16: 90.8125 | C16: 91.33827273 | D16: 89.22 | E16: 91.83 | F16: 89.7671875 | G16: 89.13690476 | I16: 91.464 | J16: 86.08 | K16: 86 | L16: 91 | M16: 89.51654055 | N16: 5.83 | O16: 81 | P16: 101 | Q16: 98.39412663
A17: 4 | B17: 90.03125 | C17: 91.09415 | E17: 92.35 | F17: 91.00517241 | G17: 92.37681159 | I17: 91.848 | J17: 86.21 | L17: 91 | M17: 90.70219772 | N17: 6.166811594 | O17: 81 | P17: 101 | Q17: 99.69736847
A18: 5 | B18: 90 | C18: 87.745 | E18: 93.11 | F18: 92.85862069 | G18: 90.14285714 | I18: 90.977 | J18: 86.04 | L18: 91 | M18: 90.12478255 | N18: 7.07 | O18: 81 | P18: 101 | Q18: 99.06268955
A19: 6 | L19: 91 | N19: 0 | O19: 81 | P19: 101 | Q19: 0
A20: 7 | L20: 91 | N20: 0 | O20: 81 | P20: 101 | Q20: 0

Sheet LDL
F1: LDL
A2: 月 | B2: 千葉大 | C2: がんｾﾝﾀｰ | D2: 船橋中央 | E2: 県立佐原 | F2: 千葉ﾘﾊﾋﾞﾘ | G2: 順大浦安 | H2: 千葉青葉 | I2: 東歯大市川 | J2: 千葉MC | K2: こども病院 | L2: 協和認証値 | M2: 協和平均 | N2: R | O2: 積水認証値 | P2: 積水平均 | Q2: R | R2: 協和下限 | S2: 協和上限 | T2: 積水下限 | U2: 積水上限 | V2: 2015.02月値を100％に対する変化率
A3: 2 | D3: 60.33 | E3: 61.33 | G3: 61.81463415 | I3: 58.806 | L3: 80 | N3: =MAX(B3,F3)-MIN(B3,F3) -> 0 | O3: 61 | P3: =AVERAGE(D3,E3,G3,H3,I3,J3) -> 60.57015854 | Q3: =MAX(D3,E3,G3,H3,I3,J3)-MIN(D3,E3,G3,H3,I3,J3) -> 3.008634146 | R3: 75 | S3: 85 | T3: 56 | U3: 66 | V3: =P3/P3*100 -> 100
A4: 3 | B4: 79.62962963 | D4: 59.82 | E4: 61.24 | F4: 78.09310345 | G4: 61.308 | H4: 59.3 | I4: 59.636 | J4: 59.3 | L4: 80 | M4: =AVERAGE(B4,F4) -> 78.86136654 | N4: =MAX(B4,F4)-MIN(B4,F4) -> 1.536526181 | O4: 61 | P4: 60.10066667 | Q4: 2.008 | R4: 75 | S4: 85 | T4: 56 | U4: 66 | V4: =P4/P$3*100 -> 99.22487925
A5: 4 | B5: 79.66666667 | D5: 59.52 | E5: 60.96 | F5: 78.228125 | G5: 59.99090909 | H5: 59 | I5: 58.48 | J5: 59.76 | L5: 80 | M5: 78.94739583 | N5: 1.438541667 | O5: 61 | P5: 59.61848485 | Q5: 2.48 | R5: 75 | S5: 85 | T5: 56 | U5: 66 | V5: =P5/P$3*100 -> 98.42880767
A6: 5 | B6: 79.92592593 | D6: 60.29 | E6: 57.21 | F6: 76.6125 | G6: 61.46969697 | H6: 59.2 | I6: 58.055 | J6: 60.42 | L6: 80 | M6: 78.26921296 | N6: 3.313425926 | O6: 61 | P6: 59.44078283 | Q6: 4.25969697 | R6: 75 | S6: 85 | T6: 56 | U6: 66 | V6: 98.13542554
A7: 6 | B7: 79.62962963 | D7: 60.3 | E7: 60.05 | F7: 76.07592593 | G7: 60.97272727 | H7: 60.6 | I7: 58.233 | J7: 60.87 | L7: 80 | M7: 77.85277778 | N7: 3.553703704 | O7: 61 | P7: 60.17095455 | Q7: 2.739727273 | R7: 75 | S7: 85 | T7: 56 | U7: 66 | V7: 99.34092299
A8: 7 | B8: 79.59375 | D8: 60.1 | E8: 59.94 | F8: 77.89016393 | G8: 60.8622807 | H8: 60.9 | I8: 57.688 | J8: 60.3 | L8: 80 | M8: 78.74195696 | N8: 1.70358607 | O8: 61 | P8: 59.96504678 | Q8: 3.212 | R8: 75 | S8: 85 | T8: 56 | U8: 66 | V8: 99.0009738
A9: 8 | B9: 79.9375 | D9: 59.86 | E9: 59.5 | F9: 77.26825397 | G9: 60.14736842 | H9: 60.9 | I9: 58.24 | J9: 59.85 | L9: 80 | M9: 78.60287698 | N9: 2.669246032 | O9: 61 | P9: 59.7495614 | Q9: 2.66 | R9: 75 | S9: 85 | T9: 56 | U9: 66 | V9: 98.64521218
A10: 9 | B10: 79.59375 | D10: 60.08 | E10: 59.24 | F10: 77.82615385 | G10: 60.275 | H10: 61 | I10: 58.701 | J10: 59.12 | L10: 80 | M10: 78.70995192 | N10: 1.767596154 | O10: 61 | P10: 59.736 | Q10: 2.299 | R10: 75 | S10: 85 | T10: 56 | U10: 66 | V10: 98.6228226
A11: 10 | B11: 79.375 | D11: 59.96 | E11: 59.62 | F11: 76.39803922 | G11: 63.09761905 | H11: 61.1 | I11: 59.714 | J11: 59.75 | L11: 80 | M11: 77.88651961 | N11: 2.976960784 | O11: 61 | P11: 60.54026984 | Q11: 3.477619048 | R11: 75 | S11: 85 | T11: 56 | U11: 66 | V11: 99.95065442
A12: 11 | B12: 79.53125 | D12: 60.1 | E12: 60.22 | F12: 76.10701754 | G12: 63.5057971 | H12: 61.9 | I12: 59.255 | J12: 60.81 | L12: 80 | M12: 77.81913377 | N12: 3.424232456 | O12: 61 | P12: 60.96513285 | Q12: 4.250797101 | R12: 75 | S12: 85 | T12: 56 | U12: 66 | V12: 100.6520939
A13: 12 | B13: 79.84375 | D13: 60.78 | E13: 61.02 | F13: 77.46666667 | G13: 63.28257576 | H13: 61.7 | I13: 59.228 | J13: 60.85 | L13: 80 | M13: 78.65520833 | N13: 2.377083333 | O13: 61 | P13: 61.14342929 | Q13: 4.054575758 | R13: 75 | S13: 85 | T13: 56 | U13: 66 | V13: 100.9464574
A14: 1 | B14: 80.3125 | D14: 60.79 | E14: 61.83 | F14: 78.01481481 | G14: 62.12111111 | H14: 61 | I14: 58.605 | J14: 61.1 | L14: 80 | M14: 79.16365741 | N14: =MAX(B14,F14)-MIN(B14,F14) -> 2.297685185 | O14: 61 | P14: 60.90768519 | Q14: 3.516111111 | R14: 75 | S14: 85 | T14: 56 | U14: 66 | V14: 100.5572491
A15: 2 | B15: 79.78125 | D15: 60.58 | E15: 61.22 | F15: 77.96610169 | G15: 62.08035714 | H15: 60.9 | I15: 57.947 | J15: 59.92 | L15: 80 | M15: 78.87367585 | N15: 1.815148305 | O15: 61 | P15: 60.44122619 | Q15: 4.133357143 | R15: 75 | S15: 85 | T15: 56 | U15: 66 | V15: 99.78713553
A16: 3 | B16: 80.1875 | D16: 60 | E16: 61.24 | F16: 77.27936508 | G16: 61.47559524 | H16: 60.3 | I16: 60.773 | J16: 59.29 | L16: 80 | M16: 78.73343254 | N16: 2.908134921 | O16: 61 | P16: 60.51309921 | Q16: 2.185595238 | R16: 75 | S16: 85 | T16: 56 | U16: 66 | V16: 99.9057963
A17: 4 | B17: 78.90625 | E17: 60.74 | F17: 77.68245614 | G17: 63.70289855 | H17: 60.8 | I17: 60.527 | J17: 61.19 | L17: 80 | M17: 78.29435307 | N17: 1.22379386 | O17: 61 | P17: 61.39197971 | Q17: 3.175898551 | R17: 75 | S17: 85 | T17: 56 | U17: 66 | V17: 101.3568087
A18: 5 | B18: 79.1875 | E18: 60.08 | F18: 76.56326531 | G18: 63.27142857 | H18: 62.5 | I18: 60.199 | J18: 61.58 | L18: 80 | M18: 77.87538265 | N18: =MAX(B18,F18)-MIN(B18,F18) -> 2.624234694 | O18: 61 | P18: 61.52608571 | Q18: =MAX(D18,E18,G18,H18,I18,J18)-MIN(D18,E18,G18,H18,I18,J18) -> 3.191428571 | R18: 75 | S18: 85 | T18: 56 | U18: 66 | V18: =P18/P$3*100 -> 101.5782148
A19: 6 | L19: 80 | N19: =MAX(B19,F19)-MIN(B19,F19) -> 0 | O19: 61 | Q19: =MAX(D19,E19,G19,H19,I19,J19)-MIN(D19,E19,G19,H19,I19,J19) -> 0 | R19: 75 | S19: 85 | T19: 56 | U19: 66 | V19: =P19/P$3*100 -> 0
A20: 7 | L20: 80 | N20: =MAX(B20,F20)-MIN(B20,F20) -> 0 | O20: 61 | Q20: =MAX(D20,E20,G20,H20,I20,J20)-MIN(D20,E20,G20,H20,I20,J20) -> 0 | R20: 75 | S20: 85 | T20: 56 | U20: 66 | V20: =P20/P$3*100 -> 0

Sheet Mg
F1: Mg
A2: 月 | B2: 千葉大 | C2: がんｾﾝﾀｰ | D2: 船橋中央 | E2: 県立佐原 | F2: 千葉ﾘﾊﾋﾞﾘ | G2: 順大浦安 | H2: 千葉青葉 | I2: 東歯大市川 | J2: 千葉MC | K2: こども病院 | L2: 認証値 | M2: 6病院平均 | N2: R | O2: 下限 | P2: 上限 | Q2: 2015.02月値を100％に対する変化率
A3: 2 | D3: 2.903 | I3: 2.647 | L3: 2.7 | M3: =AVERAGE(B3:K3) -> 2.775 | N3: =MAX(B3:K3)-MIN(B3:K3) -> 0.256 | O3: 2.5 | P3: 2.9 | Q3: =M3/M3*100 -> 100
A4: 3 | B4: 2.755555556 | C4: 2.702409091 | D4: 2.891 | H4: 2.75 | I4: 2.657 | J4: 2.7 | K4: 2.780769231 | L4: 2.7 | M4: 2.74810484 | N4: 0.234 | O4: 2.5 | P4: 2.9 | Q4: =M4/M$3*100 -> 99.03080503
A5: 4 | B5: 2.714814815 | C5: 2.71835 | D5: 2.908 | H5: 2.72 | I5: 2.629 | J5: 2.72 | K5: 2.795454545 | L5: 2.7 | M5: 2.743659909 | N5: 0.279 | O5: 2.5 | P5: 2.9 | Q5: =M5/M$3*100 -> 98.87062734
A6: 5 | B6: 2.744444444 | C6: 2.692277778 | D6: 2.888 | H6: 2.73 | I6: 2.585 | J6: 2.73 | K6: 2.79 | L6: 2.7 | M6: 2.737103175 | N6: 0.303 | O6: 2.5 | P6: 2.9 | Q6: 98.63434863
A7: 6 | B7: 2.722222222 | C7: 2.709863636 | D7: 2.866 | H7: 2.68 | I7: 2.624 | J7: 2.74 | K7: 2.780952381 | L7: 2.7 | M7: 2.731862606 | N7: 0.242 | O7: 2.5 | P7: 2.9 | Q7: 98.4454993
A8: 7 | B8: 2.70625 | C8: 2.7151 | D8: 2.885 | H8: 2.67 | I8: 2.705 | J8: 2.72 | K8: 2.794117647 | L8: 2.7 | M8: 2.742209664 | N8: 0.215 | O8: 2.5 | P8: 2.9 | Q8: 98.81836627
A9: 8 | B9: 2.725 | C9: 2.694590909 | D9: 2.9 | H9: 2.67 | I9: 2.617 | J9: 2.67 | K9: 2.804545455 | L9: 2.7 | M9: 2.725876623 | N9: 0.283 | O9: 2.5 | P9: 2.9 | Q9: 98.22978823
A10: 9 | B10: 2.746875 | C10: 2.681368421 | D10: 2.905 | H10: 2.63 | I10: 2.605 | J10: 2.62 | K10: 2.795454545 | L10: 2.7 | M10: 2.711956852 | N10: 0.3 | O10: 2.5 | P10: 2.9 | Q10: 97.72817486
A11: 10 | B11: 2.73125 | C11: 2.7019 | D11: 2.886 | H11: 2.65 | I11: 2.697 | J11: 2.71 | K11: 2.79047619 | L11: 2.7 | M11: 2.738089456 | N11: 0.236 | O11: 2.5 | P11: 2.9 | Q11: 98.6698903
A12: 11 | B12: 2.70625 | C12: 2.71325 | D12: 2.9 | H12: 2.67 | I12: 2.64 | J12: 2.7 | K12: 2.77 | L12: 2.7 | M12: 2.7285 | N12: 0.26 | O12: 2.5 | P12: 2.9 | Q12: 98.32432432
A13: 12 | B13: 2.7125 | C13: 2.710380952 | D13: 2.916 | H13: 2.64 | I13: 2.633 | J13: 2.64 | K13: 2.76875 | L13: 2.7 | M13: 2.717232993 | N13: 0.283 | O13: 2.5 | P13: 2.9 | Q13: 97.91830606
A14: 1 | B14: 2.715625 | C14: 2.7119 | D14: 2.905 | H14: 2.65 | I14: 2.601 | J14: 2.67 | K14: 2.735294118 | L14: 2.7 | M14: 2.712688445 | N14: 0.304 | O14: 2.5 | P14: 2.9 | Q14: 97.75453857
A15: 2 | B15: 2.7375 | C15: 2.78245 | D15: 2.879 | H15: 2.717 | I15: 2.69 | J15: 2.71 | K15: 2.773684211 | L15: 2.7 | M15: 2.75566203 | N15: 0.189 | O15: 2.5 | P15: 2.9 | Q15: 99.30313622
A16: 3 | B16: 2.753125 | C16: 2.773454545 | D16: 2.9 | H16: 2.7 | I16: 2.646 | J16: 2.68 | K16: 2.794444444 | L16: 2.7 | M16: 2.749574856 | N16: 0.254 | O16: 2.5 | P16: 2.9 | Q16: 99.08377858
A17: 4 | B17: 2.753125 | C17: 2.7687 | H17: 2.7 | I17: 2.704 | J17: 2.69 | L17: 2.7 | M17: 2.723165 | N17: 0.0787 | O17: 2.5 | P17: 2.9 | Q17: 98.13207207
A18: 5 | B18: 2.759375 | C18: 2.7709 | H18: 2.74 | I18: 2.694 | J18: 2.73 | L18: 2.7 | M18: 2.738855 | N18: 0.0769 | O18: 2.5 | P18: 2.9 | Q18: 98.69747748
A19: 6 | L19: 2.7 | N19: =MAX(B19:K19)-MIN(B19:K19) -> 0 | O19: 2.5 | P19: 2.9 | Q19: =M19/M$3*100 -> 0
A20: 7 | L20: 2.7 | N20: =MAX(B20:K20)-MIN(B20:K20) -> 0 | O20: 2.5 | P20: 2.9 | Q20: =M20/M$3*100 -> 0

Sheet 2016.2月を100％とした時の活性変化率
A1: 月 | B1: AST | C1: ALT | D1: ALP | E1: LD | F1: CPK | G1: rGT | H1: AMY | I1: CHE | J1: TCH | K1: TG | L1: HDL | M1: TBIL | N1: TP | O1: ALB | P1: BUN | Q1: CRE | R1: UA | S1: GLU | T1: Na | U1: K | V1: CL | W1: Ca | X1: IP | Y1: Fe | Z1: CRP | AA1: IgG | AB1: IgA | AC1: IgM | AD1: LDL | AE1: Mg
A2: 16.02 | B2: 100 | C2: 100 | D2: 100 | E2: 100 | F2: 100 | G2: 100 | H2: 100 | I2: 100 | J2: 100 | K2: 100 | L2: 100 | M2: 100 | N2: 100 | O2: 100 | P2: 100 | Q2: 100 | R2: 100 | S2: 100 | T2: 100 | U2: 100 | V2: 100 | W2: 100 | X2: 100 | Y2: 100 | Z2: 100 | AA2: 100 | AB2: 100 | AC2: 100 | AD2: 100 | AE2: 100
A3: 3 | B3: =INDIRECT(B$1&"!Q4") -> 100 | C3: 100 | D3: 99.88371159 | E3: 100.0114922 | F3: 99.57482118 | G3: 100.2692187 | H3: 99.98748309 | I3: 98.90765314 | J3: 99.80871307 | K3: 100.4435752 | L3: =INDIRECT(L$1&"!V4") -> 99.30266299 | M3: =INDIRECT(M$1&"!Q4") -> 101.3824451 | N3: =INDIRECT(N$1&"!Q4") -> 100.1202816 | O3: =INDIRECT(O$1&"!V4") -> 100.3893378 | P3: =INDIRECT(P$1&"!Q4") -> 100.1446465 | Q3: 99.56004923 | R3: 100.1168364 | S3: 99.40307598 | T3: 99.50078519 | U3: 99.42931448 | V3: =INDIRECT(V$1&"!V4") -> 98.95194009 | W3: =INDIRECT(W$1&"!Q4") -> 100.8994832 | X3: 99.855471 | Y3: 99.72495691 | Z3: 100.4880341 | AA3: 100.3582715 | AB3: 100.0546002 | AC3: 99.92123473 | AD3: =INDIRECT(AD$1&"!V4") -> 99.22487925 | AE3: =INDIRECT(AE$1&"!Q4") -> 99.03080503
A4: 4 | B4: =INDIRECT(B$1&"!Q5") -> 99.83349795 | C4: 99.22235055 | D4: 99.46920949 | E4: 100.2847964 | F4: 99.31239911 | G4: 100.7076137 | H4: 100.154456 | I4: 98.87560533 | J4: 99.6605706 | K4: 100.5106739 | L4: =INDIRECT(L$1&"!V5") -> 99.00743481 | M4: =INDIRECT(M$1&"!Q5") -> 101.4059141 | N4: =INDIRECT(N$1&"!Q5") -> 100.0431115 | O4: =INDIRECT(O$1&"!V5") -> 100.5591745 | P4: =INDIRECT(P$1&"!Q5") -> 100.5614052 | Q4: 99.47254205 | R4: 100.4310983 | S4: 99.56308816 | T4: 99.55989915 | U4: 99.48660773 | V4: =INDIRECT(V$1&"!V5") -> 99.12212462 | W4: =INDIRECT(W$1&"!Q5") -> 101.1378736 | X4: 99.2354314 | Y4: 99.80721892 | Z4: 100.3265439 | AA4: 100.2245782 | AB4: 100.1787052 | AC4: 99.93021371 | AD4: =INDIRECT(AD$1&"!V5") -> 98.42880767 | AE4: =INDIRECT(AE$1&"!Q5") -> 98.87062734
A5: 5 | B5: =INDIRECT(B$1&"!Q6") -> 99.80208936 | C5: 99.28785499 | D5: 99.35323143 | E5: 100.3242888 | F5: 99.54546657 | G5: 100.6232798 | H5: 100.210778 | I5: 99.00462052 | J5: 99.67024451 | K5: 100.4089229 | L5: =INDIRECT(L$1&"!V6") -> 99.2237505 | M5: =INDIRECT(M$1&"!Q6") -> 100.43653 | N5: =INDIRECT(N$1&"!Q6") -> 99.99351848 | O5: =INDIRECT(O$1&"!V6") -> 100.5314072 | P5: =INDIRECT(P$1&"!Q6") -> 100.5421123 | Q5: 99.76115071 | R5: 100.4515144 | S5: 99.60764508 | T5: 99.75132332 | U5: 99.69949 | V5: =INDIRECT(V$1&"!V6") -> 98.95235905 | W5: =INDIRECT(W$1&"!Q6") -> 101.2720209 | X5: 99.33321345 | Y5: 100.0950971 | Z5: 100.0785614 | AA5: 100.4051559 | AB5: 99.89721047 | AC5: 99.43209513 | AD5: =INDIRECT(AD$1&"!V6") -> 98.13542554 | AE5: =INDIRECT(AE$1&"!Q6") -> 98.63434863
A6: 6 | B6: =INDIRECT(B$1&"!Q7") -> 99.81379395 | C6: 99.67562768 | D6: 99.47343263 | E6: 100.0648275 | F6: 99.81665916 | G6: 100.4731601 | H6: 100.4251214 | I6: 99.08719713 | J6: 99.80252479 | K6: 100.6520473 | L6: =INDIRECT(L$1&"!V7") -> 99.23073458 | M6: =INDIRECT(M$1&"!Q7") -> 100.6456629 | N6: =INDIRECT(N$1&"!Q7") -> 100.2867591 | O6: =INDIRECT(O$1&"!V7") -> 100.3266721 | P6: =INDIRECT(P$1&"!Q7") -> 100.5215271 | Q6: 99.98273729 | R6: 100.2331853 | S6: 99.44034099 | T6: 99.72669229 | U6: 99.77191246 | V6: =INDIRECT(V$1&"!V7") -> 98.75957497 | W6: =INDIRECT(W$1&"!Q7") -> 100.9693653 | X6: 99.30315235 | Y6: 99.86139214 | Z6: 100.0323879 | AA6: 100.4604449 | AB6: 99.36214454 | AC6: 99.4217623 | AD6: =INDIRECT(AD$1&"!V7") -> 99.34092299 | AE6: =INDIRECT(AE$1&"!Q7") -> 98.4454993
A7: 7 | B7: =INDIRECT(B$1&"!Q8") -> 99.65361762 | C7: 100.0206286 | D7: 99.33280692 | E7: 99.59440325 | F7: 99.7277571 | G7: 99.99729111 | H7: 100.2417712 | I7: 98.96368839 | J7: 99.78687739 | K7: 100.4837784 | L7: =INDIRECT(L$1&"!V8") -> 98.89174035 | M7: =INDIRECT(M$1&"!Q8") -> 100.4701455 | N7: =INDIRECT(N$1&"!Q8") -> 100.4987228 | O7: =INDIRECT(O$1&"!V8") -> 100.2620174 | P7: =INDIRECT(P$1&"!Q8") -> 100.3914562 | Q7: 99.86024996 | R7: 100.2338383 | S7: 99.46723723 | T7: 99.70963099 | U7: 99.79348454 | V7: =INDIRECT(V$1&"!V8") -> 98.82085023 | W7: =INDIRECT(W$1&"!Q8") -> 101.0028632 | X7: 99.21965591 | Y7: 99.45742142 | Z7: 100.0881251 | AA7: 100.9662258 | AB7: 100.1480956 | AC7: 100.315235 | AD7: =INDIRECT(AD$1&"!V8") -> 99.0009738 | AE7: =INDIRECT(AE$1&"!Q8") -> 98.81836627
A8: 8 | B8: =INDIRECT(B$1&"!Q9") -> 99.50733986 | C8: 99.50490428 | D8: 99.32608243 | E8: 99.71792927 | F8: 99.73392903 | G8: 99.74272685 | H8: 99.77777802 | I8: 98.97455902 | J8: 99.40769408 | K8: 100.247146 | L8: =INDIRECT(L$1&"!V9") -> 99.12304813 | M8: =INDIRECT(M$1&"!Q9") -> 100.5377669 | N8: =INDIRECT(N$1&"!Q9") -> 100.3466499 | O8: =INDIRECT(O$1&"!V9") -> 100.5734544 | P8: =INDIRECT(P$1&"!Q9") -> 100.2529745 | Q8: 99.75568565 | R8: 100.2691921 | S8: 99.70132783 | T8: 99.73407572 | U8: 99.72574913 | V8: =INDIRECT(V$1&"!V9") -> 98.91149596 | W8: =INDIRECT(W$1&"!Q9") -> 101.1743932 | X8: 99.12763566 | Y8: 99.51419264 | Z8: 100.4362896 | AA8: 100.4263276 | AB8: 98.7191439 | AC8: 100.0716421 | AD8: =INDIRECT(AD$1&"!V9") -> 98.64521218 | AE8: =INDIRECT(AE$1&"!Q9") -> 98.22978823
A9: 9 | B9: =INDIRECT(B$1&"!Q10") -> 99.24860584 | C9: 99.5933248 | D9: 99.09827327 | E9: 99.79724447 | F9: 100.0599335 | G9: 99.4153778 | H9: 99.87538028 | I9: 98.85908628 | J9: 99.38796343 | K9: 100.5919315 | L9: =INDIRECT(L$1&"!V10") -> 99.71739441 | M9: =INDIRECT(M$1&"!Q10") -> 100.1171127 | N9: =INDIRECT(N$1&"!Q10") -> 100.6519373 | O9: =INDIRECT(O$1&"!V10") -> 100.1821213 | P9: =INDIRECT(P$1&"!Q10") -> 100.2043617 | Q9: 99.73962162 | R9: 99.96893594 | S9: 99.45435146 | T9: 99.69980331 | U9: 99.61098232 | V9: =INDIRECT(V$1&"!V10") -> 98.79114006 | W9: =INDIRECT(W$1&"!Q10") -> 100.8460746 | X9: 99.065727 | Y9: 100.1434486 | Z9: 99.93398435 | AA9: 100.9989112 | AB9: 99.29109442 | AC9: 100.0651665 | AD9: =INDIRECT(AD$1&"!V10") -> 98.6228226 | AE9: =INDIRECT(AE$1&"!Q10") -> 97.72817486
A10: 10 | B10: =INDIRECT(B$1&"!Q11") -> 99.17882075 | C10: 99.31306223 | D10: 99.45452674 | E10: 99.76844971 | F10: 99.72729277 | G10: 99.64771889 | H10: 99.96538195 | I10: 98.56057189 | J10: 99.59728642 | K10: 100.5153686 | L10: =INDIRECT(L$1&"!V11") -> 99.67383287 | M10: =INDIRECT(M$1&"!Q11") -> 99.71466582 | N10: =INDIRECT(N$1&"!Q11") -> 100.3587208 | O10: =INDIRECT(O$1&"!V11") -> 99.99179299 | P10: =INDIRECT(P$1&"!Q11") -> 100.3457929 | Q10: 99.9183412 | R10: 99.92219614 | S10: 99.6017258 | T10: 99.70632621 | U10: 99.72154114 | V10: =INDIRECT(V$1&"!V11") -> 98.90327358 | W10: =INDIRECT(W$1&"!Q11") -> 101.3011053 | X10: 99.66553274 | Y10: 99.72810218 | Z10: 100.0960422 | AA10: 100.9874998 | AB10: 99.85223443 | AC10: 100.6114711 | AD10: =INDIRECT(AD$1&"!V11") -> 99.95065442 | AE10: =INDIRECT(AE$1&"!Q11") -> 98.6698903
A11: 11 | B11: =INDIRECT(B$1&"!Q12") -> 99.40669342 | C11: 99.59243689 | D11: 99.3728636 | E11: 100.1235981 | F11: 99.75374394 | G11: 100.2199813 | H11: 100.3094791 | I11: 98.68953863 | J11: 99.9114168 | K11: 100.943936 | L11: =INDIRECT(L$1&"!V12") -> 99.52946888 | M11: =INDIRECT(M$1&"!Q12") -> 99.92840126 | N11: =INDIRECT(N$1&"!Q12") -> 100.348132 | O11: =INDIRECT(O$1&"!V12") -> 100.1424152 | P11: =INDIRECT(P$1&"!Q12") -> 100.3347441 | Q11: 99.69028283 | R11: 99.85161948 | S11: 99.74229466 | T11: 99.70866012 | U11: 99.7996571 | V11: =INDIRECT(V$1&"!V12") -> 98.84135338 | W11: =INDIRECT(W$1&"!Q12") -> 101.5193531 | X11: 99.61874566 | Y11: 99.80436941 | Z11: 100.3737512 | AA11: 101.6216893 | AB11: 100.0064258 | AC11: 100.2114143 | AD11: =INDIRECT(AD$1&"!V12") -> 100.6520939 | AE11: =INDIRECT(AE$1&"!Q12") -> 98.32432432
A12: 12 | B12: =INDIRECT(B$1&"!Q13") -> 99.45224035 | C12: 99.42990639 | D12: 99.70508859 | E12: 99.87965092 | F12: 100.2177657 | G12: 100.5865146 | H12: 100.3249564 | I12: 98.73511698 | J12: 99.94049551 | K12: 100.419755 | L12: =INDIRECT(L$1&"!V13") -> 99.78964961 | M12: =INDIRECT(M$1&"!Q13") -> 100.5938663 | N12: =INDIRECT(N$1&"!Q13") -> 100.3332367 | O12: =INDIRECT(O$1&"!V13") -> 100.0551128 | P12: =INDIRECT(P$1&"!Q13") -> 100.1878427 | Q12: 99.85820323 | R12: 100.1107475 | S12: 99.58640328 | T12: 99.73170491 | U12: 99.81866932 | V12: =INDIRECT(V$1&"!V13") -> 98.80140781 | W12: =INDIRECT(W$1&"!Q13") -> 101.3148056 | X12: 99.84247388 | Y12: 99.67768979 | Z12: 100.2067525 | AA12: 101.4960065 | AB12: 100.1331099 | AC12: 99.3529776 | AD12: =INDIRECT(AD$1&"!V13") -> 100.9464574 | AE12: =INDIRECT(AE$1&"!Q13") -> 97.91830606
A13: 17.01 | B13: =INDIRECT(B$1&"!Q14") -> 99.23230337 | C13: 99.32550177 | D13: 99.16002181 | E13: 100.1464729 | F13: 100.0291834 | G13: 100.2984678 | H13: 100.3671378 | I13: 98.52273429 | J13: 99.65102287 | K13: 100.5708619 | L13: =INDIRECT(L$1&"!V14") -> 99.5564355 | M13: =INDIRECT(M$1&"!Q14") -> 100.2357568 | N13: =INDIRECT(N$1&"!Q14") -> 100.3784838 | O13: =INDIRECT(O$1&"!V14") -> 100.0100453 | P13: =INDIRECT(P$1&"!Q14") -> 100.1797351 | Q13: 99.89783685 | R13: 99.79926003 | S13: 99.63658288 | T13: 99.74142075 | U13: 99.79484618 | V13: =INDIRECT(V$1&"!V14") -> 98.79888635 | W13: =INDIRECT(W$1&"!Q14") -> 101.3034844 | X13: 99.80596053 | Y13: 99.83765623 | Z13: 101.3122165 | AA13: 100.2624077 | AB13: 99.15523439 | AC13: 98.58320128 | AD13: =INDIRECT(AD$1&"!V14") -> 100.5572491 | AE13: =INDIRECT(AE$1&"!Q14") -> 97.75453857
A14: 2 | B14: =INDIRECT(B$1&"!Q15") -> 99.36382687 | C14: 99.41829221 | D14: 99.4018658 | E14: 99.9038451 | F14: 99.82569421 | G14: 100.3844655 | H14: 100.4030249 | I14: 98.66657191 | J14: 99.71800293 | K14: 100.456425 | L14: =INDIRECT(L$1&"!V15") -> 99.05998899 | M14: =INDIRECT(M$1&"!Q15") -> 100.4867741 | N14: =INDIRECT(N$1&"!Q15") -> 100.4524404 | O14: =INDIRECT(O$1&"!V15") -> 99.97976436 | P14: =INDIRECT(P$1&"!Q15") -> 100.2401889 | Q14: 100.1079494 | R14: 100.0397048 | S14: 99.84140221 | T14: 99.63380171 | U14: 99.68824224 | V14: =INDIRECT(V$1&"!V15") -> 98.65026465 | W14: =INDIRECT(W$1&"!Q15") -> 101.2732533 | X14: 99.97277304 | Y14: 99.72789762 | Z14: 101.5251966 | AA14: 100.579089 | AB14: 99.17979905 | AC14: 98.74462788 | AD14: =INDIRECT(AD$1&"!V15") -> 99.78713553 | AE14: =INDIRECT(AE$1&"!Q15") -> 99.30313622
A15: 3 | B15: =INDIRECT(B$1&"!Q16") -> 99.26796019 | C15: 99.47819315 | D15: 99.71372492 | E15: 100.1866993 | F15: 100.0909011 | G15: 100.0674334 | H15: 99.80179332 | I15: 98.47224289 | J15: 99.565504 | K15: 100.6912479 | L15: =INDIRECT(L$1&"!V16") -> 99.01883654 | M15: =INDIRECT(M$1&"!Q16") -> 99.99103827 | N15: =INDIRECT(N$1&"!Q16") -> 100.4099084 | O15: =INDIRECT(O$1&"!V16") -> 100.0711221 | P15: =INDIRECT(P$1&"!Q16") -> 100.2452785 | Q15: 99.98087343 | R15: 99.9632422 | S15: 99.49140014 | T15: 99.67457808 | U15: 99.589821 | V15: =INDIRECT(V$1&"!V16") -> 98.87542798 | W15: =INDIRECT(W$1&"!Q16") -> 100.9544578 | X15: 99.78611123 | Y15: 99.46713041 | Z15: 101.3948065 | AA15: 101.0715414 | AB15: 99.02328014 | AC15: 98.39412663 | AD15: =INDIRECT(AD$1&"!V16") -> 99.9057963 | AE15: =INDIRECT(AE$1&"!Q16") -> 99.08377858
A16: 4 | B16: =INDIRECT(B$1&"!Q17") -> 99.15726781 | C16: 99.27547054 | D16: 99.43939272 | E16: 99.68106855 | F16: 99.81273818 | G16: 99.99638037 | H16: 99.30919779 | I16: 98.10792682 | J16: 100.0553838 | K16: 100.6160491 | L16: =INDIRECT(L$1&"!V17") -> 99.20292669 | M16: =INDIRECT(M$1&"!Q17") -> 100.5927444 | N16: =INDIRECT(N$1&"!Q17") -> 100.5102802 | O16: =INDIRECT(O$1&"!V17") -> 99.93668455 | P16: =INDIRECT(P$1&"!Q17") -> 100.8553761 | Q16: 100.0351036 | R16: 99.43441174 | S16: 99.4325103 | T16: 99.70629229 | U16: 99.70823265 | V16: =INDIRECT(V$1&"!V17") -> 98.68773682 | W16: =INDIRECT(W$1&"!Q17") -> 101.2487862 | X16: 100.2607529 | Y16: 99.30258753 | Z16: 100.7674868 | AA16: 100.9437705 | AB16: 99.01637892 | AC16: 99.69736847 | AD16: =INDIRECT(AD$1&"!V17") -> 101.3568087 | AE16: =INDIRECT(AE$1&"!Q17") -> 98.13207207
A17: 5 | B17: =INDIRECT(B$1&"!Q18") -> 99.09842816 | C17: =INDIRECT(C$1&"!Q18") -> 99.51195567 | D17: =INDIRECT(D$1&"!Q18") -> 99.08733555 | E17: =INDIRECT(E$1&"!Q18") -> 99.80650675 | F17: =INDIRECT(F$1&"!Q18") -> 99.69017175 | G17: =INDIRECT(G$1&"!Q18") -> 99.90483062 | H17: =INDIRECT(H$1&"!Q18") -> 99.46596371 | I17: =INDIRECT(I$1&"!Q18") -> 97.99318447 | J17: =INDIRECT(J$1&"!Q18") -> 99.93801062 | K17: =INDIRECT(K$1&"!Q18") -> 100.9154353 | L17: =INDIRECT(L$1&"!V18") -> 99.87068354 | M17: =INDIRECT(M$1&"!Q18") -> 100.4432959 | N17: =INDIRECT(N$1&"!Q18") -> 100.3380354 | O17: =INDIRECT(O$1&"!V18") -> 99.82517163 | P17: =INDIRECT(P$1&"!Q18") -> 101.1166958 | Q17: =INDIRECT(Q$1&"!Q18") -> 100.0794914 | R17: =INDIRECT(R$1&"!Q18") -> 99.68560582 | S17: =INDIRECT(S$1&"!Q18") -> 99.75709198 | T17: =INDIRECT(T$1&"!Q18") -> 99.65216398 | U17: =INDIRECT(U$1&"!Q18") -> 99.67815655 | V17: =INDIRECT(V$1&"!V18") -> 98.58622617 | W17: =INDIRECT(W$1&"!Q18") -> 101.4740098 | X17: =INDIRECT(X$1&"!Q18") -> 100.574009 | Y17: =INDIRECT(Y$1&"!Q18") -> 99.58289092 | Z17: =INDIRECT(Z$1&"!Q18") -> 101.8053646 | AA17: =INDIRECT(AA$1&"!Q18") -> 101.4079957 | AB17: =INDIRECT(AB$1&"!Q18") -> 99.74420812 | AC17: =INDIRECT(AC$1&"!Q18") -> 99.06268955 | AD17: =INDIRECT(AD$1&"!V18") -> 101.5782148 | AE17: =INDIRECT(AE$1&"!Q18") -> 98.69747748
A18: 6
A19: 7
